Service Area,Service Division,Expense Type,Expense Code,Detailed Expense Type,Payment Date,Transaction Number,Amount Exc VAT,Supplier Name
Regeneration and Local Services,Technical Services,Supplies and Services,304221,Equipment and Materials,03/04/2018,3418743-0000014287,"115,987.64",A ONE PLUS INTEGRATED HIGHWAYS SERVICES.
Regeneration and Local Services,Spatial Policy Planning Assets & Environment,Supplies and Services,336005,Advertising,03/04/2018,3418744-2696,525.00,A-HA! DISTRIBUTION LTD.
Regeneration and Local Services,Spatial Policy Planning Assets & Environment,Supplies and Services,384199,Miscellaneous Expenses,03/04/2018,3418747-SI-18138,833.00,AIREDALE FORESTRY LTD.
Regeneration and Local Services,Technical Services,Third Party Payments,430100,Rendered by Private Contractors,03/04/2018,3418748-J1530/17/K/03,595.00,AK (LIGHTING & SIGNS) LTD.
Regeneration and Local Services,Technical Services,Third Party Payments,430100,Rendered by Private Contractors,03/04/2018,3418748-J1530/17/K/04,525.00,AK (LIGHTING & SIGNS) LTD.
Regeneration and Local Services,Technical Services,Third Party Payments,430100,Rendered by Private Contractors,03/04/2018,3418748-J1530/18/A/02,"2,910.00",AK (LIGHTING & SIGNS) LTD.
Resources,Legal & Democratic Services,Supplies and Services,338057,Services,03/04/2018,3418750-0000029205,"1,870.00",ALERE FORENSICS.
Dedicated Schools Grant,DSG High Needs Block,Supplies and Services,312075,Newspapers Books and Periodicals,03/04/2018,3418755-2018-088-141-006693,"1,153.00",AMERICAN EXPRESS SERVICES EUROPE LTD.
Regeneration and Local Services,Direct Services,Supplies and Services,304259,Equipment and Materials,03/04/2018,3418756-3853530,520.00,ANGEL SPRINGS LTD T/A WATERLOGIC.*
Children and Young Peoples Services,Head of Looked After Provision Permanence and Care Leavers,Third Party Payments,425021,Rendered by Voluntary Organisations,03/04/2018,3418760-INV-0822,"13,200.00",ARTEMIS SUPPORT LTD.
Children and Young Peoples Services,Head of Looked After Provision Permanence and Care Leavers,Third Party Payments,425021,Rendered by Voluntary Organisations,03/04/2018,3418760-INV-0837,"12,900.00",ARTEMIS SUPPORT LTD.
Children and Young Peoples Services,Head of Looked After Provision Permanence and Care Leavers,Third Party Payments,425021,Rendered by Voluntary Organisations,03/04/2018,3418760-INV-0852,"13,200.00",ARTEMIS SUPPORT LTD.
Children and Young Peoples Services,Head of Looked After Provision Permanence and Care Leavers,Third Party Payments,425021,Rendered by Voluntary Organisations,03/04/2018,3418760-INV-0868,"11,314.29",ARTEMIS SUPPORT LTD.
Regeneration and Local Services,Direct Services,Third Party Payments,430100,Rendered by Private Contractors,03/04/2018,3418763-1762,"1,342.00",AWR ROOFING & ALUMIN RAINWATER SYSTEMS LTD.
Regeneration and Local Services,Direct Services,Supplies and Services,304221,Equipment and Materials,03/04/2018,3418764-INV120652,540.00,AZTEC CHEMICALS LTD.
Resources - C A C,LCTSS,Third Party Payments,440070,Other Third Party Payments,03/04/2018,3418766-RES-03-2018-121B,"5,416.00",BARNARD CASTLE TOWN COUNCIL.
Children and Young Peoples Services,Head of Education,Supplies and Services,384540,Miscellaneous Expenses,03/04/2018,3418767-432917,"2,432.48",BAUER RADIO LTD.
Regeneration and Local Services,Direct Services,Third Party Payments,430100,Rendered by Private Contractors,03/04/2018,3418768-6137,"2,994.00",BELL CONTROL SOLUTIONS LTD.
Regeneration and Local Services,Direct Services,Third Party Payments,430100,Rendered by Private Contractors,03/04/2018,3418768-6138,"2,994.00",BELL CONTROL SOLUTIONS LTD.
Resources - C A C,LCTSS,Third Party Payments,440070,Other Third Party Payments,03/04/2018,3418773-RES-03-2018-038A,"14,095.00",BISHOP AUCKLAND TOWN COUNCIL.
Resources - C A C,LCTSS,Third Party Payments,440070,Other Third Party Payments,03/04/2018,3418774-RES-03-2018-085A,"2,644.00",BISHOP MIDDLEHAM PARISH COUNCIL.
Resources - C A C,LCTSS,Third Party Payments,440070,Other Third Party Payments,03/04/2018,3418778-RES-03-2018-040A,"1,200.00",BOURNMOOR PARISH COUNCIL.
Resources - C A C,LCTSS,Third Party Payments,440070,Other Third Party Payments,03/04/2018,3418782-RES-03-2018-128A,"1,920.00",BRANDON & BYSHOTTLES PARISH COUNCIL.
Regeneration and Local Services,Culture & Sport,Premises,145023,Cleaning and Domestic Supplies,03/04/2018,3418783-22SI2234638,"1,095.25",BRENNTAG UK LTD.
Resources - C A C,LCTSS,Third Party Payments,440070,Other Third Party Payments,03/04/2018,3418785-RES-03-2018-137A,548.00,BURNHOPE PARISH COUNCIL.
Regeneration and Local Services,Spatial Policy Planning Assets & Environment,Premises,155001,Insurance of Premises,03/04/2018,3418786-147322,560.00,BURROW HUMPHREYS LTD.
Children and Young Peoples Services,Head of Education,Transfer Payments,510027,School Children,03/04/2018,3418787-09/03/2018,"1,215.00",BUSY BODIES CHILDCARE.
Adult and Health Services,Head of Adults,Supplies and Services,338366,Services,03/04/2018,3418790-48129,"1,472.00",CARE ABILITY.
Adult and Health Services,Head of Adults,Supplies and Services,338366,Services,03/04/2018,3418790-48131,"1,501.50",CARE ABILITY.
Adult and Health Services,Head of Adults,Supplies and Services,338366,Services,03/04/2018,3418790-48267,"1,108.05",CARE ABILITY.
Regeneration and Local Services,Technical Services,Supplies and Services,304221,Equipment and Materials,03/04/2018,3418795-3010351500,590.50,CEMEX UK MATERIALS LTD.
Resources - C A C,LCTSS,Third Party Payments,440070,Other Third Party Payments,03/04/2018,3418796-RES-03-2018-084A,"6,141.00",CHARTER TRUSTEES FOR THE CITY OF DURHAM.
Resources - C A C,LCTSS,Third Party Payments,440070,Other Third Party Payments,03/04/2018,3418800-RES-03-2018-043A,"1,824.00",CHILTON TOWN COUNCIL.
Regeneration and Local Services,Economic Development and Housing,Supplies and Services,384199,Miscellaneous Expenses,03/04/2018,3418803-6268,550.00,CLAIRE MEGGINSON T/A SWEET SALLY CINNAMON.
Regeneration and Local Services,Technical Services,Stock,926004,Stock,03/04/2018,3418804-400007985,"3,609.90",CLEVELAND POTASH LTD T/A ICL FERTILIZERS.
Regeneration and Local Services,Technical Services,Stock,926004,Stock,03/04/2018,3418804-400007986,"2,428.65",CLEVELAND POTASH LTD T/A ICL FERTILIZERS.
Regeneration and Local Services,Technical Services,Stock,926004,Stock,03/04/2018,3418804-400007987,"6,022.17",CLEVELAND POTASH LTD T/A ICL FERTILIZERS.
Regeneration and Local Services,Technical Services,Stock,926004,Stock,03/04/2018,3418804-400008080,"4,527.81",CLEVELAND POTASH LTD T/A ICL FERTILIZERS.
Regeneration and Local Services,Technical Services,Stock,926004,Stock,03/04/2018,3418804-400008081,"1,746.36",CLEVELAND POTASH LTD T/A ICL FERTILIZERS.
Regeneration and Local Services,Technical Services,Stock,926004,Stock,03/04/2018,3418804-400008082,"4,529.07",CLEVELAND POTASH LTD T/A ICL FERTILIZERS.
Children and Young Peoples Services,Head of Education,Transfer Payments,510027,School Children,03/04/2018,3418805-DCC0004EB,"2,542.50",CLEVER CLOGS DAY NURSERIES LTD.
Regeneration and Local Services,Spatial Policy Planning Assets & Environment,Cap Exp on Grants & Other Financial Assistance (REFCUS),918501,Exp assets not owned by authority,03/04/2018,3418810-CO453,"30,375.00",CONSERVEFOR.
Resources,Legal & Democratic Services,Supplies and Services,338025,Services,03/04/2018,3418807-S44997-00916,510.00,CO-OPERATIVE FUNERAL CARE.
Regeneration and Local Services,Culture & Sport,Supplies and Services,342053,Computers and Communications,03/04/2018,3418811-2563,606.00,CORE BUSINESS SYSTEMS LTD T/A CASCADE 3D.
Resources - C A C,LCTSS,Third Party Payments,440070,Other Third Party Payments,03/04/2018,3418813-RES-03-2018-127A,710.00,CORNSAY PARISH COUNCIL.
Regeneration and Local Services,Direct Services,Supplies and Services,304221,Equipment and Materials,03/04/2018,3418818-INV0123778,933.24,CROMWELL POLYTHENE LTD.
Resources - C A C,LCTSS,Third Party Payments,440070,Other Third Party Payments,03/04/2018,3418823-RES-03-2018-122A,661.00,DALTON LE DALE PARISH COUNCIL.
Regeneration and Local Services,Direct Services,Vehicles Equipment Furniture and Fittings,912529,Purchase-equipment,03/04/2018,3418824-15051,"4,383.00",DCM PREMIER PLAY SURFACES.
Resources,Digital and Customer Services,Vehicles Equipment Furniture and Fittings,912701,Computer equipment,03/04/2018,3418825-7402427436,756.60,DELL COMPUTER CORPORATION LTD.
Resources,Digital and Customer Services,Stock,926900,Stock in hand-Inventory system,03/04/2018,3418825-7402426820,897.57,DELL COMPUTER CORPORATION LTD.
Resources,Digital and Customer Services,Stock,926900,Stock in hand-Inventory system,03/04/2018,3418825-7402427362,"1,743.60",DELL COMPUTER CORPORATION LTD.
Resources,Legal & Democratic Services,Supplies and Services,338042,Services,03/04/2018,3418827-333308/1NVCSM342,540.00,DERE STREET BARRISTERS.
Resources,Legal & Democratic Services,Supplies and Services,338042,Services,03/04/2018,3418827-335964/INVCSM344,"3,240.00",DERE STREET BARRISTERS.
Resources,Legal & Democratic Services,Supplies and Services,338042,Services,03/04/2018,3418827-336281/INVCSM347,"1,350.00",DERE STREET BARRISTERS.
Dedicated Schools Grant,DSG High Needs Block,Third Party Payments,440080,Other Third Party Payments,03/04/2018,3418828-60000769,"25,000.00",DERWENTSIDE COLLEGE.
Adult and Health Services,Commissioning inc Supporting People,Third Party Payments,479111,Purchase of Care,03/04/2018,3418829-PO4100581089-4THQUARTER,"3,294.00",DERWENTSIDE MIND.
Regeneration and Local Services,Direct Services,Third Party Payments,430101,Rendered by Private Contractors,03/04/2018,3418831-IV954515,"1,687.19",DIRECT TYRE MANAGEMENT (DTM).
Regeneration and Local Services,Direct Services,Third Party Payments,430101,Rendered by Private Contractors,03/04/2018,3418831-IV961007,"3,956.21",DIRECT TYRE MANAGEMENT (DTM).
Regeneration and Local Services,Direct Services,Third Party Payments,430101,Rendered by Private Contractors,03/04/2018,3418831-IV968139,"1,010.65",DIRECT TYRE MANAGEMENT (DTM).
Regeneration and Local Services,Direct Services,Third Party Payments,430101,Rendered by Private Contractors,03/04/2018,3418831-IV974193,"1,429.93",DIRECT TYRE MANAGEMENT (DTM).
Regeneration and Local Services,Direct Services,Third Party Payments,430101,Rendered by Private Contractors,03/04/2018,3418831-IV976092,"1,964.15",DIRECT TYRE MANAGEMENT (DTM).
Children and Young Peoples Services,Head of Early Help Assessment and Safeguarding,Supplies and Services,338044,Services,03/04/2018,3418834-07/03/18-GQ00592,621.00,DR M YADAV.
Children and Young Peoples Services,Head of Education,Construction Work,908105,Construction work,03/04/2018,3418836-8208,725.00,DUNELM GEOTECHNICAL & ENVIRONMENTAL LTD.
Resources - C A C,LCTSS,Third Party Payments,440070,Other Third Party Payments,03/04/2018,3418840-RES-03-2018-103A,"21,829.50",EASINGTON COLLIERY PARISH COUNCIL.
Regeneration and Local Services,Technical Services,Third Party Payments,430128,Rendered by Private Contractors,03/04/2018,3418844-G185/2018,834.50,EDEN LODGE FARM.
Regeneration and Local Services,Direct Services,Supplies and Services,304221,Equipment and Materials,03/04/2018,3418845-059-220857,525.82,EDMUNDSON ELECTRICAL LTD.
Resources,Digital and Customer Services,Supplies and Services,332029,Printing Stationery and Gen Off Exps,03/04/2018,3418847-109501,"1,023.00",ELANDERS UK.
Regeneration and Local Services,Technical Services,Supplies and Services,304221,Equipment and Materials,03/04/2018,3418849-1803\055,"1,963.75",EPPLETON QUARRY PRODUCTS LTD.
Regeneration and Local Services,Direct Services,Supplies and Services,304221,Equipment and Materials,03/04/2018,3418850-3139671,"7,386.40",ESE WORLD LTD.
Regeneration and Local Services,Direct Services,Supplies and Services,304221,Equipment and Materials,03/04/2018,3418850-6814170,"4,616.50",ESE WORLD LTD.
Resources - C A C,LCTSS,Third Party Payments,440070,Other Third Party Payments,03/04/2018,3418851-RES-03-2018-113A,"3,007.00",ESH PARISH COUNCIL.
Resources - C A C,LCTSS,Third Party Payments,440070,Other Third Party Payments,03/04/2018,3418852-RES-03-2018-109A,"1,122.00",ETHERLEY PARISH COUNCIL.
Regeneration and Local Services,Direct Services,Supplies and Services,304221,Equipment and Materials,03/04/2018,3418853-801075,902.00,EUROPLANTS (UK) LTD.
Resources - C A C,LCTSS,Third Party Payments,440070,Other Third Party Payments,03/04/2018,3418854-RES-03-2018-050A,"1,809.00",EVENWOOD & BARONY PARISH COUNCIL.
Regeneration and Local Services,Technical Services,Third Party Payments,430128,Rendered by Private Contractors,03/04/2018,3418857-225,"1,406.00",F WARD FARM.
Resources - C A C,LCTSS,Third Party Payments,440070,Other Third Party Payments,03/04/2018,3418859-RES-03-2018-086A,"61,128.00",FERRYHILL TOWN COUNCIL.
Resources - C A C,LCTSS,Third Party Payments,440070,Other Third Party Payments,03/04/2018,3418860-RES-03-2018-108A,"10,022.00",FISHBURN PARISH COUNCIL.
Regeneration and Local Services,Direct Services,Supplies and Services,304259,Equipment and Materials,03/04/2018,3418861-OP/I090334,"1,071.60",FLEMING & CO (MACHINERY) LTD.
Regeneration and Local Services,Technical Services,Third Party Payments,430128,Rendered by Private Contractors,03/04/2018,3418864-2375,"4,988.40",FORSTER HALL & SONS.
Dedicated Schools Grant,DSG High Needs Block,Third Party Payments,410037,Rendered by Other Local Authorities,03/04/2018,3418869-110007723,"2,266.67",GATESHEAD COUNCIL.
Regeneration and Local Services,Technical Services,Stock,926900,Stock in hand-Inventory system,03/04/2018,3418873-746618,"1,260.20",GLASDON UK LTD.
Regeneration and Local Services,Technical Services,Supplies and Services,304221,Equipment and Materials,03/04/2018,3418877-1005270,540.00,GRAB & DELIVER LTD.
Resources - C A C,LCTSS,Third Party Payments,440070,Other Third Party Payments,03/04/2018,3418878-RES-03-2018-087A,"86,496.00",GREAT AYCLIFFE TOWN COUNCIL.
Resources - C A C,LCTSS,Third Party Payments,440070,Other Third Party Payments,03/04/2018,3418879-RES-03-2018-053A,"1,925.00",GREAT LUMLEY PARISH COUNCIL.
Resources - C A C,LCTSS,Third Party Payments,440070,Other Third Party Payments,03/04/2018,3418880-RES-03-2018-052A,"5,360.00",GREATER WILLINGTON TOWN COUNCIL.
Regeneration and Local Services,Direct Services,Premises,145023,Cleaning and Domestic Supplies,03/04/2018,3418881-06/728128,"1,468.00",GREENHAM TRADING LTD.
Regeneration and Local Services,Direct Services,Premises,145023,Cleaning and Domestic Supplies,03/04/2018,3418881-06/728303,710.80,GREENHAM TRADING LTD.
Regeneration and Local Services,Direct Services,Supplies and Services,304221,Equipment and Materials,03/04/2018,3418881-06/727576,811.68,GREENHAM TRADING LTD.
Regeneration and Local Services,Direct Services,Supplies and Services,308011,Furniture,03/04/2018,3418881-06/727748,"1,184.88",GREENHAM TRADING LTD.
Regeneration and Local Services,Technical Services,Stock,926900,Stock in hand-Inventory system,03/04/2018,3418881-06/727478,806.16,GREENHAM TRADING LTD.
Regeneration and Local Services,Technical Services,Stock,926900,Stock in hand-Inventory system,03/04/2018,3418881-06/727754,699.12,GREENHAM TRADING LTD.
Regeneration and Local Services,Transport and Contracted Services,Supplies and Services,384540,Miscellaneous Expenses,03/04/2018,3418882-INV-0048,647.50,GRM MAPPING LTD.
Regeneration and Local Services,Culture & Sport,Supplies and Services,384700,Miscellaneous Expenses,03/04/2018,3418883-12404,"3,685.50",GROUNDWORK NORTH EAST.
Dedicated Schools Grant,DSG High Needs Block,Third Party Payments,410037,Rendered by Other Local Authorities,03/04/2018,3418888-0040260022,"4,487.00",HARTLEPOOL BOROUGH COUNCIL.
Resources - C A C,LCTSS,Third Party Payments,440070,Other Third Party Payments,03/04/2018,3418889-RES-03-2018-134A,"9,671.00",HASWELL PARISH COUNCIL.
Regeneration and Local Services,Direct Services,Supplies and Services,304221,Equipment and Materials,03/04/2018,3418891-4966,729.63,HEXHAM MACHINERY CENTRE LTD.
Resources - C A C,LCTSS,Third Party Payments,440070,Other Third Party Payments,03/04/2018,3418893-RES-03-2018-092A,"51,327.00",HORDEN PARISH COUNCIL.
Children and Young Peoples Services,Head of Looked After Provision Permanence and Care Leavers,Third Party Payments,425021,Rendered by Voluntary Organisations,03/04/2018,3418895-4479,"3,520.00",HOWARD HOUSE CARE LTD.
Adult and Health Services,Commissioning inc Supporting People,Supplies and Services,338089,Services,03/04/2018,3418896-4562,900.00,HSF TRAINING LTD.
Regeneration and Local Services,Economic Development and Housing,Vehicles Equipment Furniture and Fittings,912521,Purchase-furniture and fittings,03/04/2018,3418899-INS1547,500.00,INSPECTORATE LTD T/A ROCH NDT SERVICES.
Regeneration and Local Services,Technical Services,Stock,926900,Stock in hand-Inventory system,03/04/2018,3418900-623147,"2,424.80",INSTARMAC GROUP PLC.
Children and Young Peoples Services,Head of Education,Supplies and Services,338027,Services,03/04/2018,3418903-1022017,675.00,INVESTING IN CHILDREN CIC.
Children and Young Peoples Services,Head of Education,Supplies and Services,324500,Provisions,03/04/2018,3418905-68196,697.50,J MORAN LTD T/A CAFFE VINCI.
Regeneration and Local Services,Technical Services,Third Party Payments,430127,Rendered by Private Contractors,03/04/2018,3418906-5305494,"3,057.50",JA GILSON (AGRICULTURAL CONTRACTORS) LTD.
Regeneration and Local Services,Technical Services,Supplies and Services,338027,Services,03/04/2018,3418907-B225H009-016,596.66,JACOBS UK LTD.
Regeneration and Local Services,Direct Services,Third Party Payments,430100,Rendered by Private Contractors,03/04/2018,3418912-14029,"1,035.00",JPS SYSTEMS N E LTD.
Regeneration and Local Services,Technical Services,Third Party Payments,430127,Rendered by Private Contractors,03/04/2018,3418914-6077,"20,321.50",JR TIPLADY.
Regeneration and Local Services,Technical Services,Supplies and Services,304221,Equipment and Materials,03/04/2018,3418915-BII250733,513.68,JT DOVE LTD.
Regeneration and Local Services,Technical Services,Supplies and Services,304221,Equipment and Materials,03/04/2018,3418915-BII250828,728.48,JT DOVE LTD.
Regeneration and Local Services,Technical Services,Supplies and Services,304221,Equipment and Materials,03/04/2018,3418915-BII250834,750.34,JT DOVE LTD.
Regeneration and Local Services,Direct Services,Supplies and Services,304221,Equipment and Materials,03/04/2018,3418915-G0I852/D,654.92,JT DOVE LTD.
Regeneration and Local Services,Technical Services,Third Party Payments,430100,Rendered by Private Contractors,03/04/2018,3418916-29793,"4,782.15",KAEFER LTD.
Regeneration and Local Services,Technical Services,Third Party Payments,430100,Rendered by Private Contractors,03/04/2018,3418916-29795,956.72,KAEFER LTD.
Regeneration and Local Services,Direct Services,Supplies and Services,304221,Equipment and Materials,03/04/2018,3418917-18201,"1,260.00",KAPOK (1988) LTD.
Regeneration and Local Services,Direct Services,Third Party Payments,430100,Rendered by Private Contractors,03/04/2018,3418918-943,"37,650.00",KARLIN TIMBER FRAME (NE) LTD.
Regeneration and Local Services,Spatial Policy Planning Assets & Environment,Supplies and Services,338027,Services,03/04/2018,3418922-ARINV/00277488,"4,908.00",LAMBERT SMITH HAMPTON.
Regeneration and Local Services,Technical Services,Supplies and Services,304221,Equipment and Materials,03/04/2018,3418924-340001,"2,768.00",LARSEN MANUFACTURING LTD T/A LARSEN BUILDING PRODUCTS.
Regeneration and Local Services,Technical Services,Stock,926900,Stock in hand-Inventory system,03/04/2018,3418928-NI034283,"2,048.60",LIGHT & ENERGY DISTRIBUTION LTD.
Children and Young Peoples Services,Childrens Services Operational Support,Intangible Assets,917001,Software capitalised licence fees,03/04/2018,3418930-0000021231,"1,600.00",LIQUIDLOGIC LTD.
Children and Young Peoples Services,Head of Looked After Provision Permanence and Care Leavers,Supplies and Services,308011,Furniture,03/04/2018,3418936-296165,"2,208.00",LOW FELL REMOVALS.
Regeneration and Local Services,Culture & Sport,Supplies and Services,338047,Services,03/04/2018,3418937-470,"1,100.00",LUNA CREATIVE LTD.
Regeneration and Local Services,Culture & Sport,Supplies and Services,324001,Provisions,03/04/2018,3418948-904409503,951.55,MOLSON COORS BREWING COMPANY (UK) LTD.
Regeneration and Local Services,Culture & Sport,Supplies and Services,324117,Provisions,03/04/2018,3418948-904406533,972.03,MOLSON COORS BREWING COMPANY (UK) LTD.
Resources - C A C,LCTSS,Third Party Payments,440070,Other Third Party Payments,03/04/2018,3418949-RES-03-2018-116A,"19,231.00",MONK HESLEDEN PARISH COUNCIL.
Resources - C A C,LCTSS,Third Party Payments,440070,Other Third Party Payments,03/04/2018,3418956-RES-03-2018-136A,"20,814.50",MURTON PARISH COUNCIL.
Regeneration and Local Services,Technical Services,Third Party Payments,430127,Rendered by Private Contractors,03/04/2018,3418957-4444,"1,602.00",N FLETCHER.
Regeneration and Local Services,Technical Services,Third Party Payments,430127,Rendered by Private Contractors,03/04/2018,3418957-4447,"2,704.50",N FLETCHER.
Regeneration and Local Services,Technical Services,Third Party Payments,430127,Rendered by Private Contractors,03/04/2018,3418957-4449,"7,078.00",N FLETCHER.
Regeneration and Local Services,Technical Services,Third Party Payments,430127,Rendered by Private Contractors,03/04/2018,3418957-4450,"7,591.00",N FLETCHER.
Regeneration and Local Services,Technical Services,Third Party Payments,430128,Rendered by Private Contractors,03/04/2018,3418957-4445,"2,450.50",N FLETCHER.
Regeneration and Local Services,Technical Services,Third Party Payments,430128,Rendered by Private Contractors,03/04/2018,3418957-4446,"3,146.00",N FLETCHER.
Regeneration and Local Services,Direct Services,Supplies and Services,304221,Equipment and Materials,03/04/2018,3418959-064010,"3,819.00",NEW ROW FARM NURSERIES.
Regeneration and Local Services,Direct Services,Supplies and Services,304221,Equipment and Materials,03/04/2018,3418959-064012,"4,581.00",NEW ROW FARM NURSERIES.
Regeneration and Local Services,Direct Services,Supplies and Services,304221,Equipment and Materials,03/04/2018,3418959-064013,"3,741.15",NEW ROW FARM NURSERIES.
Children and Young Peoples Services,Head of Looked After Provision Permanence and Care Leavers,Supplies and Services,336005,Advertising,03/04/2018,3418961-23420428A,"1,047.04",NEWSQUEST (YORKSHIRE & NORTH EAST) LTD.
Resources - C A C,LCTSS,Third Party Payments,440070,Other Third Party Payments,03/04/2018,3418964-RES-03-2018-112A,542.00,NORTH LODGE PARISH COUNCIL.
Regeneration and Local Services,Transport and Contracted Services,Supplies and Services,384899,Miscellaneous Expenses,03/04/2018,3418966-210002568,"28,790.00",NORTH YORKSHIRE COUNTY COUNCIL.
Regeneration and Local Services,Transport and Contracted Services,Third Party Payments,430100,Rendered by Private Contractors,03/04/2018,3418973-00001030,"25,720.95",NSL LTD.
Regeneration and Local Services,Transport and Contracted Services,Third Party Payments,430100,Rendered by Private Contractors,03/04/2018,3418973-00001031,802.83,NSL LTD.
Regeneration and Local Services,Transport and Contracted Services,Third Party Payments,430100,Rendered by Private Contractors,03/04/2018,3418973-00001032,"49,158.84",NSL LTD.
Regeneration and Local Services,Transport and Contracted Services,Third Party Payments,430100,Rendered by Private Contractors,03/04/2018,3418973-00001033,"3,074.34",NSL LTD.
Regeneration and Local Services,Transport and Contracted Services,Third Party Payments,430100,Rendered by Private Contractors,03/04/2018,3418973-00001034,"5,015.27",NSL LTD.
Regeneration and Local Services,Transport and Contracted Services,Third Party Payments,430100,Rendered by Private Contractors,03/04/2018,3418973-00001035,"16,513.68",NSL LTD.
Regeneration and Local Services,Transport and Contracted Services,Third Party Payments,430100,Rendered by Private Contractors,03/04/2018,3418973-00001036,"5,319.66",NSL LTD.
Regeneration and Local Services,Transport and Contracted Services,Third Party Payments,430108,Rendered by Private Contractors,03/04/2018,3418977-20074,"3,942.00",NW SECURITY GROUP LTD.
Adult and Health Services,Head of Adults,Third Party Payments,478151,Purchase of Care,03/04/2018,3418978-31947,"1,832.36",OAKLEA TRUST.
Regeneration and Local Services,Direct Services,Transport,215005,Running Costs of Vehicles,03/04/2018,3418979-314383,"14,332.50",OIL NRG LTD.
Regeneration and Local Services,Direct Services,Transport,215005,Running Costs of Vehicles,03/04/2018,3418979-314387,"1,951.00",OIL NRG LTD.
Regeneration and Local Services,Direct Services,Transport,215022,Running Costs of Vehicles,03/04/2018,3418979-314384,"1,500.00",OIL NRG LTD.
Regeneration and Local Services,Direct Services,Transport,215022,Running Costs of Vehicles,03/04/2018,3418979-314386,507.50,OIL NRG LTD.
Regeneration and Local Services,Direct Services,Transport,215022,Running Costs of Vehicles,03/04/2018,3418979-314388,507.50,OIL NRG LTD.
Resources,Corporate Finance & Commercial Services,Supplies and Services,342051,Computers and Communications,03/04/2018,3418980-1639559,"124,994.89",ORACLE CORPORATION UK LTD.
Transformation and Partnerships,Comms & Information Management,Supplies and Services,338099,Services,03/04/2018,3418981-OHS17013,"1,680.00",ORACLE HERITAGE SERVICES.
Regeneration and Local Services,Technical Services,Stock,926900,Stock in hand-Inventory system,03/04/2018,3418983-XL219046,"1,150.00",PARK ELECTRICAL DISTRIBUTORS LTD.
Regeneration and Local Services,Technical Services,Stock,926900,Stock in hand-Inventory system,03/04/2018,3418983-XL219147,"1,725.00",PARK ELECTRICAL DISTRIBUTORS LTD.
Regeneration and Local Services,Technical Services,Stock,926900,Stock in hand-Inventory system,03/04/2018,3418983-XL219251,912.00,PARK ELECTRICAL DISTRIBUTORS LTD.
Regeneration and Local Services,Economic Development and Housing,Third Party Payments,440999,Other Third Party Payments,03/04/2018,3418984-24270534,"1,280.50",PARK RETAIL LTD.
Children and Young Peoples Services,Head of Early Help Assessment and Safeguarding,Third Party Payments,425020,Rendered by Voluntary Organisations,03/04/2018,3418987-35060,"4,596.60",PERCY HEDLEY FOUNDATION.
Adult and Health Services,Head of Adults,Third Party Payments,470101,Purchase of Care,03/04/2018,3418987-35056,"1,967.60",PERCY HEDLEY FOUNDATION.
Adult and Health Services,Head of Adults,Third Party Payments,470101,Purchase of Care,03/04/2018,3418987-35057,"4,188.40",PERCY HEDLEY FOUNDATION.
Adult and Health Services,Head of Adults,Third Party Payments,470101,Purchase of Care,03/04/2018,3418987-35058,952.80,PERCY HEDLEY FOUNDATION.
Regeneration and Local Services,Technical Services,Third Party Payments,430128,Rendered by Private Contractors,03/04/2018,3418988-4500,"2,267.75",PETER MONKHOUSE HAULAGE.
Children and Young Peoples Services,Head of Looked After Provision Permanence and Care Leavers,Supplies and Services,338099,Services,03/04/2018,3418991-201704,500.00,PHILIP CARMEDY-PYE T/A PCP TRAINING SERVICES.
Regeneration and Local Services,Technical Services,Supplies and Services,304221,Equipment and Materials,03/04/2018,3418996-108086,550.00,PROTECTOR SECURITY GROUP LTD.
Dedicated Schools Grant,DSG High Needs Block,Employees,080025,Agency Staff,03/04/2018,3418997-51267823,806.00,PROTOCOL EDUCATION LTD.
Adult and Health Services,Public Health,Premises,145009,Cleaning and Domestic Supplies,03/04/2018,3418999-21070,740.25,QUALITY CLEANING SERVICES (NORTHERN) LTD.
Adult and Health Services,Public Health,Premises,145009,Cleaning and Domestic Supplies,03/04/2018,3418999-21073,972.00,QUALITY CLEANING SERVICES (NORTHERN) LTD.
Adult and Health Services,Head of Adults,Supplies and Services,308011,Furniture,03/04/2018,3419001-CLG2051,"1,745.00",RENDLES HOUSE FURNISHER.
Adult and Health Services,Head of Adults,Supplies and Services,308011,Furniture,03/04/2018,3419001-CLG2056,754.45,RENDLES HOUSE FURNISHER.
Regeneration and Local Services,Culture & Sport,Supplies and Services,324117,Provisions,03/04/2018,3419002-5672,515.78,RETAIL LEISURE UK LTD T/A EMPIRE POPCORN.*
Regeneration and Local Services,Technical Services,Third Party Payments,430127,Rendered by Private Contractors,03/04/2018,3419009-1499,"2,481.50",S & R LANDSCAPES.
Children and Young Peoples Services,Head of Education,Transfer Payments,510027,School Children,03/04/2018,3419015-3318,"2,131.00",SEAHAM EASTLEA & DISTRICT COMMUNITY ASSOCIATION.
Children and Young Peoples Services,Head of Education,Transfer Payments,510027,School Children,03/04/2018,3419015-3331,668.00,SEAHAM EASTLEA & DISTRICT COMMUNITY ASSOCIATION.
Children and Young Peoples Services,Head of Early Help Assessment and Safeguarding,Premises,108099,Service Repairs and Maintenance,03/04/2018,3419016-22/1/18,"4,000.00",SEAHAM YOUTH CENTRE.
Resources - C A C,LCTSS,Third Party Payments,440070,Other Third Party Payments,03/04/2018,3419018-RES-03-2018-094A,"5,586.00",SEDGEFIELD TOWN COUNCIL.
Resources,Digital and Customer Services,Supplies and Services,340001,Postages,03/04/2018,3419019-82944,"2,850.00",SERVICE LEVEL MANAGEMENT LTD.
Resources - C A C,LCTSS,Third Party Payments,440070,Other Third Party Payments,03/04/2018,3419020-RES-03-2018-101A,"1,063.00",SHADFORTH PARISH COUNCIL.
Dedicated Schools Grant,DSG High Needs Block,Supplies and Services,384199,Miscellaneous Expenses,03/04/2018,3419021-07,510.00,SHARON HOWARD T/A SH COUNSELLING SERVICES.
Resources - C A C,LCTSS,Third Party Payments,440070,Other Third Party Payments,03/04/2018,3419022-RES-03-2018-114A,"3,134.00",SHERBURN VILLAGE PARISH COUNCIL.
Resources - C A C,LCTSS,Third Party Payments,440070,Other Third Party Payments,03/04/2018,3419023-RES-03-2018-095A,"52,368.50",SHILDON TOWN COUNCIL.
Regeneration and Local Services,Direct Services,Supplies and Services,304221,Equipment and Materials,03/04/2018,3419026-00582802,890.00,SIG TRADING LTD T/A CARPET & FLOORING LTD.*
Regeneration and Local Services,Direct Services,Supplies and Services,304221,Equipment and Materials,03/04/2018,3419026-00582803,"4,900.00",SIG TRADING LTD T/A CARPET & FLOORING LTD.*
Resources - C A C,LCTSS,Third Party Payments,440070,Other Third Party Payments,03/04/2018,3419030-RES-03-2018-105A,"13,015.00",SOUTH HETTON PARISH COUNCIL.
Dedicated Schools Grant,DSG High Needs Block,Third Party Payments,440080,Other Third Party Payments,03/04/2018,3419031-SLINV/00003599,"4,179.92",SOUTH TYNESIDE COLLEGE.
Resources - C A C,LCTSS,Third Party Payments,440070,Other Third Party Payments,03/04/2018,3419033-RES-03-2018-089A,"4,052.00",SPENNYMOOR TOWN COUNCIL.
Regeneration and Local Services,Culture & Sport,Supplies and Services,304259,Equipment and Materials,03/04/2018,3419036-00341212,"1,270.24",STAGE ELECTRICS.
Regeneration and Local Services,Transport and Contracted Services,Third Party Payments,430106,Rendered by Private Contractors,03/04/2018,3419040-49974,"4,800.00",STANLEY TRAVEL (NORTH EAST) LTD.
Regeneration and Local Services,Technical Services,Supplies and Services,304221,Equipment and Materials,03/04/2018,3419043-103495,"2,793.32",STONEGRAVE AGGREGATES LTD.
Regeneration and Local Services,Technical Services,Supplies and Services,304221,Equipment and Materials,03/04/2018,3419043-103592,810.88,STONEGRAVE AGGREGATES LTD.
Children and Young Peoples Services,Head of Education,Supplies and Services,328041,Clothing Uniforms and Laundry,03/04/2018,3419046-INI01760,"2,271.01",SWIFT INDUSTRIAL SUPPLIES LTD.
Regeneration and Local Services,Direct Services,Supplies and Services,304221,Equipment and Materials,03/04/2018,3419047-2655201,756.00,T CROSSLING & CO LTD.
Dedicated Schools Grant,DSG High Needs Block,Supplies and Services,352001,Conference Expenses,03/04/2018,3419048-INV-5820,900.00,TALKING MATS LTD.
Children and Young Peoples Services,Head of Looked After Provision Permanence and Care Leavers,Employees,080025,Agency Staff,03/04/2018,3419050-2153851,990.00,TEACHING PERSONNEL LTD.
Children and Young Peoples Services,Head of Looked After Provision Permanence and Care Leavers,Third Party Payments,486054,Service Level Agreements,03/04/2018,3419051-4810011974,"7,294.17",TEES ESK & WEAR VALLEYS NHS FOUNDATION TRUST.
Adult and Health Services,Public Health,Supplies and Services,352001,Conference Expenses,03/04/2018,3419056-5099,753.50,THE DURHAM CENTRE LTD.
Adult and Health Services,Public Health,Supplies and Services,338094,Services,03/04/2018,3419056-5101,532.50,THE DURHAM CENTRE LTD.
Regeneration and Local Services,Economic Development and Housing,Premises,120009,Energy Costs,03/04/2018,3419058-004003205,942.17,THE PHONE CO-OP.
Resources - C A C,LCTSS,Third Party Payments,440070,Other Third Party Payments,03/04/2018,3419061-RES-03-2018-075A,"8,960.00",THORNLEY PARISH COUNCIL.
Regeneration and Local Services,Technical Services,Stock,926900,Stock in hand-Inventory system,03/04/2018,3419065-100655,"2,684.73",TOTAL RENTAL SOLUTIONS.
Resources - C A C,LCTSS,Third Party Payments,440070,Other Third Party Payments,03/04/2018,3419067-RES-03-2018-076A,"4,262.00",TOW LAW TOWN COUNCIL.
Resources - C A C,LCTSS,Third Party Payments,440070,Other Third Party Payments,03/04/2018,3419069-RES-03-2018-107A,"11,390.50",TRIMDON PARISH COUNCIL.
Regeneration and Local Services,Technical Services,Third Party Payments,430128,Rendered by Private Contractors,03/04/2018,3419071-TUC033900,"2,152.50",TUC PLANT HIRE LTD.
Regeneration and Local Services,Technical Services,Third Party Payments,430128,Rendered by Private Contractors,03/04/2018,3419071-TUC033901,"2,130.00",TUC PLANT HIRE LTD.
Regeneration and Local Services,Direct Services,Supplies and Services,304221,Equipment and Materials,03/04/2018,3419073-INV-0015,983.00,UK HEATING & ENGINEERING LTD.
Regeneration and Local Services,Technical Services,Construction Work,908105,Construction work,03/04/2018,3419074-095973,"2,237.25",UNIPART DORMAN.
Regeneration and Local Services,Technical Services,Third Party Payments,430100,Rendered by Private Contractors,03/04/2018,3419078-21590,"2,550.00",WARD TIMBER LTD.
Resources - C A C,LCTSS,Third Party Payments,440070,Other Third Party Payments,03/04/2018,3419079-RES-03-2018-078A,"3,781.00",WEST AUCKLAND PARISH COUNCIL.
Resources - C A C,LCTSS,Third Party Payments,440070,Other Third Party Payments,03/04/2018,3419080-RES-03-2018-033A,"20,143.00",WHEATLEY HILL PARISH COUNCIL.
Resources - C A C,LCTSS,Third Party Payments,440070,Other Third Party Payments,03/04/2018,3419083-RES-03-2018-129A,"16,665.00",WINGATE PARISH COUNCIL.
Resources - C A C,LCTSS,Third Party Payments,440070,Other Third Party Payments,03/04/2018,3419084-RES-03-2018-082A,"1,137.00",WITTON GILBERT PARISH COUNCIL.
Regeneration and Local Services,Direct Services,Supplies and Services,304221,Equipment and Materials,03/04/2018,3419085-50652615,701.09,WOLSELEY UK LTD.
Resources - C A C,LCTSS,Third Party Payments,440070,Other Third Party Payments,03/04/2018,3419086-RES-03-2018-099A,834.00,WOLSINGHAM PARISH COUNCIL.
Regeneration and Local Services,Culture & Sport,Supplies and Services,338099,Services,03/04/2018,3419088-8861,540.00,WORLD OF RIDES.
Resources,Digital and Customer Services,Vehicles Equipment Furniture and Fittings,912701,Computer equipment,03/04/2018,3419090-CM04981,884.40,XMA LTD.
Dedicated Schools Grant,DSG High Needs Block,Supplies and Services,342033,Computers and Communications,03/04/2018,3419090-CM08823,884.40,XMA LTD.
Resources,Legal & Democratic Services,Supplies and Services,342051,Computers and Communications,03/04/2018,3419091-2018154,"38,667.89",XPRESS SOFTWARE SOLUTIONS LTD.
Resources,Legal & Democratic Services,Supplies and Services,338042,Services,03/04/2018,3419094-INV/RE31,"1,250.00",ZENITH CHAMBERS.
Regeneration and Local Services,Economic Development and Housing,Supplies and Services,384437,Miscellaneous Expenses,04/04/2018,3419101-A4590632,"1,743.00",AIR FRANCE KLM DELTA.
Regeneration and Local Services,Direct Services,Third Party Payments,430100,Rendered by Private Contractors,04/04/2018,3419102-R132/18/91459,"1,114.00",ALAN M RANSON FUNERAL SERVICE.
Regeneration and Local Services,Direct Services,Third Party Payments,430100,Rendered by Private Contractors,04/04/2018,3419102-R158/18/91461,950.00,ALAN M RANSON FUNERAL SERVICE.
Regeneration and Local Services,Direct Services,Third Party Payments,430100,Rendered by Private Contractors,04/04/2018,3419102-R164/18/91458,"1,114.00",ALAN M RANSON FUNERAL SERVICE.
Resources - C A C,LCTSS,Third Party Payments,440070,Other Third Party Payments,04/04/2018,3419112-RES-03-2018-117A,"1,201.00",BEARPARK PARISH COUNCIL.
Regeneration and Local Services,Direct Services,Supplies and Services,304221,Equipment and Materials,04/04/2018,3419114-C17185,"2,940.00",BENCHMARK CONTROL LTD.
Children and Young Peoples Services,Head of Education,Transfer Payments,510027,School Children,04/04/2018,3419116-CSINV/00001889,805.86,BISHOP AUCKLAND COLLEGE.
Children and Young Peoples Services,Head of Education,Transfer Payments,510027,School Children,04/04/2018,3419116-CSINV/00001890,"1,660.56",BISHOP AUCKLAND COLLEGE.
Regeneration and Local Services,Transport and Contracted Services,Construction Work,908105,Construction work,04/04/2018,3419120-NO24638,"2,903.48",BUS SHELTERS LTD.
Regeneration and Local Services,Economic Development and Housing,Supplies and Services,338027,Services,04/04/2018,3419121-12153,"1,300.00",BUSINESS & ENTERPRISE COMMERCIAL LTD T/A BE GROUP.
Regeneration and Local Services,Economic Development and Housing,Supplies and Services,384700,Miscellaneous Expenses,04/04/2018,3419127-01/03/2017,"2,033.14",CDC ENTERPRISE AGENCY.
Regeneration and Local Services,Economic Development and Housing,Supplies and Services,384700,Miscellaneous Expenses,04/04/2018,3419127-01/06/2017,"2,033.14",CDC ENTERPRISE AGENCY.
Regeneration and Local Services,Economic Development and Housing,Supplies and Services,384700,Miscellaneous Expenses,04/04/2018,3419127-01/09/16,"2,033.14",CDC ENTERPRISE AGENCY.
Regeneration and Local Services,Economic Development and Housing,Supplies and Services,384700,Miscellaneous Expenses,04/04/2018,3419127-01/09/17,"2,033.14",CDC ENTERPRISE AGENCY.
Regeneration and Local Services,Economic Development and Housing,Supplies and Services,384700,Miscellaneous Expenses,04/04/2018,3419127-01/12/16,"2,033.14",CDC ENTERPRISE AGENCY.
Regeneration and Local Services,Economic Development and Housing,Supplies and Services,384700,Miscellaneous Expenses,04/04/2018,3419127-01/12/17-MARCH18,"2,033.14",CDC ENTERPRISE AGENCY.
Regeneration and Local Services,Economic Development and Housing,Supplies and Services,384700,Miscellaneous Expenses,04/04/2018,3419127-05/03/2018,"2,033.14",CDC ENTERPRISE AGENCY.
Regeneration and Local Services,Technical Services,Stock,926004,Stock,04/04/2018,3419132-400008083,"4,581.99",CLEVELAND POTASH LTD T/A ICL FERTILIZERS.
Resources - C A C,LCTSS,Third Party Payments,440070,Other Third Party Payments,04/04/2018,3419134-RES-03-2018-034A,"2,808.00",COCKFIELD PARISH COUNCIL.
Regeneration and Local Services,Culture & Sport,Supplies and Services,338047,Services,04/04/2018,3419135-8976/M,"2,131.25",COMEDY STORE MANAGEMENT T/A THE COMEDY STORE LTD.
Resources - C A C,LCTSS,Third Party Payments,440070,Other Third Party Payments,04/04/2018,309339-RES-03-2018-104A,"20,342.00",CORNFORTH PARISH COUNCIL.
Resources - C A C,LCTSS,Third Party Payments,440070,Other Third Party Payments,04/04/2018,3419144-RES-03-2018-045A,697.00,CROXDALE & HETT PARISH COUNCIL.
Regeneration and Local Services,Technical Services,Stock,926900,Stock in hand-Inventory system,04/04/2018,3419149-334005,719.46,DACRYLATE PAINTS LTD.
Dedicated Schools Grant,DSG High Needs Block,Third Party Payments,440080,Other Third Party Payments,04/04/2018,3419150-SLINV/00001899,"1,913.85",DARLINGTON COLLEGE.
Regeneration and Local Services,Direct Services,Transport,215013,Running Costs of Vehicles,04/04/2018,3419152-D100147,"6,345.00",DENNIS EAGLE LTD.
Regeneration and Local Services,Direct Services,Transport,215013,Running Costs of Vehicles,04/04/2018,3419152-D100148,"5,640.00",DENNIS EAGLE LTD.
Regeneration and Local Services,Direct Services,Transport,215013,Running Costs of Vehicles,04/04/2018,3419152-D99611,"5,640.00",DENNIS EAGLE LTD.
Regeneration and Local Services,Spatial Policy Planning Assets & Environment,Supplies and Services,372009,Subscriptions,04/04/2018,3419160-11928,"5,806.51",DISTRICT SURVEYORS LTD T/A LABC.
Resources,Legal & Democratic Services,Supplies and Services,338057,Services,04/04/2018,3419163-CORONERFEB2018,600.00,DR DCA SENADHIRA.
Adult and Health Services,Head of Adults,Supplies and Services,338045,Services,04/04/2018,3419164-17/18-161,"1,410.90",DR STEPHANIE HILL.
Children and Young Peoples Services,Head of Early Help Assessment and Safeguarding,Supplies and Services,338044,Services,04/04/2018,3419165-SI-156,"1,528.80",DR SUSAN COOPER.
Regeneration and Local Services,Culture & Sport,Supplies and Services,338047,Services,04/04/2018,3419167-4100612835,"1,440.00",DURHAM CHORAL SOCIETY.
Resources - C A C,LCTSS,Third Party Payments,440070,Other Third Party Payments,04/04/2018,3419172-RES-03-2018-047A,"1,074.00",EDMONDSLEY PARISH COUNCIL.
Resources - C A C,LCTSS,Third Party Payments,440070,Other Third Party Payments,04/04/2018,3419176-RES-03-2018-049A,"1,910.00",ELDON PARISH COUNCIL.
Adult and Health Services,Head of Adults,Third Party Payments,478101,Purchase of Care,04/04/2018,3419179-10620,"7,739.18",ESSENTIAL CARE & SUPPORT LTD.
Adult and Health Services,Head of Adults,Third Party Payments,478101,Purchase of Care,04/04/2018,3419179-10622,"4,834.70",ESSENTIAL CARE & SUPPORT LTD.
Dedicated Schools Grant,DSG High Needs Block,Construction Work,908105,Construction work,04/04/2018,3419187-107650171,"4,672.00",GATESHEAD COUNCIL.
Regeneration and Local Services,Technical Services,Third Party Payments,430127,Rendered by Private Contractors,04/04/2018,3419189-10043,"12,155.00",GJ CONTRACTORS.
Resources,Digital and Customer Services,Supplies and Services,304303,Equipment and Materials,04/04/2018,3419197-INV0170086,"1,012.00",GV MULTIMEDIA LTD.
Resources,Digital and Customer Services,Supplies and Services,304303,Equipment and Materials,04/04/2018,3419197-INV0170087,806.00,GV MULTIMEDIA LTD.
Children and Young Peoples Services,Head of Early Help Assessment and Safeguarding,Third Party Payments,486020,Service Level Agreements,04/04/2018,3419201-260,"1,988.53",HOME ON THE RANGE LTD.
Children and Young Peoples Services,Head of Early Help Assessment and Safeguarding,Third Party Payments,486020,Service Level Agreements,04/04/2018,3419201-272-DEC2017,"1,748.10",HOME ON THE RANGE LTD.
Children and Young Peoples Services,Head of Early Help Assessment and Safeguarding,Third Party Payments,486020,Service Level Agreements,04/04/2018,3419201-284,664.20,HOME ON THE RANGE LTD.
Resources - C A C,LCTSS,Third Party Payments,440070,Other Third Party Payments,04/04/2018,3419205-RES-03-2018-055A,"4,156.00",HUTTON HENRY PARISH COUNCIL.
Regeneration and Local Services,Technical Services,Third Party Payments,430127,Rendered by Private Contractors,04/04/2018,3419212-1502/2017,"2,875.50",J & JG GILL & SONS LTD.
Regeneration and Local Services,Technical Services,Construction Work,908108,Capital - Surface Dressing,04/04/2018,3419214-21370,"4,042.91",JACK COUPE & SONS LTD T/A COUPE LINE.
Regeneration and Local Services,Technical Services,Construction Work,908108,Capital - Surface Dressing,04/04/2018,3419214-21371,"1,927.10",JACK COUPE & SONS LTD T/A COUPE LINE.
Regeneration and Local Services,Technical Services,Supplies and Services,304221,Equipment and Materials,04/04/2018,3419224-B11251057,650.84,JT DOVE LTD.
Regeneration and Local Services,Direct Services,Supplies and Services,304221,Equipment and Materials,04/04/2018,3419224-G0I856/D,"6,791.00",JT DOVE LTD.
Regeneration and Local Services,Technical Services,Supplies and Services,304999,Equipment and Materials,04/04/2018,3419224-B11251059,747.00,JT DOVE LTD.
Adult and Health Services,Head of Adults,Third Party Payments,473101,Purchase of Care,04/04/2018,3419226-CAS-03-2018-289,"7,312.30",KAYDAR CARE HOME.
Resources - C A C,LCTSS,Third Party Payments,440070,Other Third Party Payments,04/04/2018,3419227-RES-03-2018-058A,"1,831.00",KELLOE PARISH COUNCIL.
Regeneration and Local Services,Technical Services,Stock,926900,Stock in hand-Inventory system,04/04/2018,3419240-126057,"2,822.00",MALLATITE LTD T/A MALLATITE PLASTICS LTD.
Resources - C A C,LCTSS,Third Party Payments,440070,Other Third Party Payments,04/04/2018,3419246-RES-03-2018-118A,658.00,MIDDRIDGE PARISH COUNCIL.
Regeneration and Local Services,Culture & Sport,Supplies and Services,324001,Provisions,04/04/2018,3419250-904363503,"2,375.31",MOLSON COORS BREWING COMPANY (UK) LTD.
Regeneration and Local Services,Culture & Sport,Supplies and Services,324001,Provisions,04/04/2018,3419250-904369645,"1,686.17",MOLSON COORS BREWING COMPANY (UK) LTD.
Children and Young Peoples Services,Head of Looked After Provision Permanence and Care Leavers,Third Party Payments,440039,Other Third Party Payments,04/04/2018,3419252-12/2-11/3/18,869.44,MOVING ON DURHAM.
Resources,Legal & Democratic Services,Supplies and Services,338042,Services,04/04/2018,309352-337269/INVCMC141,540.00,MR CHRIS MCKEE.
Resources,Legal & Democratic Services,Supplies and Services,338042,Services,04/04/2018,309354-INV/JEM39,"1,250.00",MR JOHN MYERS.
Transformation and Partnerships,Comms & Information Management,Supplies and Services,384540,Miscellaneous Expenses,04/04/2018,3419265-338318/0,"18,596.14",NATIONAL LEAFLET CO LTD.
Regeneration and Local Services,Economic Development and Housing,Supplies and Services,340001,Postages,04/04/2018,3419266-RED-04-2018-036,"1,500.00",NEOPOST CREDIFON.
Resources,Digital and Customer Services,Supplies and Services,344033,Telephones,04/04/2018,3419269-202525,975.03,NETWORKS 2 BUSINESS LTD.
Children and Young Peoples Services,Head of Education,Supplies and Services,384199,Miscellaneous Expenses,04/04/2018,3419274-0000035948,"3,007.00",NORTH EAST AUTISM SOCIETY.
Adult and Health Services,Head of Adults,Third Party Payments,470101,Purchase of Care,04/04/2018,3419274-0000035898,"1,333.58",NORTH EAST AUTISM SOCIETY.
Adult and Health Services,Commissioning inc Supporting People,Supplies and Services,324117,Provisions,04/04/2018,3419277-140911,711.12,NORTH EAST VENDING LTD.
Regeneration and Local Services,Direct Services,Third Party Payments,430100,Rendered by Private Contractors,04/04/2018,3419278-6598-77,"1,043.85",OPUS BUILDING SERVICES LTD.
Resources - C A C,LCTSS,Third Party Payments,440070,Other Third Party Payments,04/04/2018,3419279-RES-03-2018-066A,845.00,OUSTON PARISH COUNCIL.
Regeneration and Local Services,Technical Services,Stock,926900,Stock in hand-Inventory system,04/04/2018,3419283-XL219291,565.36,PARK ELECTRICAL DISTRIBUTORS LTD.
Resources - C A C,LCTSS,Third Party Payments,440070,Other Third Party Payments,04/04/2018,3419288-RES-03-2018-088A,"128,775.50",PETERLEE TOWN COUNCIL.
Adult and Health Services,Head of Adults,Third Party Payments,478151,Purchase of Care,04/04/2018,3419295-3773,"1,788.40",POTENSIAL LTD T/A POTENS
Regeneration and Local Services,Technical Services,Third Party Payments,430100,Rendered by Private Contractors,04/04/2018,3419296-151121,"25,740.05",PREMIER TRAFFIC MANAGEMENT LTD.
Regeneration and Local Services,Technical Services,Third Party Payments,430128,Rendered by Private Contractors,04/04/2018,309363-8,"7,250.50",RE SHANN.
Children and Young Peoples Services,Head of Education,Transfer Payments,510028,School Children,04/04/2018,3419301-AU103,"5,000.00",REDKITE INNOVATIONS LTD.
Regeneration and Local Services,Direct Services,Supplies and Services,304259,Equipment and Materials,04/04/2018,3419303-RSIN0250723,"1,060.00",RIGBY TAYLOR LTD.
Regeneration and Local Services,Business Support,Supplies and Services,340001,Postages,04/04/2018,3419311-9056201063,"3,193.85",ROYAL MAIL GROUP PLC.
Resources,Legal & Democratic Services,Supplies and Services,340001,Postages,04/04/2018,3419311-9056212188,"2,180.50",ROYAL MAIL GROUP PLC.
Regeneration and Local Services,Economic Development and Housing,Supplies and Services,344033,Telephones,04/04/2018,3419313-0050995,618.38,RUSSELL NETWORK SOLUTIONS LTD.
Resources - C A C,LCTSS,Third Party Payments,440070,Other Third Party Payments,04/04/2018,3419314-RES-03-2018-111A,"5,344.00",SACRISTON PARISH COUNCIL.
Transformation and Partnerships,Partnerships & Community Engagement Div.,Supplies and Services,384086,Miscellaneous Expenses,04/04/2018,3419315-LIDH01-18-WILS01-18,950.00,SACRISTON YOUTH PROJECT.
Resources - C A C,LCTSS,Third Party Payments,440070,Other Third Party Payments,04/04/2018,3419322-RES-03-2018-126A,"77,544.50",SEAHAM TOWN COUNCIL.
Resources,Digital and Customer Services,Supplies and Services,342051,Computers and Communications,04/04/2018,3419323-0033601519,"30,320.00",SERVELEC SYNERGY LTD.
Regeneration and Local Services,Technical Services,Construction Work,908112,Capital - Drainage,04/04/2018,3419325-19087,"6,319.61",SEYMOUR (CIVIL ENGINEERING CONTRACTORS) LTD.
Regeneration and Local Services,Direct Services,Supplies and Services,384999,Miscellaneous Expenses,04/04/2018,3419329-RES-04-2018-001,"2,700.00",STANHOPE PARISH COUNCIL.
Children and Young Peoples Services,Central Charges (CYPS),Central Support and Capital,615208,Support Services,04/04/2018,3419331-RES-04-2018-020,"8,918.43",STANLEY LEARNING PARTNERSHIP.
Resources - C A C,LCTSS,Third Party Payments,440070,Other Third Party Payments,04/04/2018,3419332-RES-03-2018-073A,"58,566.00",STANLEY TOWN COUNCIL.
Dedicated Schools Grant,DSG High Needs Block,Third Party Payments,410037,Rendered by Other Local Authorities,04/04/2018,3419334-2807026796,"4,073.54",SUNDERLAND CITY COUNCIL.
Children and Young Peoples Services,Head of Early Help Assessment and Safeguarding,Third Party Payments,425023,Rendered by Voluntary Organisations,04/04/2018,3419342-6919,"3,104.45",THE ROYAL NATIONAL COLLEGE FOR THE BLIND.
Regeneration and Local Services,Technical Services,Supplies and Services,304221,Equipment and Materials,04/04/2018,3419346-107166,"1,871.84",TOFCO LTD.
Regeneration and Local Services,Direct Services,Supplies and Services,304221,Equipment and Materials,04/04/2018,3419347-113927,709.68,TOMMY WARDLE.
Regeneration and Local Services,Technical Services,Stock,926900,Stock in hand-Inventory system,04/04/2018,3419349-100587,"1,212.48",TOTAL RENTAL SOLUTIONS.
Regeneration and Local Services,Technical Services,Stock,926900,Stock in hand-Inventory system,04/04/2018,3419349-100588,"2,641.31",TOTAL RENTAL SOLUTIONS.
Regeneration and Local Services,Technical Services,Stock,926900,Stock in hand-Inventory system,04/04/2018,3419349-100744,"3,563.40",TOTAL RENTAL SOLUTIONS.
Regeneration and Local Services,Technical Services,Stock,926900,Stock in hand-Inventory system,04/04/2018,3419349-100745,"2,814.23",TOTAL RENTAL SOLUTIONS.
Resources - C A C,LCTSS,Third Party Payments,440070,Other Third Party Payments,04/04/2018,3419351-RES-03-2018-032A,"8,787.00",TRIMDON FOUNDRY PARISH COUNCIL.
Children and Young Peoples Services,Head of Looked After Provision Permanence and Care Leavers,Premises,150005,Apportioned Exps of Operational Blds,04/04/2018,3419354-DCC07,639.85,TYNE VIEW PROPERTY MANAGEMENT LTD.*
Regeneration and Local Services,Economic Development and Housing,Supplies and Services,372009,Subscriptions,04/04/2018,3419355-UKSPA3111,"1,450.00",UK SCIENCE PARK ASSOCIATION.
Children and Young Peoples Services,Head of Looked After Provision Permanence and Care Leavers,Supplies and Services,344033,Telephones,04/04/2018,3419356-204415,572.70,UNIFY BUSINESS SOLUTIONS LTD.
Resources - C A C,LCTSS,Third Party Payments,440070,Other Third Party Payments,04/04/2018,3419359-RES-03-2018-077A,"1,662.00",URPETH PARISH COUNCIL.
Regeneration and Local Services,Technical Services,Third Party Payments,430100,Rendered by Private Contractors,04/04/2018,3419361-248,"1,478.25",VINOVIUM ASSOCIATES LTD.
Regeneration and Local Services,Direct Services,Supplies and Services,304221,Equipment and Materials,04/04/2018,3419363-91003.,990.00,VISION TECHNIQUES (UK) LTD.
Resources - C A C,LCTSS,Third Party Payments,440070,Other Third Party Payments,04/04/2018,3419369-RES-03-2018-130A,"2,836.00",WEST RAINTON PARISH COUNCIL.
Regeneration and Local Services,Technical Services,Construction Work,908105,Construction work,04/04/2018,3419373-451942,597.30,WILLIAM SMITH GROUP 1832.
Regeneration and Local Services,Direct Services,Supplies and Services,384999,Miscellaneous Expenses,04/04/2018,3419377-RES-04-2018-002,"24,170.00",WOLSINGHAM PARISH COUNCIL.
Regeneration and Local Services,Technical Services,Supplies and Services,304221,Equipment and Materials,05/04/2018,3420121-26209701,825.13,AGGREGATE INDUSTRIES UK LTD.
Regeneration and Local Services,Technical Services,Supplies and Services,304221,Equipment and Materials,05/04/2018,3420121-26215243,"1,011.68",AGGREGATE INDUSTRIES UK LTD.
Resources,Legal & Democratic Services,Supplies and Services,338057,Services,05/04/2018,3420123-0000029486,"1,995.00",ALERE FORENSICS.
Resources,Legal & Democratic Services,Supplies and Services,338057,Services,05/04/2018,3420123-0000029809,900.00,ALERE FORENSICS.
Adult and Health Services,Public Health,Third Party Payments,460803,Contract Payments,05/04/2018,3420129-44-23735,766.00,AMS INTERNATIONAL.
Regeneration and Local Services,Technical Services,Supplies and Services,352001,Conference Expenses,05/04/2018,3420134-1617/830,"1,335.00",APSE.
Regeneration and Local Services,Culture & Sport,Supplies and Services,338047,Services,05/04/2018,3420136-6144,"2,846.00",AS AUDIO SERVICES.
Regeneration and Local Services,Culture & Sport,Supplies and Services,338047,Services,05/04/2018,3420136-6145,660.00,AS AUDIO SERVICES.
Regeneration and Local Services,Culture & Sport,Supplies and Services,338047,Services,05/04/2018,3420136-6146,"2,000.00",AS AUDIO SERVICES.
Regeneration and Local Services,Technical Services,Third Party Payments,430100,Rendered by Private Contractors,05/04/2018,3420139-1760002,"14,869.92",BCE NORTHERN LTD.
Regeneration and Local Services,Direct Services,Third Party Payments,430100,Rendered by Private Contractors,05/04/2018,3420141-46053317,"3,185.82",BELL TRUCK SALES LTD T/A BELL TRUCK & VAN.
Regeneration and Local Services,Direct Services,Transport,210057,Repair and Maintenance of Vehicles,05/04/2018,3420141-15127933,547.40,BELL TRUCK SALES LTD T/A BELL TRUCK & VAN.
Regeneration and Local Services,Economic Development and Housing,Supplies and Services,324117,Provisions,05/04/2018,3420144-79183319,532.75,BIDFOOD.
Regeneration and Local Services,Direct Services,Transport,210057,Repair and Maintenance of Vehicles,05/04/2018,3420154-SI170301,"6,671.17",BUNCE (ASHBURY) LTD.
Regeneration and Local Services,Direct Services,Supplies and Services,304221,Equipment and Materials,05/04/2018,3420162-484502,931.00,CARRS BILLINGTON AGRICULTURE.
Regeneration and Local Services,Direct Services,Third Party Payments,430100,Rendered by Private Contractors,05/04/2018,3420172-209209,706.11,CHATFIELDS T/A EVANS HALSHAW.
Regeneration and Local Services,Direct Services,Transport,210057,Repair and Maintenance of Vehicles,05/04/2018,3420174-550283295,"1,516.36",CHEMETALL PLC.
Children and Young Peoples Services,Head of Looked After Provision Permanence and Care Leavers,Third Party Payments,440038,Other Third Party Payments,05/04/2018,3420178-1927,857.90,CITY OF SUNDERLAND YMCA LTD.
Regeneration and Local Services,Technical Services,Stock,926004,Stock,05/04/2018,3420181-400008084,"1,808.10",CLEVELAND POTASH LTD T/A ICL FERTILIZERS.
Regeneration and Local Services,Technical Services,Stock,926004,Stock,05/04/2018,3420181-400008191,"3,338.37",CLEVELAND POTASH LTD T/A ICL FERTILIZERS.
Regeneration and Local Services,Economic Development and Housing,Premises,120021,Energy Costs,05/04/2018,3420185-12913137,"1,039.48",CORONA ENERGY RETAIL 2 LTD.
Regeneration and Local Services,Economic Development and Housing,Premises,120021,Energy Costs,05/04/2018,3420185-12913311,650.47,CORONA ENERGY RETAIL 2 LTD.
Regeneration and Local Services,Economic Development and Housing,Premises,120021,Energy Costs,05/04/2018,3420185-12913312,887.65,CORONA ENERGY RETAIL 2 LTD.
Regeneration and Local Services,Economic Development and Housing,Premises,120021,Energy Costs,05/04/2018,3420185-12913360,"1,134.43",CORONA ENERGY RETAIL 2 LTD.
Regeneration and Local Services,Economic Development and Housing,Premises,120021,Energy Costs,05/04/2018,3420185-12913425,"1,782.48",CORONA ENERGY RETAIL 2 LTD.
Regeneration and Local Services,Economic Development and Housing,Premises,120021,Energy Costs,05/04/2018,3420185-12914026,757.69,CORONA ENERGY RETAIL 2 LTD.
Regeneration and Local Services,Culture & Sport,Supplies and Services,384899,Miscellaneous Expenses,05/04/2018,3420186-NEI-EXP-03-2018-024,"45,000.00",COUNTY DURHAM COMMUNITY FOUNDATION.
Children and Young Peoples Services,Head of Early Help Assessment and Safeguarding,Employees,080025,Agency Staff,05/04/2018,3420193-1052693,"124,040.35",DE POEL MANAGED SERVICES LTD.
Regeneration and Local Services,Direct Services,Third Party Payments,430100,Rendered by Private Contractors,05/04/2018,3420196-317555,983.08,DENNIS EAGLE LTD.
Regeneration and Local Services,Direct Services,Third Party Payments,430100,Rendered by Private Contractors,05/04/2018,3420196-321781,"2,221.99",DENNIS EAGLE LTD.
Regeneration and Local Services,Direct Services,Transport,210057,Repair and Maintenance of Vehicles,05/04/2018,3420196-320903,"2,301.64",DENNIS EAGLE LTD.
Resources,Legal & Democratic Services,Supplies and Services,338042,Services,05/04/2018,3420197-337663/INVKVR34,550.00,DERE STREET BARRISTERS.
Regeneration and Local Services,Direct Services,Third Party Payments,430101,Rendered by Private Contractors,05/04/2018,3420202-IV964790,"1,425.95",DIRECT TYRE MANAGEMENT (DTM).
Regeneration and Local Services,Direct Services,Third Party Payments,430101,Rendered by Private Contractors,05/04/2018,3420202-IV964793,944.82,DIRECT TYRE MANAGEMENT (DTM).
Regeneration and Local Services,Direct Services,Third Party Payments,430100,Rendered by Private Contractors,05/04/2018,3420210-A7466,950.00,EJN ENGINEERING LTD.
Regeneration and Local Services,Economic Development and Housing,Supplies and Services,342053,Computers and Communications,05/04/2018,3420216-BW/2516,"1,350.00",ENERGY AUDIT CO LTD.
Regeneration and Local Services,EnvironmentHealth & Consumer Protection,Supplies and Services,384199,Miscellaneous Expenses,05/04/2018,3420218-24397,"1,976.30",ENVIRO TECHNOLOGY SERVICES PLC.
Regeneration and Local Services,Economic Development and Housing,Construction Work,908105,Construction work,05/04/2018,3420222-149877,"153,958.98",ESH CONSTRUCTION LTD FORMERLY LUMSDEN & CARROLL CONSTRUCTION LTD.
Regeneration and Local Services,Transport and Contracted Services,Supplies and Services,342051,Computers and Communications,05/04/2018,3420225-M18/96,"7,678.00",EXEGESIS SDM LTD.
Regeneration and Local Services,Economic Development and Housing,Construction Work,908105,Construction work,05/04/2018,3420236-FBI00500,"57,974.50",FULL BLOWN METALS LTD.
Regeneration and Local Services,Technical Services,Supplies and Services,304259,Equipment and Materials,05/04/2018,3420244-06/728767,679.70,GREENHAM TRADING LTD.
Regeneration and Local Services,Technical Services,Stock,926900,Stock in hand-Inventory system,05/04/2018,3420244-06/728774,910.01,GREENHAM TRADING LTD.
Regeneration and Local Services,Culture & Sport,Supplies and Services,338047,Services,05/04/2018,3420246-FBC726,600.00,GROWLING CLOWN.
Regeneration and Local Services,Spatial Policy Planning Assets & Environment,Supplies and Services,384199,Miscellaneous Expenses,05/04/2018,3420255-532,"4,800.00",HERITAGE CONSOLIDATION LTD.
Regeneration and Local Services,Direct Services,Third Party Payments,430113,Rendered by Private Contractors,05/04/2018,3420266-W181612,"211,023.00",HW MARTIN HOLDINGS LTD.
Regeneration and Local Services,Technical Services,Supplies and Services,338027,Services,05/04/2018,3420269-NO1861251,"2,181.00",IAN FARMER ASSOCIATES (1998) LTD.
Regeneration and Local Services,Direct Services,Supplies and Services,324117,Provisions,05/04/2018,3420276-68135,558.47,J MORAN LTD T/A CAFFE VINCI.
Regeneration and Local Services,Technical Services,Construction Work,908108,Capital - Surface Dressing,05/04/2018,3420277-21500,"1,317.87",JACK COUPE & SONS LTD T/A COUPE LINE.
Regeneration and Local Services,Technical Services,Third Party Payments,430128,Rendered by Private Contractors,05/04/2018,3420280-1128,997.50,JD ATKINSON.
Adult and Health Services,Head of Adults,Supplies and Services,308011,Furniture,05/04/2018,3420283-1/105263-1,529.99,JOHN CALVERT (ELECTRICAL) LTD.
Regeneration and Local Services,Technical Services,Supplies and Services,304221,Equipment and Materials,05/04/2018,3420287-GOI850/D,500.50,JT DOVE LTD.
Children and Young Peoples Services,Head of Education,Supplies and Services,372009,Subscriptions,05/04/2018,3420293-1643,"19,340.00",KINETIC INSIGHT LTD.
Children and Young Peoples Services,Head of Education,Supplies and Services,338094,Services,05/04/2018,3420296-2017078,"1,022.00",LEISUREWORKS.
Children and Young Peoples Services,Head of Education,Transfer Payments,510026,School Children,05/04/2018,3420301-0053/2018,742.50,LITTLE STARS EARLY YEARS.
Children and Young Peoples Services,Head of Education,Transfer Payments,510026,School Children,05/04/2018,3420301-0054/2018,825.00,LITTLE STARS EARLY YEARS.
Children and Young Peoples Services,Head of Education,Transfer Payments,510026,School Children,05/04/2018,3420301-0055/2018,825.00,LITTLE STARS EARLY YEARS.
Children and Young Peoples Services,Head of Education,Transfer Payments,510027,School Children,05/04/2018,3420301-0052/2018,742.50,LITTLE STARS EARLY YEARS.
Regeneration and Local Services,Direct Services,Supplies and Services,304259,Equipment and Materials,05/04/2018,3420303-20560,"1,130.00",LIVINGREEN DESIGN LTD.
Regeneration and Local Services,Direct Services,Supplies and Services,304999,Equipment and Materials,05/04/2018,3420309-1011030,583.30,MACHINE MART LTD.
Regeneration and Local Services,Culture & Sport,Supplies and Services,384199,Miscellaneous Expenses,05/04/2018,3420316-82,"1,818.44",MICHAEL LONG.
Regeneration and Local Services,EnvironmentHealth & Consumer Protection,Supplies and Services,384199,Miscellaneous Expenses,05/04/2018,3420321-101883,"1,000.00",MISS REBECCA BROWN (BARRISTER).
Regeneration and Local Services,Culture & Sport,Supplies and Services,324001,Provisions,05/04/2018,3420323-904388769,930.90,MOLSON COORS BREWING COMPANY (UK) LTD.
Resources,Legal & Democratic Services,Supplies and Services,338042,Services,05/04/2018,3420337-285446/MARCH18,"1,200.00",MS JULIE RICHARDSON.
Regeneration and Local Services,Direct Services,Stock,926004,Stock,05/04/2018,3420342-INVHE32793,550.97,NE TRUCK SPARES LTD (NETS).
Regeneration and Local Services,Economic Development and Housing,Supplies and Services,340001,Postages,05/04/2018,3420344-RED-04-2018-040,"3,000.00",NEOPOST CREDIFON.
Dedicated Schools Grant,DSG High Needs Block,Central Support and Capital,615208,Support Services,05/04/2018,3420346-RES-04-2018-026,"11,196.86",NEW COLLEGE ACADEMIES TRUST - CONSETT ACADEMY.
Regeneration and Local Services,Spatial Policy Planning Assets & Environment,Supplies and Services,352001,Conference Expenses,05/04/2018,3420347-SLINV/00002473,"2,400.00",NEW COLLEGE DURHAM.
Regeneration and Local Services,Economic Development and Housing,Supplies and Services,384199,Miscellaneous Expenses,05/04/2018,3420348-NM31821,"6,520.00",NEW MIND INTERNET CONSULTANCY LTD.
Regeneration and Local Services,Direct Services,Third Party Payments,430100,Rendered by Private Contractors,05/04/2018,3420350-1399366,"1,123.32",NORTH EAST TRUCK & VAN LTD.
Regeneration and Local Services,Technical Services,Third Party Payments,430100,Rendered by Private Contractors,05/04/2018,3420351-DI20289879,"1,159.23",NORTHERN POWERGRID (NORTHEAST) LTD.
Adult and Health Services,Commissioning inc Supporting People,Supplies and Services,332047,Printing Stationery and Gen Off Exps,05/04/2018,3420352-91403607,"3,496.00",NORTHGATE PUBLIC SERVICES (UK) LTD.
Regeneration and Local Services,Technical Services,Construction Work,908112,Capital - Drainage,05/04/2018,3420353-914220918,"5,919.50",NORTHUMBRIAN WATER LTD.
Regeneration and Local Services,Technical Services,Construction Work,908112,Capital - Drainage,05/04/2018,3420353-914220926,"5,919.50",NORTHUMBRIAN WATER LTD.
Regeneration and Local Services,Direct Services,Transport,215005,Running Costs of Vehicles,05/04/2018,3420359-314385,"3,845.84",OIL NRG LTD.
Regeneration and Local Services,Direct Services,Transport,215005,Running Costs of Vehicles,05/04/2018,3420359-316636,"34,752.44",OIL NRG LTD.
Regeneration and Local Services,Direct Services,Transport,215005,Running Costs of Vehicles,05/04/2018,3420359-316641,"5,665.73",OIL NRG LTD.
Regeneration and Local Services,Direct Services,Transport,215005,Running Costs of Vehicles,05/04/2018,3420359-316644,"2,943.00",OIL NRG LTD.
Regeneration and Local Services,Direct Services,Transport,215022,Running Costs of Vehicles,05/04/2018,3420359-316640,"1,537.20",OIL NRG LTD.
Children and Young Peoples Services,Head of Looked After Provision Permanence and Care Leavers,Supplies and Services,338099,Services,05/04/2018,3420367-201705,500.00,PHILIP CARMEDY-PYE T/A PCP TRAINING SERVICES.
Regeneration and Local Services,Culture & Sport,Supplies and Services,338047,Services,05/04/2018,3420369-INV07488,833.33,PICTUREHOUSE CINEMAS LTD.
Regeneration and Local Services,Direct Services,Supplies and Services,304221,Equipment and Materials,05/04/2018,3420377-190903,"2,139.66",POWRMATIC LTD.
Regeneration and Local Services,Technical Services,Supplies and Services,384110,Miscellaneous Expenses,05/04/2018,3420378-93129,"1,200.00",PRECISION GEOMATICS LTD.
Regeneration and Local Services,Economic Development and Housing,Supplies and Services,336005,Advertising,05/04/2018,3420382-0000354406,821.97,PRIMESIGHT LTD.
Resources,Digital and Customer Services,Supplies and Services,332029,Printing Stationery and Gen Off Exps,05/04/2018,3420387-15G84,"1,575.00",RADECAL SIGNS GRAPHICS & ADVERTISING.
Regeneration and Local Services,Direct Services,Supplies and Services,304221,Equipment and Materials,05/04/2018,3420391-RSIN0250968,"4,995.60",RIGBY TAYLOR LTD.
Adult and Health Services,Head of Adults,Supplies and Services,338365,Services,05/04/2018,3420394-SIN235774,"1,103.98",RNIB ENTERPRISES LTD.
Regeneration and Local Services,Culture & Sport,Employees,080030,Agency Staff,05/04/2018,3420403-A9/01/03/18,700.00,SABINE SCHINDLER.
Regeneration and Local Services,Direct Services,Supplies and Services,304259,Equipment and Materials,05/04/2018,3420404-9166401,"4,875.00",SAFELINCS LTD.
Children and Young Peoples Services,Head of Education,Transfer Payments,510027,School Children,05/04/2018,3420405-3334,"1,009.80",SEAHAM EASTLEA & DISTRICT COMMUNITY ASSOCIATION.
Children and Young Peoples Services,Head of Education,Transfer Payments,510027,School Children,05/04/2018,3420405-3335,"1,009.80",SEAHAM EASTLEA & DISTRICT COMMUNITY ASSOCIATION.
Children and Young Peoples Services,Head of Education,Transfer Payments,510027,School Children,05/04/2018,3420405-3336,"1,009.80",SEAHAM EASTLEA & DISTRICT COMMUNITY ASSOCIATION.
Children and Young Peoples Services,Head of Education,Transfer Payments,510027,School Children,05/04/2018,3420405-3337,"1,009.80",SEAHAM EASTLEA & DISTRICT COMMUNITY ASSOCIATION.
Regeneration and Local Services,Transport and Contracted Services,Third Party Payments,430106,Rendered by Private Contractors,05/04/2018,3420416-30045,"1,383.60",STANLEY TRAVEL (NORTH EAST) LTD.
Regeneration and Local Services,Direct Services,Third Party Payments,430100,Rendered by Private Contractors,05/04/2018,3420418-11460,"1,580.00",STONE TECHNICAL SERVICES LTD.
Children and Young Peoples Services,Head of Education,Supplies and Services,384199,Miscellaneous Expenses,05/04/2018,3420431-INVS004787,"1,120.00",THE CITIZENSHIP FOUNDATION.
Regeneration and Local Services,Culture & Sport,Supplies and Services,372009,Subscriptions,05/04/2018,3420441-21687,"1,250.00",TILHILL FORESTRY LTD.
Regeneration and Local Services,Transport and Contracted Services,Supplies and Services,304245,Equipment and Materials,05/04/2018,3420445-31N/10314979,863.95,TUNSTALL HEALTHCARE (UK) LTD.
Regeneration and Local Services,Culture & Sport,Supplies and Services,384302,Miscellaneous Expenses,05/04/2018,3420455-4131,"10,000.00",VISIT COUNTY DURHAM LTD.
Regeneration and Local Services,Direct Services,Supplies and Services,304221,Equipment and Materials,05/04/2018,3420460-50787266,626.96,WOLSELEY UK LTD.
Regeneration and Local Services,Spatial Policy Planning Assets & Environment,Supplies and Services,384199,Miscellaneous Expenses,05/04/2018,3420461-INV-1214,"1,200.00",WONDERSTUFF GROUP LTD T/A WONDERSTUFFF.*
Regeneration and Local Services,Direct Services,Third Party Payments,430100,Rendered by Private Contractors,05/04/2018,3420468-113277,"2,014.65",ZOELLER WASTE SYSTEMS LTD.
Children and Young Peoples Services,Head of Education,Transport,230006,Contract Hire,06/04/2018,3420471-68133,985.00,A & C TAXIS.
Children and Young Peoples Services,Head of Education,Transport,230007,Contract Hire,06/04/2018,3420472-1MARCH2018,"1,784.00",A & P TAXIS.
Children and Young Peoples Services,Head of Education,Transport,230009,Contract Hire,06/04/2018,3420472-MARCH03,"1,241.00",A & P TAXIS.
Children and Young Peoples Services,Head of Education,Transport,230006,Contract Hire,06/04/2018,3420472-MARCH04,"1,146.00",A & P TAXIS.
Adult and Health Services,Head of Adults,Transport,230005,Contract Hire,06/04/2018,3420472-MARCH02,824.00,A & P TAXIS.
Children and Young Peoples Services,Head of Education,Transport,230012,Contract Hire,06/04/2018,3420475-M12/SS,"1,299.20",AABAT TAXIS.
Children and Young Peoples Services,Head of Education,Transport,230008,Contract Hire,06/04/2018,3420475-M1/SA,"2,436.00",AABAT TAXIS.
Children and Young Peoples Services,Head of Education,Transport,230008,Contract Hire,06/04/2018,3420475-M13/ST,"2,598.40",AABAT TAXIS.
Children and Young Peoples Services,Head of Education,Transport,230008,Contract Hire,06/04/2018,3420475-M2/SB,"1,215.90",AABAT TAXIS.
Children and Young Peoples Services,Head of Education,Transport,230008,Contract Hire,06/04/2018,3420475-M22/SQ,"1,833.50",AABAT TAXIS.
Children and Young Peoples Services,Head of Education,Transport,230008,Contract Hire,06/04/2018,3420475-M6/SH,"1,864.00",AABAT TAXIS.
Children and Young Peoples Services,Head of Education,Transport,230008,Contract Hire,06/04/2018,3420475-M8/SK,"1,522.50",AABAT TAXIS.
Children and Young Peoples Services,Head of Education,Transport,230008,Contract Hire,06/04/2018,3420475-M9/SL,"1,833.50",AABAT TAXIS.
Adult and Health Services,Head of Adults,Transport,230005,Contract Hire,06/04/2018,3420475-M18/SC,565.00,AABAT TAXIS.
Children and Young Peoples Services,Head of Education,Transport,230012,Contract Hire,06/04/2018,3420476-O380,"1,786.40",ABC & OUSTON CABS.
Children and Young Peoples Services,Head of Education,Transport,230007,Contract Hire,06/04/2018,3420478-519,"1,176.00",ACE TAXIS (WINSTON).
Children and Young Peoples Services,Head of Education,Transport,230007,Contract Hire,06/04/2018,3420478-520,"1,442.00",ACE TAXIS (WINSTON).
Children and Young Peoples Services,Head of Education,Transport,230007,Contract Hire,06/04/2018,3420478-521,"1,442.00",ACE TAXIS (WINSTON).
Dedicated Schools Grant,DSG High Needs Block,Transfer Payments,510034,School Children,06/04/2018,3420479-LACPP1718AUTUMN,550.00,ACKLAM WHIN PRIMARY SCHOOL.
Children and Young Peoples Services,Head of Education,Transport,230006,Contract Hire,06/04/2018,3420480-575,760.00,ADAMSONS TAXIS.
Regeneration and Local Services,Technical Services,Employees,080025,Agency Staff,06/04/2018,3420482-28341295,"4,950.35",AECOM LTD.
Regeneration and Local Services,Economic Development and Housing,Supplies and Services,384199,Miscellaneous Expenses,06/04/2018,3420473-2739,"4,680.00",A-HA! DISTRIBUTION LTD.
Regeneration and Local Services,Economic Development and Housing,Supplies and Services,384199,Miscellaneous Expenses,06/04/2018,3420473-2740,500.00,A-HA! DISTRIBUTION LTD.
Adult and Health Services,Head of Adults,Transport,230005,Contract Hire,06/04/2018,3420483-INV-000003,585.00,AJT CARS (TAXIS).
Children and Young Peoples Services,Head of Education,Transport,230008,Contract Hire,06/04/2018,3420484-153957,"1,550.00",ALAN SOUTHERN T/A ALANS TAXIS PELTON FELL.
Children and Young Peoples Services,Head of Education,Transport,230008,Contract Hire,06/04/2018,3420484-388957,"1,666.00",ALAN SOUTHERN T/A ALANS TAXIS PELTON FELL.
Regeneration and Local Services,Technical Services,Supplies and Services,304221,Equipment and Materials,06/04/2018,3420487-12201,514.80,ALSTON NATURAL STONE LTD.
Children and Young Peoples Services,Head of Education,Transport,230007,Contract Hire,06/04/2018,3420488-DCC017-3035,738.52,ALSTON ROAD GARAGE.
Children and Young Peoples Services,Head of Education,Transport,230007,Contract Hire,06/04/2018,3420488-DCC017-3037,"1,471.32",ALSTON ROAD GARAGE.
Children and Young Peoples Services,Head of Education,Transport,230007,Contract Hire,06/04/2018,3420488-DCC017-3039,"1,411.55",ALSTON ROAD GARAGE.
Children and Young Peoples Services,Head of Education,Transport,230007,Contract Hire,06/04/2018,3420488-DCC017-3273,886.52,ALSTON ROAD GARAGE.
Children and Young Peoples Services,Head of Education,Transport,230007,Contract Hire,06/04/2018,3420488-DCC017-6014,"1,706.40",ALSTON ROAD GARAGE.
Dedicated Schools Grant,DSG High Needs Block,Transport,230010,Contract Hire,06/04/2018,3420489-BC3/18,"2,361.00",ANDY`S TAXIS.
Children and Young Peoples Services,Head of Education,Transport,230007,Contract Hire,06/04/2018,3420492-1/18,572.00,ANGIE`S TAXIS.
Children and Young Peoples Services,Head of Education,Transport,230006,Contract Hire,06/04/2018,3420492-2/18,838.40,ANGIE`S TAXIS.
Children and Young Peoples Services,Head of Education,Transport,230008,Contract Hire,06/04/2018,3420496-1068,"1,604.17",ARRON GILBRAITH T/A BYRON TRAVEL.
Regeneration and Local Services,Direct Services,Premises,106082,Centrally Controlled Rep and Maint,06/04/2018,3420497-7299,"1,330.00",ASPECT FIRE SOLUTIONS LTD.
Children and Young Peoples Services,Head of Education,Transport,230007,Contract Hire,06/04/2018,3420499-641,994.95,AT TAXIS LTD.
Children and Young Peoples Services,Head of Education,Transport,230008,Contract Hire,06/04/2018,3420499-642,"1,891.40",AT TAXIS LTD.
Children and Young Peoples Services,Head of Education,Transport,230008,Contract Hire,06/04/2018,3420499-643,"2,212.70",AT TAXIS LTD.
Children and Young Peoples Services,Head of Education,Transport,230008,Contract Hire,06/04/2018,3420500-DCC12FEB18,"1,259.00",ATLAS TAXIS BISHOP AUCKLAND.
Children and Young Peoples Services,Head of Education,Transport,230008,Contract Hire,06/04/2018,3420501-290318,"1,766.00",AVALON TAXIS.
Children and Young Peoples Services,Head of Education,Transport,230008,Contract Hire,06/04/2018,3420501-29318,"1,236.00",AVALON TAXIS.
Children and Young Peoples Services,Head of Education,Transport,230006,Contract Hire,06/04/2018,3420502-2-F721,750.00,AXLE TAXIS.
Regeneration and Local Services,Technical Services,Third Party Payments,430100,Rendered by Private Contractors,06/04/2018,3420503-IN32766,"18,548.19",BALFOUR BEATTY LIVING PLACES LTD.*
Children and Young Peoples Services,Head of Education,Transport,230008,Contract Hire,06/04/2018,3420505-760,635.51,BEELINE MINI BUSES.
Children and Young Peoples Services,Head of Education,Transport,230008,Contract Hire,06/04/2018,3420505-761,687.83,BEELINE MINI BUSES.
Children and Young Peoples Services,Head of Education,Transport,230008,Contract Hire,06/04/2018,3420505-762,"1,543.56",BEELINE MINI BUSES.
Children and Young Peoples Services,Head of Education,Transport,230008,Contract Hire,06/04/2018,3420505-763,719.15,BEELINE MINI BUSES.
Children and Young Peoples Services,Head of Education,Transport,230008,Contract Hire,06/04/2018,3420506-SMITH1/MARCH18,"1,801.80",BEELINE PRIVATE HIRE.
Children and Young Peoples Services,Head of Education,Transport,230003,Contract Hire,06/04/2018,3420507-STJOHNSRC0318-3003,"2,598.40",BELL BROTHERS TRAVEL.
Children and Young Peoples Services,Head of Education,Transport,230003,Contract Hire,06/04/2018,3420507-STJOHNSRC0318-3005,"5,034.40",BELL BROTHERS TRAVEL.
Regeneration and Local Services,Direct Services,Stock,926004,Stock,06/04/2018,3420508-15128087,520.88,BELL TRUCK SALES LTD T/A BELL TRUCK & VAN.
Children and Young Peoples Services,Head of Education,Transport,230008,Contract Hire,06/04/2018,3420509-007,"1,359.60",BG TAXIS.
Children and Young Peoples Services,Head of Education,Transport,230006,Contract Hire,06/04/2018,3420514-0091,"2,312.80",BIRDS TAXIS LTD.
Children and Young Peoples Services,Head of Education,Transport,230008,Contract Hire,06/04/2018,3420517-7008,"1,470.00",BOBBY DOVE.
Children and Young Peoples Services,Head of Education,Transport,230008,Contract Hire,06/04/2018,3420517-7009,"2,707.80",BOBBY DOVE.
Adult and Health Services,Head of Adults,Transport,230005,Contract Hire,06/04/2018,3420517-1450,"1,039.50",BOBBY DOVE.
Dedicated Schools Grant,DSG High Needs Block,Transport,230010,Contract Hire,06/04/2018,3420518-68,"1,351.00",BOBS TAXIS.
Children and Young Peoples Services,Head of Education,Transport,230007,Contract Hire,06/04/2018,3420519-006,618.00,BOWBURN TAXIS.
Children and Young Peoples Services,Head of Education,Transport,230008,Contract Hire,06/04/2018,3420521-BZ00252,960.40,BREZ`S TAXIS.
Children and Young Peoples Services,Head of Education,Transport,230008,Contract Hire,06/04/2018,3420521-BZ00253,"1,098.40",BREZ`S TAXIS.
Adult and Health Services,Head of Adults,Transport,230005,Contract Hire,06/04/2018,3420521-BZ00254,588.00,BREZ`S TAXIS.
Transformation and Partnerships,Comms & Information Management,Supplies and Services,336005,Advertising,06/04/2018,3420523-000006280196,"1,100.00",BRITISH TELECOMMUNICATIONS PLC.
Children and Young Peoples Services,Head of Education,Transport,230008,Contract Hire,06/04/2018,3420525-A02807,"1,339.00",C & R TAXIS.
Children and Young Peoples Services,Head of Education,Transport,230008,Contract Hire,06/04/2018,3420526-BIL0128,"1,000.00",CA MUSGROVE.
Regeneration and Local Services,Direct Services,Supplies and Services,384899,Miscellaneous Expenses,06/04/2018,3420527-NEI-EXP-03-2018-025,500.00,CAFE TOGETHER PROJECT.
Adult and Health Services,Head of Adults,Supplies and Services,338366,Services,06/04/2018,3420528-47922-2018,767.35,CARE ABILITY.
Adult and Health Services,Head of Adults,Supplies and Services,338366,Services,06/04/2018,3420528-48433,"1,684.70",CARE ABILITY.
Regeneration and Local Services,Direct Services,Supplies and Services,304221,Equipment and Materials,06/04/2018,3420529-851800584,"1,241.00",CARLISLE CONSTRUCTION MATERIALS LTD.
Children and Young Peoples Services,Head of Education,Transport,230008,Contract Hire,06/04/2018,3420532-008,"2,369.00",CHANNER`S CABS.
Children and Young Peoples Services,Head of Education,Transport,230007,Contract Hire,06/04/2018,3420533-13-5222,"1,318.00",CHAPMAN TRAVEL.
Children and Young Peoples Services,Head of Education,Transport,230006,Contract Hire,06/04/2018,3420533-12/MARCH2018,780.00,CHAPMAN TRAVEL.
Children and Young Peoples Services,Head of Education,Third Party Payments,440999,Other Third Party Payments,06/04/2018,3420537-YEI11/17/18/19,"29,021.50",CITIZENS ADVICE COUNTY DURHAM.
Children and Young Peoples Services,Head of Education,Third Party Payments,440999,Other Third Party Payments,06/04/2018,3420539-YEI24/06/07/08/09,"10,067.51",CITY OF SUNDERLAND YMCA LTD.
Regeneration and Local Services,Technical Services,Stock,926004,Stock,06/04/2018,3420540-400008192,"7,794.99",CLEVELAND POTASH LTD T/A ICL FERTILIZERS.
Children and Young Peoples Services,Head of Education,Transport,230008,Contract Hire,06/04/2018,3420542-005-MARCH,"1,751.00",COLIN HOLMES.
Regeneration and Local Services,Culture & Sport,Third Party Payments,430100,Rendered by Private Contractors,06/04/2018,3420543-PSINV03028,"26,776.62",COMPETITION LINE UK LTD T/A LIFESTYLE FITNESS.
Regeneration and Local Services,Culture & Sport,Third Party Payments,430100,Rendered by Private Contractors,06/04/2018,3420543-PSINV03029,"8,876.08",COMPETITION LINE UK LTD T/A LIFESTYLE FITNESS.
Children and Young Peoples Services,Head of Education,Third Party Payments,440999,Other Third Party Payments,06/04/2018,3420545-YEI18/16/17/18,"5,098.76",CORNERSTONE SUPPORTED HOUSING & COUNSELLING LTD.
Children and Young Peoples Services,Head of Education,Third Party Payments,440999,Other Third Party Payments,06/04/2018,3420547-YEI30/17/18/19,"126,566.07",COUNTY DURHAM COMMUNITY FOUNDATION.
Transformation and Partnerships,Partnerships & Community Engagement Div.,Supplies and Services,308011,Furniture,06/04/2018,3420548-RID008,975.00,COUNTY DURHAM FURNITURE HELP SCHEME (CDFHS).
Transformation and Partnerships,Partnerships & Community Engagement Div.,Supplies and Services,308011,Furniture,06/04/2018,3420548-SAC007,975.00,COUNTY DURHAM FURNITURE HELP SCHEME (CDFHS).
Children and Young Peoples Services,Head of Education,Transport,230008,Contract Hire,06/04/2018,3420550-33,"1,524.40",CUTHBERT CABS.
Children and Young Peoples Services,Head of Education,Transport,230007,Contract Hire,06/04/2018,3420557-1568,824.00,DA TAXIS.
Children and Young Peoples Services,Head of Education,Transport,230008,Contract Hire,06/04/2018,3420557-1569,"1,545.00",DA TAXIS.
Children and Young Peoples Services,Head of Education,Transport,230008,Contract Hire,06/04/2018,3420558-262,"1,194.80",DA TRAVEL.
Children and Young Peoples Services,Head of Education,Third Party Payments,440999,Other Third Party Payments,06/04/2018,3420562-YEI06/11,"8,489.26",DELTA NORTH CONSETT LTD.
Children and Young Peoples Services,Head of Education,Transfer Payments,510026,School Children,06/04/2018,3420565-DCCBRW003,720.00,DO RE MI DAY NURSERY.
Resources,Legal & Democratic Services,Supplies and Services,338057,Services,06/04/2018,3420568-PB131,687.20,DR PAUL BARRETT.
Regeneration and Local Services,Transport and Contracted Services,Supplies and Services,332029,Printing Stationery and Gen Off Exps,06/04/2018,3420572-140318,600.00,DURHAM MARKETS CO.
Regeneration and Local Services,Technical Services,Supplies and Services,304221,Equipment and Materials,06/04/2018,3420577-1803\097,"1,086.30",EPPLETON QUARRY PRODUCTS LTD.
Regeneration and Local Services,Direct Services,Supplies and Services,384899,Miscellaneous Expenses,06/04/2018,3420579-NEI-EXP-03-2018-027,500.00,ETHICARE (DURHAM) LTD.
Children and Young Peoples Services,Head of Education,Transport,230008,Contract Hire,06/04/2018,3420581-W053-17,"1,113.70",FERRYHILL VILLAGE TRAVEL.
Children and Young Peoples Services,Head of Education,Third Party Payments,440999,Other Third Party Payments,06/04/2018,3420584-0000006971,"7,020.00",FOUNDATION OF LIGHT.
Children and Young Peoples Services,Head of Education,Third Party Payments,440999,Other Third Party Payments,06/04/2018,3420584-YEI31/15/16/17,"30,276.84",FOUNDATION OF LIGHT.
Children and Young Peoples Services,Head of Education,Transport,230007,Contract Hire,06/04/2018,3420586-3,"1,170.00",G ANGHEL T/A A TAXI.
Children and Young Peoples Services,Head of Education,Transport,230008,Contract Hire,06/04/2018,3420587-M006,"1,172.50",GARY MCGOWAN T/A MACKA`S PRIVATE HIRE.
Regeneration and Local Services,Direct Services,Stock,926004,Stock,06/04/2018,3420588-IN200626,598.60,GB LUBRICANTS LTD.
Regeneration and Local Services,Transport and Contracted Services,Third Party Payments,430106,Rendered by Private Contractors,06/04/2018,3420592-65266,"76,386.03",GO GATESHEAD LTD.
Regeneration and Local Services,Transport and Contracted Services,Third Party Payments,430106,Rendered by Private Contractors,06/04/2018,3420592-65267,"83,227.13",GO GATESHEAD LTD.
Regeneration and Local Services,Direct Services,Supplies and Services,384899,Miscellaneous Expenses,06/04/2018,3420593-NEI-EXP-03-2018-026,500.00,GRANGE VILLA COMMUNITY ENTERPRISE CENTRE.
Children and Young Peoples Services,Head of Education,Transfer Payments,510027,School Children,06/04/2018,3420594-INV07381,"1,479.72",GREAT AYCLIFFE TOWN COUNCIL.
Children and Young Peoples Services,Head of Education,Third Party Payments,440999,Other Third Party Payments,06/04/2018,3420597-YEI26/17/18/19,"117,753.82",GROUNDWORK NORTH EAST.
Children and Young Peoples Services,Head of Education,Transport,230006,Contract Hire,06/04/2018,3420598-17,937.40,HARDIP SINGH MAHIL T/A AMBER CARS.
Children and Young Peoples Services,Head of Education,Transport,230006,Contract Hire,06/04/2018,3420598-17-F729,831.60,HARDIP SINGH MAHIL T/A AMBER CARS.
Regeneration and Local Services,Direct Services,Supplies and Services,304221,Equipment and Materials,06/04/2018,3420601-0000014728,"2,329.60",HOLME DODSWORTH (ROCK SALT) LTD.
Children and Young Peoples Services,Head of Looked After Provision Permanence and Care Leavers,Third Party Payments,425021,Rendered by Voluntary Organisations,06/04/2018,3420603-4487,"3,520.00",HOWARD HOUSE CARE LTD.
Resources,Digital and Customer Services,Vehicles Equipment Furniture and Fittings,912701,Computer equipment,06/04/2018,3420606-3800965,608.00,INSIGHT DIRECT (UK) LTD.
Regeneration and Local Services,Direct Services,Supplies and Services,304221,Equipment and Materials,06/04/2018,3420607-29141,"3,540.00",INTERPLAN SIGN SYSTEMS LTD.
Regeneration and Local Services,Technical Services,Construction Work,908108,Capital - Surface Dressing,06/04/2018,3420610-21501,"2,661.55",JACK COUPE & SONS LTD T/A COUPE LINE.
Regeneration and Local Services,Transport and Contracted Services,Third Party Payments,460160,Contract Payments,06/04/2018,3420610-21502,"2,387.60",JACK COUPE & SONS LTD T/A COUPE LINE.
Children and Young Peoples Services,Head of Education,Third Party Payments,440999,Other Third Party Payments,06/04/2018,3420611-YEI21/17/18/19,"10,992.08",JACK DRUM ARTS LTD.
Children and Young Peoples Services,Head of Education,Transport,230009,Contract Hire,06/04/2018,3420612-0579,532.00,JACKSON`S TAXI.
Children and Young Peoples Services,Head of Education,Transport,230009,Contract Hire,06/04/2018,3420612-0581,855.00,JACKSON`S TAXI.
Children and Young Peoples Services,Head of Education,Transport,230008,Contract Hire,06/04/2018,3420612-0582,"1,284.00",JACKSON`S TAXI.
Dedicated Schools Grant,DSG High Needs Block,Transfer Payments,510034,School Children,06/04/2018,3420613-LACPP1718AUTUMNSPRING,620.00,JACOBSTOW COMMUNITY PRIMARY SCHOOL.
Children and Young Peoples Services,Head of Education,Transport,230008,Contract Hire,06/04/2018,3420615-1268,"1,007.40",JDS PRIVATE HIRE DURHAM.
Adult and Health Services,Head of Adults,Transport,230005,Contract Hire,06/04/2018,3420615-1274,960.00,JDS PRIVATE HIRE DURHAM.
Children and Young Peoples Services,Head of Education,Transport,230007,Contract Hire,06/04/2018,3420616-2747,"1,449.81",JEFF ANDERSON COACHES LTD.
Adult and Health Services,Head of Adults,Transport,230005,Contract Hire,06/04/2018,3420619-DM150-MARCH,930.00,JMR TAXIS.
Adult and Health Services,Head of Adults,Transport,230005,Contract Hire,06/04/2018,3420620-01032018,625.00,JOHN HUBBLE T/A HUBB`S TAXIS.
Children and Young Peoples Services,Head of Education,Transport,230009,Contract Hire,06/04/2018,3420622-127MARCH2018,646.00,JOHN ROBSON T/A ACE TAXIS.
Regeneration and Local Services,Direct Services,Third Party Payments,430100,Rendered by Private Contractors,06/04/2018,3420623-65275968,"1,968.04",JOHNSTON SWEEPERS LTD.
Children and Young Peoples Services,Head of Education,Transport,230008,Contract Hire,06/04/2018,3420626-00865,851.97,KENNAS CABS.
Children and Young Peoples Services,Head of Education,Transport,230008,Contract Hire,06/04/2018,3420627-010318,"2,214.00",KEVIN EDMUNDSON.
Regeneration and Local Services,Direct Services,Stock,926004,Stock,06/04/2018,3420634-146539,582.54,LONDONDERRY GARAGE (S.E) LTD.
Adult and Health Services,Commissioning inc Supporting People,Third Party Payments,479101,Purchase of Care,06/04/2018,3420637-9981,"11,583.33",MAIN - TAKING AUTISM PERSONALLY.
Children and Young Peoples Services,Head of Education,Transport,230008,Contract Hire,06/04/2018,3420638-39,"1,520.00",MALCOLM CARR T/A CARLY CABS.
Children and Young Peoples Services,Head of Education,Transport,230006,Contract Hire,06/04/2018,3420640-INV03/1813,"2,266.00",MARK & JOHN CHISHOLM T/A (CHEVRON).
Dedicated Schools Grant,DSG High Needs Block,Transport,230010,Contract Hire,06/04/2018,3420640-021803,"1,751.40",MARK & JOHN CHISHOLM T/A (CHEVRON).
Dedicated Schools Grant,DSG High Needs Block,Transport,230010,Contract Hire,06/04/2018,3420640-INV03/1801,"1,565.60",MARK & JOHN CHISHOLM T/A (CHEVRON).
Dedicated Schools Grant,DSG High Needs Block,Transport,230010,Contract Hire,06/04/2018,3420640-INV03/1802,"1,524.40",MARK & JOHN CHISHOLM T/A (CHEVRON).
Children and Young Peoples Services,Head of Education,Transport,230008,Contract Hire,06/04/2018,3420640-INV03/1806,"2,266.00",MARK & JOHN CHISHOLM T/A (CHEVRON).
Regeneration and Local Services,Culture & Sport,Supplies and Services,324001,Provisions,06/04/2018,3420648-904419816,"1,668.72",MOLSON COORS BREWING COMPANY (UK) LTD.
Children and Young Peoples Services,Head of Education,Transport,230009,Contract Hire,06/04/2018,3420649-AT147,618.00,MR AG WILSON T/A ALAN`S TAXIS (DURHAM CITY).
Children and Young Peoples Services,Head of Education,Transport,230008,Contract Hire,06/04/2018,3420650-7MARCH2018,652.80,MR ALAN CARR FEATONBY T/A ALAN`S LUXURY PRIVATE HIRE.
Children and Young Peoples Services,Head of Education,Transport,230006,Contract Hire,06/04/2018,3420651-17,720.00,MR BRIAN JOHNSON T/A BRYS TAXIS.
Children and Young Peoples Services,Head of Education,Transport,230006,Contract Hire,06/04/2018,3420652-130,548.00,MR DAVID CULLEN T/A JED`S TAXIS.
Resources,Legal & Democratic Services,Supplies and Services,338042,Services,06/04/2018,3420653-INV/NE1,"2,497.92",MR NKUMBE EKANEY QC.
Children and Young Peoples Services,Head of Education,Transport,230007,Contract Hire,06/04/2018,3420654-301/18,"1,260.00",MR REES WILKINSON T/A B & L MINIBUS HIRE.
Children and Young Peoples Services,Head of Education,Transport,230008,Contract Hire,06/04/2018,3420661-040,"1,176.00",NEIL PASSMOOR T/A NEIL`S TAXI.
Children and Young Peoples Services,Head of Education,Transport,230008,Contract Hire,06/04/2018,3420661-40,"1,746.00",NEIL PASSMOOR T/A NEIL`S TAXI.
Dedicated Schools Grant,DSG High Needs Block,Transfer Payments,510034,School Children,06/04/2018,3420667-LACPP1718AUTUMN,550.00,NORTH LAKES CHILDREN`S SERVICES LTD.
Regeneration and Local Services,Technical Services,Third Party Payments,430100,Rendered by Private Contractors,06/04/2018,3420668-DI20289892,854.00,NORTHERN POWERGRID (NORTHEAST) LTD.
Regeneration and Local Services,Economic Development and Housing,Premises,135005,Water Services,06/04/2018,3420670-200317096-2NDBILLREPAYMENT,"2,342.50",NORTHUMBRIAN WATER LTD.
Regeneration and Local Services,Direct Services,Transport,215005,Running Costs of Vehicles,06/04/2018,3420671-317515,"9,753.95",OIL NRG LTD.
Resources,Digital and Customer Services,Supplies and Services,338027,Services,06/04/2018,3420672-1640177,"2,784.05",ORACLE CORPORATION UK LTD.
Dedicated Schools Grant,DSG High Needs Block,Transport,230009,Contract Hire,06/04/2018,3420673-G027-MARCH,"1,854.00",PAUL B TAXIS.
Children and Young Peoples Services,Head of Education,Transport,230006,Contract Hire,06/04/2018,3420678-22942,512.00,PHOENIX TAXIS T/A PRATT`S TAXIS.
Children and Young Peoples Services,Head of Education,Transport,230006,Contract Hire,06/04/2018,3420678-23153,514.50,PHOENIX TAXIS T/A PRATT`S TAXIS.
Adult and Health Services,Public Health,Third Party Payments,460803,Contract Payments,06/04/2018,3420679-16045/18,"5,462.93",PIONEERING CARE PARTNERSHIP.
Regeneration and Local Services,Technical Services,Third Party Payments,430100,Rendered by Private Contractors,06/04/2018,3420683-151123,"10,837.00",PREMIER TRAFFIC MANAGEMENT LTD.
Regeneration and Local Services,Technical Services,Third Party Payments,430100,Rendered by Private Contractors,06/04/2018,3420683-151185,"9,809.60",PREMIER TRAFFIC MANAGEMENT LTD.
Dedicated Schools Grant,DSG High Needs Block,Employees,080025,Agency Staff,06/04/2018,3420685-51270323,586.00,PROTOCOL EDUCATION LTD.
Regeneration and Local Services,Technical Services,Supplies and Services,304221,Equipment and Materials,06/04/2018,3420690-SI1830098,"1,717.00",REDIWELD RUBBER & PLASTICS LTD.
Regeneration and Local Services,Economic Development and Housing,Supplies and Services,338066,Services,06/04/2018,3420691-AU105,"15,000.00",REDKITE INNOVATIONS LTD.
Regeneration and Local Services,Direct Services,Supplies and Services,304259,Equipment and Materials,06/04/2018,3420694-RSIN0251158,"4,989.60",RIGBY TAYLOR LTD.
Regeneration and Local Services,Direct Services,Supplies and Services,304259,Equipment and Materials,06/04/2018,3420694-RSIN0251161,"4,949.40",RIGBY TAYLOR LTD.
Children and Young Peoples Services,Head of Education,Transport,230007,Contract Hire,06/04/2018,3420698-ROXDCC34,"1,613.20",ROXBYS BUS HIRE.
Children and Young Peoples Services,Head of Education,Transport,230007,Contract Hire,06/04/2018,3420698-ROXDCC36,"1,184.00",ROXBYS BUS HIRE.
Children and Young Peoples Services,Head of Education,Transport,230003,Contract Hire,06/04/2018,3420698-ROXDCC35,"3,670.40",ROXBYS BUS HIRE.
Regeneration and Local Services,Direct Services,Premises,108099,Service Repairs and Maintenance,06/04/2018,3420701-97994491,"2,115.08",SCHNEIDER ELECTRIC LTD.
Children and Young Peoples Services,Head of Education,Third Party Payments,440999,Other Third Party Payments,06/04/2018,3420702-YEI04/09/10,"11,843.55",SHAID LTD.
Children and Young Peoples Services,Head of Education,Transport,230012,Contract Hire,06/04/2018,3420703-74113,"1,520.00",SHOTTON PRIVATE HIRE.
Regeneration and Local Services,Technical Services,Supplies and Services,304221,Equipment and Materials,06/04/2018,3420704-714560089791,746.60,SIG TRADING LTD.
Regeneration and Local Services,Technical Services,Supplies and Services,304221,Equipment and Materials,06/04/2018,3420705-244422,547.88,SIGNPOST SOLUTIONS LTD.
Regeneration and Local Services,Technical Services,Supplies and Services,304221,Equipment and Materials,06/04/2018,3420706-76136,"2,027.48",SIMMONSIGNS LTD.
Children and Young Peoples Services,Head of Education,Transport,230003,Contract Hire,06/04/2018,3420716-STNE0800,"1,311.00",STYLE TRAVEL NORTH EAST.
Children and Young Peoples Services,Head of Education,Transport,230003,Contract Hire,06/04/2018,3420716-STNE0801,"1,501.00",STYLE TRAVEL NORTH EAST.
Dedicated Schools Grant,DSG High Needs Block,Transfer Payments,510034,School Children,06/04/2018,3420717-LACPP1718AUTUMN,550.00,SUNDERLAND CITY COUNCIL.
Children and Young Peoples Services,Head of Looked After Provision Permanence and Care Leavers,Employees,080025,Agency Staff,06/04/2018,3420724-2157355,990.00,TEACHING PERSONNEL LTD.
Children and Young Peoples Services,Head of Education,Supplies and Services,372009,Subscriptions,06/04/2018,3420728-5556,"3,135.00",THE ASSOCIATION OF DIRECTORS OF CHILDREN`S SERVICES LTD (ADCS).
Children and Young Peoples Services,Head of Education,Transfer Payments,510026,School Children,06/04/2018,3420732-DCATCHFUNDINGFORSPRINGTERM2018-GM,"1,526.25",THE LAURELS CHILD CARE COMPANY LTD.
Children and Young Peoples Services,Head of Education,Transfer Payments,510026,School Children,06/04/2018,3420732-DCATCHFUNDINGFORSPRINGTERM2018-LC,582.75,THE LAURELS CHILD CARE COMPANY LTD.
Regeneration and Local Services,Technical Services,Stock,926900,Stock in hand-Inventory system,06/04/2018,3420734-N/IN217640,"2,415.36",THOMAS OWEN & SONS (NEWCASTLE) LTD.
Regeneration and Local Services,Technical Services,Stock,926900,Stock in hand-Inventory system,06/04/2018,3420734-N/IN217641,"1,218.19",THOMAS OWEN & SONS (NEWCASTLE) LTD.
Children and Young Peoples Services,Head of Education,Third Party Payments,440999,Other Third Party Payments,06/04/2018,3420735-YEI3614/15FINAL,"4,803.21",TIN ARTS.
Regeneration and Local Services,Direct Services,Supplies and Services,304221,Equipment and Materials,06/04/2018,3420736-113959,911.24,TOMMY WARDLE.
Children and Young Peoples Services,Head of Education,Transport,230008,Contract Hire,06/04/2018,3420737-0001952,"1,215.00",TONY RIDLEY T/A COLORS TAXIS LTD.
Regeneration and Local Services,Culture & Sport,Supplies and Services,338047,Services,06/04/2018,3420739-00028938,767.04,TRAFALGAR RELEASING LTD.
Regeneration and Local Services,Technical Services,Supplies and Services,304221,Equipment and Materials,06/04/2018,3420743-184428,"1,009.10",TYNEDALE ROADSTONE LTD.
Regeneration and Local Services,Technical Services,Supplies and Services,304221,Equipment and Materials,06/04/2018,3420743-184429,979.90,TYNEDALE ROADSTONE LTD.
Regeneration and Local Services,Technical Services,Supplies and Services,304221,Equipment and Materials,06/04/2018,3420743-184430,780.80,TYNEDALE ROADSTONE LTD.
Regeneration and Local Services,Economic Development and Housing,Cap Exp on Grants & Other Financial Assistance (REFCUS),918004,Contributions to other bodies,06/04/2018,3420746-RED-04-2018-041,"2,043.00",VIKKI PARKIN T/A THE ZHOO.
Children and Young Peoples Services,Head of Education,Transport,230009,Contract Hire,06/04/2018,3420749-0001854-7296,621.60,WATSON OF SPENNYMOOR.
Children and Young Peoples Services,Head of Education,Transport,230008,Contract Hire,06/04/2018,3420749-0001854-W085,621.60,WATSON OF SPENNYMOOR.
Children and Young Peoples Services,Head of Looked After Provision Permanence and Care Leavers,Premises,108099,Service Repairs and Maintenance,06/04/2018,3420750-10112018,"2,076.80",WAVEFORM TECHNICAL SERVICES LTD.
Dedicated Schools Grant,DSG High Needs Block,Transfer Payments,510034,School Children,06/04/2018,3420757-LACPP1718AUTUMN,550.00,WOODLANDS PRIMARY SCHOOL.
Dedicated Schools Grant,DSG High Needs Block,Transfer Payments,510034,School Children,06/04/2018,3420758-LACPP1718AUTUMNSPRING,"1,232.00",WYVERN ACADEMY.
Children and Young Peoples Services,Head of Education,Third Party Payments,440999,Other Third Party Payments,09/04/2018,3420763-INV02193,"2,112.00",ACUMEN COMMUNITY ENTERPRISE DEVELOPMENT TRUST LTD.
Regeneration and Local Services,Direct Services,Third Party Payments,430100,Rendered by Private Contractors,09/04/2018,3420766-R173/17/91460,950.00,ALAN M RANSON FUNERAL SERVICE.
Regeneration and Local Services,Direct Services,Construction Work,908105,Construction work,09/04/2018,3420767-161593,"17,640.62",ALBANY OFFICE EQUIPMENT (WHOLESALE) LTD.
Regeneration and Local Services,Direct Services,Construction Work,908105,Construction work,09/04/2018,3420767-161721,"4,210.00",ALBANY OFFICE EQUIPMENT (WHOLESALE) LTD.
Regeneration and Local Services,Direct Services,Construction Work,908105,Construction work,09/04/2018,3420767-161803,"1,032.00",ALBANY OFFICE EQUIPMENT (WHOLESALE) LTD.
Resources,Legal & Democratic Services,Supplies and Services,338057,Services,09/04/2018,3420768-0000029841,"2,840.00",ALERE FORENSICS.
Regeneration and Local Services,Technical Services,Supplies and Services,304221,Equipment and Materials,09/04/2018,3420775-29546,"2,227.50",AVATAN HANDLING EQUIPMENT LTD.
Regeneration and Local Services,EnvironmentHealth & Consumer Protection,Supplies and Services,308011,Furniture,09/04/2018,3420778-60246,832.80,BACK CARE SOLUTIONS LTD.
Regeneration and Local Services,Technical Services,Third Party Payments,430100,Rendered by Private Contractors,09/04/2018,3420779-IN32767,"6,817.00",BALFOUR BEATTY LIVING PLACES LTD.*
Regeneration and Local Services,Technical Services,Third Party Payments,430100,Rendered by Private Contractors,09/04/2018,3420779-IN32777,"3,859.08",BALFOUR BEATTY LIVING PLACES LTD.*
Regeneration and Local Services,Technical Services,Third Party Payments,430100,Rendered by Private Contractors,09/04/2018,3420779-IN32799,"7,013.71",BALFOUR BEATTY LIVING PLACES LTD.*
Regeneration and Local Services,Technical Services,Third Party Payments,430100,Rendered by Private Contractors,09/04/2018,3420779-IN32804,"2,321.07",BALFOUR BEATTY LIVING PLACES LTD.*
Regeneration and Local Services,Technical Services,Third Party Payments,430100,Rendered by Private Contractors,09/04/2018,3420779-IN32806,"14,862.08",BALFOUR BEATTY LIVING PLACES LTD.*
Regeneration and Local Services,Technical Services,Third Party Payments,430100,Rendered by Private Contractors,09/04/2018,3420779-IN32811,"13,061.93",BALFOUR BEATTY LIVING PLACES LTD.*
Regeneration and Local Services,Technical Services,Third Party Payments,430100,Rendered by Private Contractors,09/04/2018,3420779-IN32847,"16,878.58",BALFOUR BEATTY LIVING PLACES LTD.*
Regeneration and Local Services,Spatial Policy Planning Assets & Environment,Cap Exp on Grants & Other Financial Assistance (REFCUS),918501,Exp assets not owned by authority,09/04/2018,3420780-9421,"27,918.75",BARKER & BLAND LTD.
Adult and Health Services,Public Health,Third Party Payments,460803,Contract Payments,09/04/2018,3420781-141006616,"29,000.00",BARNARDO SERVICES LTD.
Regeneration and Local Services,Direct Services,Supplies and Services,304259,Equipment and Materials,09/04/2018,3420790-1016119,"3,117.50",BOSTON SEEDS.
Regeneration and Local Services,Direct Services,Supplies and Services,304221,Equipment and Materials,09/04/2018,3420792-9302759645,621.16,BRADY CORP LTD T/A SETON.
Children and Young Peoples Services,Head of Education,Transfer Payments,510027,School Children,09/04/2018,3420794-TWRIGHT050218-310318,900.00,BRIGHT STAR NURSERY.
Regeneration and Local Services,Direct Services,Supplies and Services,304221,Equipment and Materials,09/04/2018,3420795-INV225095,699.00,BROXAP LTD.
Regeneration and Local Services,Culture & Sport,Supplies and Services,338047,Services,09/04/2018,3420801-555,787.00,CHANNELL EVENTS LTD.
Regeneration and Local Services,Spatial Policy Planning Assets & Environment,Supplies and Services,338066,Services,09/04/2018,3420803-BURSARY-MARCH-2018,625.20,CHRISTOPHER THOMAS WATT.
Regeneration and Local Services,Economic Development and Housing,Supplies and Services,338035,Services,09/04/2018,3420805-804790477,"1,102.50",CITY & GUILDS OF LONDON INSTITUTE.
Regeneration and Local Services,Technical Services,Stock,926004,Stock,09/04/2018,3420807-400008193,"6,327.09",CLEVELAND POTASH LTD T/A ICL FERTILIZERS.
Regeneration and Local Services,Technical Services,Stock,926004,Stock,09/04/2018,3420807-400008194,"14,028.21",CLEVELAND POTASH LTD T/A ICL FERTILIZERS.
Regeneration and Local Services,Direct Services,Supplies and Services,384199,Miscellaneous Expenses,09/04/2018,3420809-1032,"3,968.87",CN WHITAKER.
Regeneration and Local Services,Direct Services,Supplies and Services,384199,Miscellaneous Expenses,09/04/2018,3420809-1033,805.00,CN WHITAKER.
Regeneration and Local Services,Direct Services,Supplies and Services,384199,Miscellaneous Expenses,09/04/2018,3420809-1094,"3,968.87",CN WHITAKER.
Regeneration and Local Services,Direct Services,Supplies and Services,384199,Miscellaneous Expenses,09/04/2018,3420809-3049,560.00,CN WHITAKER.
Adult and Health Services,Head of Adults,Third Party Payments,478151,Purchase of Care,09/04/2018,3420818-INV-27-31,"3,029.76",DEACONSTAR LTD.
Adult and Health Services,Head of Adults,Third Party Payments,478151,Purchase of Care,09/04/2018,3420818-INV-6-24,"2,224.19",DEACONSTAR LTD.
Resources,Digital and Customer Services,Stock,926900,Stock in hand-Inventory system,09/04/2018,3420819-7402429532,845.09,DELL COMPUTER CORPORATION LTD.
Resources,Digital and Customer Services,Stock,926900,Stock in hand-Inventory system,09/04/2018,3420819-7402429676,"2,052.40",DELL COMPUTER CORPORATION LTD.
Resources,Legal & Democratic Services,Supplies and Services,338042,Services,09/04/2018,3420820-337663/INVDR506,"1,770.00",DERE STREET BARRISTERS.
Adult and Health Services,Head of Adults,Supplies and Services,338066,Services,09/04/2018,3420823-2203201806042018,"1,946.15",DR IMRAN MUNIR.
Adult and Health Services,Head of Adults,Supplies and Services,338066,Services,09/04/2018,3420824-2203201806042018,"1,288.45",DR STEPHEN WILKINSON.
Adult and Health Services,Head of Adults,Third Party Payments,479111,Purchase of Care,09/04/2018,3420828-DCC031,"16,000.00",DURHAM DEAFENED SUPPORT.
Regeneration and Local Services,Spatial Policy Planning Assets & Environment,Supplies and Services,384199,Miscellaneous Expenses,09/04/2018,3420831-299,"4,755.00",EA BENNETT SERVICES.
Regeneration and Local Services,Direct Services,Supplies and Services,304221,Equipment and Materials,09/04/2018,3420835-059-221188,"3,773.13",EDMUNDSON ELECTRICAL LTD.
Children and Young Peoples Services,Head of Education,Supplies and Services,384491,Miscellaneous Expenses,09/04/2018,3420839-CRE1803151,"7,164.00",EMERALDS LITTLE GEMS DAYCARE LTD.
Children and Young Peoples Services,Head of Education,Supplies and Services,384199,Miscellaneous Expenses,09/04/2018,3420842-6,"4,560.00",FIRST POINT TRAINING LTD T/A DURHAMWORKS.
Regeneration and Local Services,Direct Services,Supplies and Services,304221,Equipment and Materials,09/04/2018,3420843-1803-010211,780.00,FLAME HEATING SPARES LTD.
Regeneration and Local Services,Technical Services,Supplies and Services,384871,Miscellaneous Expenses,09/04/2018,3420844-28111,"3,900.00",FORGE HOUSE GROUP LTD.
Children and Young Peoples Services,Head of Education,Supplies and Services,338027,Services,09/04/2018,3420852-160318/01,650.00,GRAHAM ELSDON (CONSULTANT).
Regeneration and Local Services,Culture & Sport,Premises,145023,Cleaning and Domestic Supplies,09/04/2018,3420853-06/729408,683.94,GREENHAM TRADING LTD.
Regeneration and Local Services,Technical Services,Stock,926900,Stock in hand-Inventory system,09/04/2018,3420853-06/729328,"2,549.20",GREENHAM TRADING LTD.
Regeneration and Local Services,Technical Services,Stock,926900,Stock in hand-Inventory system,09/04/2018,3420853-06/729677,847.80,GREENHAM TRADING LTD.
Regeneration and Local Services,Technical Services,Stock,926900,Stock in hand-Inventory system,09/04/2018,3420853-06/729947,985.46,GREENHAM TRADING LTD.
Regeneration and Local Services,Technical Services,Third Party Payments,430127,Rendered by Private Contractors,09/04/2018,3420856-180301,"9,329.50",HAWTHORN PLANT HIRE.
Regeneration and Local Services,Culture & Sport,Supplies and Services,338047,Services,09/04/2018,3420858-HBBATH74,700.00,HILARITY BITES COMEDY CLUB.
Dedicated Schools Grant,DSG High Needs Block,Third Party Payments,410037,Rendered by Other Local Authorities,09/04/2018,3420868-0000000469,"6,597.33",HUMMERSKNOTT ACADEMY.
Resources,Digital and Customer Services,Vehicles Equipment Furniture and Fittings,912701,Computer equipment,09/04/2018,3420870-3803012,"3,580.00",INSIGHT DIRECT (UK) LTD.
Regeneration and Local Services,Technical Services,Stock,926900,Stock in hand-Inventory system,09/04/2018,3420871-624299,"2,612.96",INSTARMAC GROUP PLC.
Regeneration and Local Services,Technical Services,Third Party Payments,430127,Rendered by Private Contractors,09/04/2018,3420873-5305495,"1,050.00",JA GILSON (AGRICULTURAL CONTRACTORS) LTD.
Regeneration and Local Services,Technical Services,Construction Work,908105,Construction work,09/04/2018,3420874-21293,625.96,JACK COUPE & SONS LTD T/A COUPE LINE.
Regeneration and Local Services,Technical Services,Construction Work,908105,Construction work,09/04/2018,3420874-21503,630.96,JACK COUPE & SONS LTD T/A COUPE LINE.
Regeneration and Local Services,Technical Services,Stock,926900,Stock in hand-Inventory system,09/04/2018,3420879-STI475462,"1,199.50",JT DOVE LTD.
Regeneration and Local Services,Technical Services,Third Party Payments,430100,Rendered by Private Contractors,09/04/2018,3420880-29920,"2,385.00",KAEFER LTD.
Regeneration and Local Services,Culture & Sport,Supplies and Services,338047,Services,09/04/2018,3420885-TFA032,"1,100.00",KITCHEN ZOO.
Children and Young Peoples Services,Childrens Services Operational Support,Supplies and Services,384956,Miscellaneous Expenses,09/04/2018,3420890-125813,750.00,LEARNING NEXUS LTD.
Regeneration and Local Services,Technical Services,Supplies and Services,304512,Equipment and Materials,09/04/2018,3420892-920218,"3,718.00",LIGHTING & ILLUMINATION TECHNOLOGY EXPERIENCE LTD (LITE).
Regeneration and Local Services,Direct Services,Supplies and Services,304221,Equipment and Materials,09/04/2018,3420893-4222178,688.93,LONDON GENERAL SALES LTD.
Resources,Finance & Transactional Services,Supplies and Services,384180,Miscellaneous Expenses,09/04/2018,3420894-0124619,"5,732.47",LOOMIS UK LTD.
Regeneration and Local Services,Technical Services,Supplies and Services,304221,Equipment and Materials,09/04/2018,3420897-126388,738.96,MALLATITE LTD T/A MALLATITE PLASTICS LTD.
Regeneration and Local Services,Technical Services,Stock,926900,Stock in hand-Inventory system,09/04/2018,3420897-126392,"6,305.00",MALLATITE LTD T/A MALLATITE PLASTICS LTD.
Children and Young Peoples Services,Head of Education,Supplies and Services,384302,Miscellaneous Expenses,09/04/2018,3420913-317/18,600.00,NASAM LTD T/A CDWES.
Regeneration and Local Services,Spatial Policy Planning Assets & Environment,Supplies and Services,336005,Advertising,09/04/2018,3420919-24140606,717.44,NEWSQUEST (YORKSHIRE & NORTH EAST) LTD.
Regeneration and Local Services,Technical Services,Other Expenses,914002,Capital - Advertisments,09/04/2018,3420919-24140567,956.59,NEWSQUEST (YORKSHIRE & NORTH EAST) LTD.
Children and Young Peoples Services,Head of Education,Supplies and Services,384199,Miscellaneous Expenses,09/04/2018,3420921-SAGEONE,"1,180.18",NORTH MUSIC TRUST.
Regeneration and Local Services,Direct Services,Supplies and Services,304221,Equipment and Materials,09/04/2018,3420922-2662934,"3,182.00",NORTHERN TOOLS & ACCESSORIES.
Regeneration and Local Services,Direct Services,Supplies and Services,304259,Equipment and Materials,09/04/2018,3420922-2665369,"3,269.00",NORTHERN TOOLS & ACCESSORIES.
Regeneration and Local Services,Direct Services,Supplies and Services,304259,Equipment and Materials,09/04/2018,3420922-2666917,558.00,NORTHERN TOOLS & ACCESSORIES.
Regeneration and Local Services,Direct Services,Supplies and Services,304259,Equipment and Materials,09/04/2018,3420922-2666932,"2,730.00",NORTHERN TOOLS & ACCESSORIES.
Regeneration and Local Services,Technical Services,Third Party Payments,430100,Rendered by Private Contractors,09/04/2018,3420923-156452,718.02,NORTHUMBERLAND COUNTY COUNCIL.
Dedicated Schools Grant,DSG High Needs Block,Third Party Payments,410037,Rendered by Other Local Authorities,09/04/2018,3420925-NK371/AM,"3,267.72",NUNNYKIRK CENTRE FOR DYSLEXIA.
Regeneration and Local Services,Culture & Sport,Third Party Payments,430100,Rendered by Private Contractors,09/04/2018,3420926-20039,960.00,OLIVERS TREE SERVICES LTD.
Regeneration and Local Services,Technical Services,Third Party Payments,430100,Rendered by Private Contractors,09/04/2018,3420926-20041,"4,900.00",OLIVERS TREE SERVICES LTD.
Regeneration and Local Services,Technical Services,Third Party Payments,430100,Rendered by Private Contractors,09/04/2018,3420926-20045,"3,230.00",OLIVERS TREE SERVICES LTD.
Dedicated Schools Grant,DSG High Needs Block,Supplies and Services,342053,Computers and Communications,09/04/2018,3420928-162842901,780.00,OXFORD UNIVERSITY PRESS.
Regeneration and Local Services,Direct Services,Supplies and Services,304221,Equipment and Materials,09/04/2018,3420930-DT071106,670.48,PARK ELECTRICAL DISTRIBUTORS LTD.
Regeneration and Local Services,Direct Services,Supplies and Services,304221,Equipment and Materials,09/04/2018,3420931-BR587201,673.94,PARK ELECTRICAL DISTRIBUTORS LTD.
Regeneration and Local Services,Technical Services,Stock,926900,Stock in hand-Inventory system,09/04/2018,3420931-XL219552,746.22,PARK ELECTRICAL DISTRIBUTORS LTD.
Regeneration and Local Services,Technical Services,Supplies and Services,304221,Equipment and Materials,09/04/2018,3420935-308085,721.80,PEART FENCING LTD.
Adult and Health Services,Head of Adults,Third Party Payments,470101,Purchase of Care,09/04/2018,3420936-35084,"20,476.12",PERCY HEDLEY FOUNDATION.
Adult and Health Services,Head of Adults,Third Party Payments,470101,Purchase of Care,09/04/2018,3420936-35085,"20,476.12",PERCY HEDLEY FOUNDATION.
Resources,Digital and Customer Services,Supplies and Services,342033,Computers and Communications,09/04/2018,3420939-OP/I816176,"1,756.35",PHOENIX SOFTWARE LTD.
Regeneration and Local Services,Culture & Sport,Premises,145023,Cleaning and Domestic Supplies,09/04/2018,3420940-65702939,"2,186.12",PHS GROUP PLC.
Transformation and Partnerships,Partnerships & Community Engagement Div.,Supplies and Services,384086,Miscellaneous Expenses,09/04/2018,3420942-HALD02-18,500.00,PITTINGTON YOUTH BAND-PITTINGTON BRASS.
Dedicated Schools Grant,DSG High Needs Block,Third Party Payments,410037,Rendered by Other Local Authorities,09/04/2018,3420946-POSI277,"4,463.16",PORTLAND ACADEMY.
Regeneration and Local Services,Direct Services,Supplies and Services,338078,Services,09/04/2018,3420952-108403,"3,077.23",PROTECTOR SECURITY GROUP LTD.
Regeneration and Local Services,Economic Development and Housing,Supplies and Services,338078,Services,09/04/2018,3420952-108405,"5,542.29",PROTECTOR SECURITY GROUP LTD.
Regeneration and Local Services,Direct Services,Supplies and Services,338078,Services,09/04/2018,3420952-108406,"7,520.90",PROTECTOR SECURITY GROUP LTD.
Regeneration and Local Services,Transport and Contracted Services,Third Party Payments,430100,Rendered by Private Contractors,09/04/2018,3420954-108389,"1,414.68",QW SECURITY LTD.
Regeneration and Local Services,Transport and Contracted Services,Third Party Payments,430100,Rendered by Private Contractors,09/04/2018,3420954-108390,"1,020.04",QW SECURITY LTD.
Children and Young Peoples Services,Head of Looked After Provision Permanence and Care Leavers,Supplies and Services,338078,Services,09/04/2018,3420954-108401,"16,138.50",QW SECURITY LTD.
Regeneration and Local Services,Direct Services,Supplies and Services,338078,Services,09/04/2018,3420954-105667,"5,967.65",QW SECURITY LTD.
Regeneration and Local Services,Direct Services,Supplies and Services,338078,Services,09/04/2018,3420954-106654,"5,967.65",QW SECURITY LTD.
Regeneration and Local Services,Direct Services,Supplies and Services,338078,Services,09/04/2018,3420954-107607,"5,967.65",QW SECURITY LTD.
Regeneration and Local Services,Direct Services,Supplies and Services,338078,Services,09/04/2018,3420954-108402,"6,110.26",QW SECURITY LTD.
Children and Young Peoples Services,Head of Education,Transfer Payments,510027,School Children,09/04/2018,3420955-INVOICEFOROUTREACHSUPPORT,818.07,RAINBOW NURSERY LTD (MIDDLESTONE MOOR).
Regeneration and Local Services,Direct Services,Supplies and Services,304221,Equipment and Materials,09/04/2018,3420959-0000047085,"4,711.94",RINNAI UK LTD.
Adult and Health Services,Head of Adults,Supplies and Services,304259,Equipment and Materials,09/04/2018,3420961-108076,501.95,ROMPA LTD.
Children and Young Peoples Services,Head of Education,Fees,901002,Professional fees,09/04/2018,3420963-TEC484729,"1,576.90",RPS CONSULTING SERVICES LTD.
Dedicated Schools Grant,DSG High Needs Block,Supplies and Services,384199,Miscellaneous Expenses,09/04/2018,3420970-08,510.00,SHARON HOWARD T/A SH COUNSELLING SERVICES.
Children and Young Peoples Services,Head of Early Help Assessment and Safeguarding,Supplies and Services,338043,Services,09/04/2018,3420973-250925,"1,045.00",SILLS & BETTERIDGE SOLICITORS.
Regeneration and Local Services,Direct Services,Third Party Payments,430100,Rendered by Private Contractors,09/04/2018,3420977-6159,763.00,ST ASTIER LTD.
Regeneration and Local Services,Technical Services,Construction Work,908105,Construction work,09/04/2018,3420987-90011057,"6,445.70",SWARCO TRAFFIC LTD.
Regeneration and Local Services,Direct Services,Supplies and Services,304221,Equipment and Materials,09/04/2018,3420988-2663883,"12,884.29",T CROSSLING & CO LTD.
Regeneration and Local Services,Technical Services,Supplies and Services,304221,Equipment and Materials,09/04/2018,3420989-9037706298,"1,736.22",TARMAC TRADING LTD.
Regeneration and Local Services,Technical Services,Supplies and Services,304221,Equipment and Materials,09/04/2018,3420989-9037752394,"1,317.56",TARMAC TRADING LTD.
Dedicated Schools Grant,DSG High Needs Block,Third Party Payments,410037,Rendered by Other Local Authorities,09/04/2018,3420991-NBSI70,"12,805.75",THE ASCENT ACADEMIES TRUST T/A THE NEW BRIDGE ACADEMY.
Regeneration and Local Services,Technical Services,Supplies and Services,304221,Equipment and Materials,09/04/2018,3421001-183049,894.08,TYNEDALE ROADSTONE LTD.
Regeneration and Local Services,Technical Services,Supplies and Services,304221,Equipment and Materials,09/04/2018,3421001-183077,"1,088.00",TYNEDALE ROADSTONE LTD.
Regeneration and Local Services,Technical Services,Supplies and Services,304221,Equipment and Materials,09/04/2018,3421001-183156,944.96,TYNEDALE ROADSTONE LTD.
Regeneration and Local Services,Technical Services,Supplies and Services,304221,Equipment and Materials,09/04/2018,3421001-183159,693.44,TYNEDALE ROADSTONE LTD.
Regeneration and Local Services,Technical Services,Supplies and Services,304221,Equipment and Materials,09/04/2018,3421001-183161,738.56,TYNEDALE ROADSTONE LTD.
Regeneration and Local Services,Technical Services,Supplies and Services,304221,Equipment and Materials,09/04/2018,3421001-183170,847.04,TYNEDALE ROADSTONE LTD.
Regeneration and Local Services,Technical Services,Supplies and Services,304221,Equipment and Materials,09/04/2018,3421001-183292,739.52,TYNEDALE ROADSTONE LTD.
Regeneration and Local Services,Technical Services,Supplies and Services,304221,Equipment and Materials,09/04/2018,3421001-183293,682.88,TYNEDALE ROADSTONE LTD.
Regeneration and Local Services,Technical Services,Supplies and Services,304221,Equipment and Materials,09/04/2018,3421001-183326,722.72,TYNEDALE ROADSTONE LTD.
Regeneration and Local Services,Technical Services,Supplies and Services,304221,Equipment and Materials,09/04/2018,3421001-183330,982.40,TYNEDALE ROADSTONE LTD.
Regeneration and Local Services,Technical Services,Supplies and Services,304221,Equipment and Materials,09/04/2018,3421001-183331,943.04,TYNEDALE ROADSTONE LTD.
Regeneration and Local Services,Technical Services,Supplies and Services,304221,Equipment and Materials,09/04/2018,3421001-183332,788.43,TYNEDALE ROADSTONE LTD.
Regeneration and Local Services,Technical Services,Supplies and Services,304221,Equipment and Materials,09/04/2018,3421001-183405,744.32,TYNEDALE ROADSTONE LTD.
Regeneration and Local Services,Technical Services,Supplies and Services,304221,Equipment and Materials,09/04/2018,3421001-183406,808.64,TYNEDALE ROADSTONE LTD.
Regeneration and Local Services,Technical Services,Supplies and Services,304221,Equipment and Materials,09/04/2018,3421001-183457,699.41,TYNEDALE ROADSTONE LTD.
Regeneration and Local Services,Technical Services,Supplies and Services,304221,Equipment and Materials,09/04/2018,3421001-183458,"1,030.64",TYNEDALE ROADSTONE LTD.
Regeneration and Local Services,Technical Services,Supplies and Services,304221,Equipment and Materials,09/04/2018,3421001-183460,830.08,TYNEDALE ROADSTONE LTD.
Regeneration and Local Services,Technical Services,Supplies and Services,304221,Equipment and Materials,09/04/2018,3421001-183461,744.32,TYNEDALE ROADSTONE LTD.
Regeneration and Local Services,Technical Services,Supplies and Services,304221,Equipment and Materials,09/04/2018,3421001-183462,894.08,TYNEDALE ROADSTONE LTD.
Regeneration and Local Services,Technical Services,Supplies and Services,304221,Equipment and Materials,09/04/2018,3421001-183463,"1,028.90",TYNEDALE ROADSTONE LTD.
Regeneration and Local Services,Technical Services,Supplies and Services,304221,Equipment and Materials,09/04/2018,3421001-183464,706.88,TYNEDALE ROADSTONE LTD.
Regeneration and Local Services,Technical Services,Supplies and Services,304221,Equipment and Materials,09/04/2018,3421001-183525,685.76,TYNEDALE ROADSTONE LTD.
Regeneration and Local Services,Technical Services,Supplies and Services,304221,Equipment and Materials,09/04/2018,3421001-183527,979.52,TYNEDALE ROADSTONE LTD.
Regeneration and Local Services,Technical Services,Supplies and Services,304221,Equipment and Materials,09/04/2018,3421001-183604,997.76,TYNEDALE ROADSTONE LTD.
Regeneration and Local Services,Technical Services,Supplies and Services,304221,Equipment and Materials,09/04/2018,3421001-183605,"1,159.04",TYNEDALE ROADSTONE LTD.
Regeneration and Local Services,Technical Services,Supplies and Services,304221,Equipment and Materials,09/04/2018,3421001-183607,"1,004.48",TYNEDALE ROADSTONE LTD.
Regeneration and Local Services,Technical Services,Supplies and Services,304221,Equipment and Materials,09/04/2018,3421001-183675,947.00,TYNEDALE ROADSTONE LTD.
Regeneration and Local Services,Technical Services,Supplies and Services,304221,Equipment and Materials,09/04/2018,3421001-183676,790.40,TYNEDALE ROADSTONE LTD.
Regeneration and Local Services,Technical Services,Supplies and Services,304221,Equipment and Materials,09/04/2018,3421001-183678,879.68,TYNEDALE ROADSTONE LTD.
Regeneration and Local Services,Technical Services,Supplies and Services,304221,Equipment and Materials,09/04/2018,3421001-183746,"1,106.75",TYNEDALE ROADSTONE LTD.
Regeneration and Local Services,Technical Services,Supplies and Services,304221,Equipment and Materials,09/04/2018,3421001-183747,848.00,TYNEDALE ROADSTONE LTD.
Regeneration and Local Services,Technical Services,Supplies and Services,304221,Equipment and Materials,09/04/2018,3421001-183748,689.60,TYNEDALE ROADSTONE LTD.
Regeneration and Local Services,Technical Services,Supplies and Services,304221,Equipment and Materials,09/04/2018,3421001-183778,930.56,TYNEDALE ROADSTONE LTD.
Regeneration and Local Services,Technical Services,Supplies and Services,304221,Equipment and Materials,09/04/2018,3421001-183779,"1,106.75",TYNEDALE ROADSTONE LTD.
Regeneration and Local Services,Technical Services,Supplies and Services,304221,Equipment and Materials,09/04/2018,3421001-183780,"1,000.22",TYNEDALE ROADSTONE LTD.
Regeneration and Local Services,Technical Services,Supplies and Services,304221,Equipment and Materials,09/04/2018,3421001-183781,"1,044.16",TYNEDALE ROADSTONE LTD.
Regeneration and Local Services,Technical Services,Supplies and Services,304221,Equipment and Materials,09/04/2018,3421001-183782,961.40,TYNEDALE ROADSTONE LTD.
Regeneration and Local Services,Technical Services,Supplies and Services,304221,Equipment and Materials,09/04/2018,3421001-183784,724.48,TYNEDALE ROADSTONE LTD.
Regeneration and Local Services,Technical Services,Supplies and Services,304221,Equipment and Materials,09/04/2018,3421001-183785,615.79,TYNEDALE ROADSTONE LTD.
Regeneration and Local Services,Technical Services,Supplies and Services,304221,Equipment and Materials,09/04/2018,3421001-183786,895.04,TYNEDALE ROADSTONE LTD.
Regeneration and Local Services,Technical Services,Supplies and Services,304221,Equipment and Materials,09/04/2018,3421001-183841,711.82,TYNEDALE ROADSTONE LTD.
Regeneration and Local Services,Technical Services,Supplies and Services,304221,Equipment and Materials,09/04/2018,3421001-183842,830.72,TYNEDALE ROADSTONE LTD.
Regeneration and Local Services,Technical Services,Supplies and Services,304221,Equipment and Materials,09/04/2018,3421001-183843,964.16,TYNEDALE ROADSTONE LTD.
Regeneration and Local Services,Technical Services,Supplies and Services,304221,Equipment and Materials,09/04/2018,3421001-183952,841.28,TYNEDALE ROADSTONE LTD.
Regeneration and Local Services,Technical Services,Supplies and Services,304221,Equipment and Materials,09/04/2018,3421001-183954,800.96,TYNEDALE ROADSTONE LTD.
Regeneration and Local Services,Technical Services,Supplies and Services,304221,Equipment and Materials,09/04/2018,3421001-184014,832.64,TYNEDALE ROADSTONE LTD.
Regeneration and Local Services,Technical Services,Supplies and Services,304221,Equipment and Materials,09/04/2018,3421001-184048,648.32,TYNEDALE ROADSTONE LTD.
Regeneration and Local Services,Technical Services,Supplies and Services,304221,Equipment and Materials,09/04/2018,3421001-184065,717.10,TYNEDALE ROADSTONE LTD.
Regeneration and Local Services,Technical Services,Supplies and Services,304221,Equipment and Materials,09/04/2018,3421001-184066,611.84,TYNEDALE ROADSTONE LTD.
Regeneration and Local Services,Technical Services,Supplies and Services,304221,Equipment and Materials,09/04/2018,3421001-184067,739.52,TYNEDALE ROADSTONE LTD.
Regeneration and Local Services,Technical Services,Supplies and Services,304221,Equipment and Materials,09/04/2018,3421001-184069,680.00,TYNEDALE ROADSTONE LTD.
Regeneration and Local Services,Technical Services,Supplies and Services,304221,Equipment and Materials,09/04/2018,3421001-184099,810.94,TYNEDALE ROADSTONE LTD.
Regeneration and Local Services,Technical Services,Supplies and Services,304221,Equipment and Materials,09/04/2018,3421001-184100,717.10,TYNEDALE ROADSTONE LTD.
Regeneration and Local Services,Technical Services,Supplies and Services,304221,Equipment and Materials,09/04/2018,3421001-184101,597.76,TYNEDALE ROADSTONE LTD.
Regeneration and Local Services,Technical Services,Supplies and Services,304221,Equipment and Materials,09/04/2018,3421001-184102,928.10,TYNEDALE ROADSTONE LTD.
Regeneration and Local Services,Technical Services,Supplies and Services,304221,Equipment and Materials,09/04/2018,3421001-184103,884.48,TYNEDALE ROADSTONE LTD.
Regeneration and Local Services,Technical Services,Supplies and Services,304221,Equipment and Materials,09/04/2018,3421001-184104,873.92,TYNEDALE ROADSTONE LTD.
Regeneration and Local Services,Technical Services,Supplies and Services,304221,Equipment and Materials,09/04/2018,3421001-184173,717.10,TYNEDALE ROADSTONE LTD.
Regeneration and Local Services,Technical Services,Supplies and Services,304221,Equipment and Materials,09/04/2018,3421001-184175,717.10,TYNEDALE ROADSTONE LTD.
Regeneration and Local Services,Technical Services,Supplies and Services,304221,Equipment and Materials,09/04/2018,3421001-184177,"1,010.24",TYNEDALE ROADSTONE LTD.
Regeneration and Local Services,Technical Services,Supplies and Services,304221,Equipment and Materials,09/04/2018,3421001-184178,599.52,TYNEDALE ROADSTONE LTD.
Regeneration and Local Services,Technical Services,Supplies and Services,304221,Equipment and Materials,09/04/2018,3421003-INV046801,536.34,URBIS SCHREDER LTD.
Regeneration and Local Services,Technical Services,Third Party Payments,430100,Rendered by Private Contractors,09/04/2018,3421007-250,"1,390.65",VINOVIUM ASSOCIATES LTD.
Regeneration and Local Services,Economic Development and Housing,Premises,145050,Cleaning and Domestic Supplies,09/04/2018,3421011-44827,"1,465.00",W MARLEY AGRICULTURAL CONTRACTORS LTD.
Regeneration and Local Services,Technical Services,Third Party Payments,430127,Rendered by Private Contractors,09/04/2018,3421011-44828,"14,896.00",W MARLEY AGRICULTURAL CONTRACTORS LTD.
Regeneration and Local Services,Economic Development and Housing,Supplies and Services,338099,Services,09/04/2018,3421011-44826,540.00,W MARLEY AGRICULTURAL CONTRACTORS LTD.
Regeneration and Local Services,Technical Services,Supplies and Services,304221,Equipment and Materials,09/04/2018,3421013-21632,553.70,WARD TIMBER LTD.
Regeneration and Local Services,Direct Services,Vehicles Equipment Furniture and Fittings,912529,Purchase-equipment,09/04/2018,3421015-0000800515,"10,976.17",WICKSTEED LEISURE LTD.
Regeneration and Local Services,Spatial Policy Planning Assets & Environment,Cap Exp on Grants & Other Financial Assistance (REFCUS),918501,Exp assets not owned by authority,09/04/2018,3421018-0000269727,"3,575.00",WILLIAM EYRE & SONS.
Regeneration and Local Services,Spatial Policy Planning Assets & Environment,Supplies and Services,304511,Equipment and Materials,09/04/2018,3421018-0000269728,"4,125.00",WILLIAM EYRE & SONS.
Children and Young Peoples Services,Head of Education,Transport,230006,Contract Hire,10/04/2018,3421023-35,709.50,A HJ JOBLING T/A CASTLE TAXIS.
Children and Young Peoples Services,Head of Education,Transport,230008,Contract Hire,10/04/2018,3421025-O378,"1,360.10",ABC & OUSTON CABS.
Children and Young Peoples Services,Head of Education,Transport,230008,Contract Hire,10/04/2018,3421025-O379,"1,580.00",ABC & OUSTON CABS.
Children and Young Peoples Services,Head of Education,Transport,230008,Contract Hire,10/04/2018,3421026-7/18A,"2,480.00",ADVANCE TRAVEL.
Children and Young Peoples Services,Head of Education,Transport,230012,Contract Hire,10/04/2018,3421033-MAR2018-02,"1,116.88",ARMSTRONG`S TAXIS.
Children and Young Peoples Services,Head of Education,Transport,230008,Contract Hire,10/04/2018,3421033-MAR2018-01,"1,748.00",ARMSTRONG`S TAXIS.
Regeneration and Local Services,Transport and Contracted Services,Third Party Payments,430100,Rendered by Private Contractors,10/04/2018,3421035-113625,"34,085.02",ARRIVA NORTH EAST LTD.
Regeneration and Local Services,Culture & Sport,Supplies and Services,312013,Newspapers Books and Periodicals,10/04/2018,3421036-5687413,521.73,ASKEWS & HOLTS LIBRARY SERVICES LTD.
Regeneration and Local Services,Culture & Sport,Supplies and Services,312017,Newspapers Books and Periodicals,10/04/2018,3421036-5686175,510.90,ASKEWS & HOLTS LIBRARY SERVICES LTD.
Regeneration and Local Services,Culture & Sport,Supplies and Services,312017,Newspapers Books and Periodicals,10/04/2018,3421036-5687484,541.46,ASKEWS & HOLTS LIBRARY SERVICES LTD.
Children and Young Peoples Services,Head of Education,Transport,230008,Contract Hire,10/04/2018,3421037-640,"1,866.70",AT TAXIS LTD.
Children and Young Peoples Services,Head of Education,Construction Work,908105,Construction work,10/04/2018,3421039-1760,"1,000.00",AWR ROOFING & ALUMIN RAINWATER SYSTEMS LTD.
Children and Young Peoples Services,Head of Education,Transport,230008,Contract Hire,10/04/2018,3421040-SMITH2/MARCH18,"1,003.40",BEELINE PRIVATE HIRE.
Dedicated Schools Grant,DSG High Needs Block,Transport,230010,Contract Hire,10/04/2018,3421043-6-BL008,"1,239.00",BENNETTS TAXIS.
Regeneration and Local Services,Direct Services,Transport,215012,Running Costs of Vehicles,10/04/2018,3421058-193509,812.00,CHEVIN FLEET SOLUTIONS LTD.
Children and Young Peoples Services,Head of Education,Transport,230008,Contract Hire,10/04/2018,3421060-CJ007,"3,180.00",CJ COACHES.
Children and Young Peoples Services,Head of Education,Transport,230008,Contract Hire,10/04/2018,3421062-INV-015,"1,648.00",CLARE LYNSEY STEWART T/A K&C TAXIS.
Resources,Legal & Democratic Services,Supplies and Services,338057,Services,10/04/2018,3421064-3960026492,"27,224.64",CO DURHAM & DARLINGTON NHS FOUNDATION TRUST.
Children and Young Peoples Services,Head of Education,Transport,230007,Contract Hire,10/04/2018,3421065-C/10183,"3,471.10",COCHRANES T/A KELVIN TRAVEL.
Children and Young Peoples Services,Head of Education,Transport,230003,Contract Hire,10/04/2018,3421065-C/10182,"2,647.10",COCHRANES T/A KELVIN TRAVEL.
Children and Young Peoples Services,Head of Education,Supplies and Services,352001,Conference Expenses,10/04/2018,3421066-11739,"4,590.00",COMMON PURPOSE UK.
Children and Young Peoples Services,Head of Education,Transport,230007,Contract Hire,10/04/2018,3421068-107578,677.32,CROFT BUSINESS SERVICES (UK) LTD T/A CROFT TAXIS.
Children and Young Peoples Services,Head of Education,Transport,230009,Contract Hire,10/04/2018,3421068-107581,"2,023.11",CROFT BUSINESS SERVICES (UK) LTD T/A CROFT TAXIS.
Children and Young Peoples Services,Head of Education,Transport,230006,Contract Hire,10/04/2018,3421068-107590,"1,221.98",CROFT BUSINESS SERVICES (UK) LTD T/A CROFT TAXIS.
Children and Young Peoples Services,Head of Education,Transport,230008,Contract Hire,10/04/2018,3421068-107584,"3,887.83",CROFT BUSINESS SERVICES (UK) LTD T/A CROFT TAXIS.
Children and Young Peoples Services,Head of Education,Transport,230008,Contract Hire,10/04/2018,3421068-107585,"1,986.45",CROFT BUSINESS SERVICES (UK) LTD T/A CROFT TAXIS.
Children and Young Peoples Services,Head of Education,Transport,230008,Contract Hire,10/04/2018,3421068-107591,"1,171.51",CROFT BUSINESS SERVICES (UK) LTD T/A CROFT TAXIS.
Children and Young Peoples Services,Head of Education,Transport,230008,Contract Hire,10/04/2018,3421068-107593,"1,819.17",CROFT BUSINESS SERVICES (UK) LTD T/A CROFT TAXIS.
Children and Young Peoples Services,Head of Education,Transport,230008,Contract Hire,10/04/2018,3421068-107624,"1,703.28",CROFT BUSINESS SERVICES (UK) LTD T/A CROFT TAXIS.
Adult and Health Services,Head of Adults,Transport,230005,Contract Hire,10/04/2018,3421068-107587,"1,843.63",CROFT BUSINESS SERVICES (UK) LTD T/A CROFT TAXIS.
Adult and Health Services,Head of Adults,Transport,230005,Contract Hire,10/04/2018,3421068-107588,"1,971.62",CROFT BUSINESS SERVICES (UK) LTD T/A CROFT TAXIS.
Children and Young Peoples Services,Head of Education,Transport,230008,Contract Hire,10/04/2018,3421070-07,"1,200.00",D CROOK T/A CK TAXIS.
Children and Young Peoples Services,Head of Education,Transport,230006,Contract Hire,10/04/2018,3421071-1567,"1,631.40",DA TAXIS.
Children and Young Peoples Services,Head of Education,Transport,230008,Contract Hire,10/04/2018,3421071-1570,882.00,DA TAXIS.
Children and Young Peoples Services,Head of Education,Transport,230008,Contract Hire,10/04/2018,3421072-263,"1,215.20",DA TRAVEL.
Children and Young Peoples Services,Head of Education,Transport,230008,Contract Hire,10/04/2018,3421072-264,"1,297.80",DA TRAVEL.
Children and Young Peoples Services,Head of Education,Transport,230008,Contract Hire,10/04/2018,3421074-3274,"1,751.00",DAVES MINIBUSES.
Children and Young Peoples Services,Head of Education,Transport,230008,Contract Hire,10/04/2018,3421074-3275,"1,359.60",DAVES MINIBUSES.
Children and Young Peoples Services,Head of Education,Transport,230008,Contract Hire,10/04/2018,3421074-3277,"1,606.80",DAVES MINIBUSES.
Children and Young Peoples Services,Head of Education,Supplies and Services,384199,Miscellaneous Expenses,10/04/2018,3421078-7402429447,"1,107.00",DELL COMPUTER CORPORATION LTD.
Regeneration and Local Services,Direct Services,Transport,210057,Repair and Maintenance of Vehicles,10/04/2018,3421080-DE11116835,554.54,DENNIS EAGLE LTD.
Regeneration and Local Services,Direct Services,Transport,230005,Contract Hire,10/04/2018,3421087-8142057,"1,097.65",ENTERPRISE FLEX-E-RENT T/A BURNT TREE GROUP LTD.
Regeneration and Local Services,Direct Services,Transport,230005,Contract Hire,10/04/2018,3421087-8142626,578.40,ENTERPRISE FLEX-E-RENT T/A BURNT TREE GROUP LTD.
Regeneration and Local Services,Direct Services,Transport,230005,Contract Hire,10/04/2018,3421087-8142629,"1,173.35",ENTERPRISE FLEX-E-RENT T/A BURNT TREE GROUP LTD.
Children and Young Peoples Services,Head of Education,Transport,230008,Contract Hire,10/04/2018,3421096-W079-MARCH,594.00,GAZZCABS.
Regeneration and Local Services,Direct Services,Transport,210057,Repair and Maintenance of Vehicles,10/04/2018,3421100-144338,863.84,GREENLAY (GRASS MACHINERY) LTD.
Adult and Health Services,Head of Adults,Transport,230005,Contract Hire,10/04/2018,3421109-34-SED104,640.00,JOHN CRAKE & SONS MINI BUSES LTD.
Regeneration and Local Services,Transport and Contracted Services,Third Party Payments,430106,Rendered by Private Contractors,10/04/2018,3421110-DCC3/18,"4,025.13",JOHN JAMES BRUNSKILL T/A JSB TRAVEL LTD.
Regeneration and Local Services,Technical Services,Third Party Payments,430100,Rendered by Private Contractors,10/04/2018,3421117-18625,"121,168.05",KIELY BROS LTD.
Children and Young Peoples Services,Head of Education,Transport,230006,Contract Hire,10/04/2018,3421122-1152,"1,848.00",LD TAXIS.
Children and Young Peoples Services,Head of Education,Transport,230008,Contract Hire,10/04/2018,3421122-1151,"1,470.00",LD TAXIS.
Adult and Health Services,Head of Adults,Transport,230005,Contract Hire,10/04/2018,3421122-1150,"1,470.00",LD TAXIS.
Children and Young Peoples Services,Head of Education,Supplies and Services,384199,Miscellaneous Expenses,10/04/2018,3421125-4933,"3,744.00",LEE`S COACHES LTD.
Children and Young Peoples Services,Head of Education,Supplies and Services,384199,Miscellaneous Expenses,10/04/2018,3421125-4943,"3,125.00",LEE`S COACHES LTD.
Regeneration and Local Services,Direct Services,Transport,230005,Contract Hire,10/04/2018,3421123-4442906,"1,119.00",LEEDS COMMERCIAL LTD.
Regeneration and Local Services,Culture & Sport,Supplies and Services,384199,Miscellaneous Expenses,10/04/2018,3421126-17846,"1,500.00",LIMELIGHT CELEBRITY MANAGEMENT LTD.
Children and Young Peoples Services,Head of Education,Transport,230006,Contract Hire,10/04/2018,3421132-5541,812.00,MAKEPEACE MOTORS.
Children and Young Peoples Services,Head of Education,Transport,230008,Contract Hire,10/04/2018,3421134-INV03/1809,"2,038.40",MARK & JOHN CHISHOLM T/A (CHEVRON).
Regeneration and Local Services,Direct Services,Supplies and Services,304221,Equipment and Materials,10/04/2018,3421139-121,"2,600.00",MOJO POLYTUNNELS LTD.
Dedicated Schools Grant,DSG High Needs Block,Transport,230010,Contract Hire,10/04/2018,3421140-STF03-18,"3,288.65",MR CT WALKER T/A CW TAXIS.
Children and Young Peoples Services,Head of Education,Transport,230008,Contract Hire,10/04/2018,3421140-DT203-18,726.00,MR CT WALKER T/A CW TAXIS.
Children and Young Peoples Services,Head of Education,Transport,230008,Contract Hire,10/04/2018,3421140-DT303-18,866.00,MR CT WALKER T/A CW TAXIS.
Children and Young Peoples Services,Head of Education,Transport,230008,Contract Hire,10/04/2018,3421140-EL103-18,"1,232.70",MR CT WALKER T/A CW TAXIS.
Children and Young Peoples Services,Head of Education,Transport,230008,Contract Hire,10/04/2018,3421140-EL203-18,"1,614.45",MR CT WALKER T/A CW TAXIS.
Children and Young Peoples Services,Head of Education,Transport,230008,Contract Hire,10/04/2018,3421140-GP03-18,776.00,MR CT WALKER T/A CW TAXIS.
Adult and Health Services,Head of Adults,Transport,230005,Contract Hire,10/04/2018,3421141-0318,"1,050.00",MR D DONNELLY.
Regeneration and Local Services,Culture & Sport,Supplies and Services,312013,Newspapers Books and Periodicals,10/04/2018,3421148-006086,554.17,NEWSMARKET.
Children and Young Peoples Services,Head of Education,Third Party Payments,440999,Other Third Party Payments,10/04/2018,3421150-5-2018,"2,502.00",NIGEL BROUGH T/A BESPOKE TRAINING SOLUTIONS LTD.
Regeneration and Local Services,Transport and Contracted Services,Third Party Payments,430100,Rendered by Private Contractors,10/04/2018,3421155-00001247,"2,620.63",NSL LTD.
Regeneration and Local Services,Direct Services,Transport,215005,Running Costs of Vehicles,10/04/2018,3421156-318222,"17,517.60",OIL NRG LTD.
Resources,Digital and Customer Services,Supplies and Services,342051,Computers and Communications,10/04/2018,3421158-1640549,"10,416.00",ORACLE CORPORATION UK LTD.
Adult and Health Services,Head of Adults,Supplies and Services,338365,Services,10/04/2018,3421165-308033,888.00,PEART ACCESS RAMPS.*
Children and Young Peoples Services,Head of Education,Transport,230006,Contract Hire,10/04/2018,3421168-23154,840.00,PHOENIX TAXIS T/A PRATT`S TAXIS.
Regeneration and Local Services,Technical Services,Supplies and Services,304221,Equipment and Materials,10/04/2018,3421171-0000112967,756.00,PROCTER BROS.
Regeneration and Local Services,Transport and Contracted Services,Supplies and Services,336005,Advertising,10/04/2018,3421173-0000063914,"3,873.00",RATCLIFFE MEDIA LTD T/A ADVERTA.
Regeneration and Local Services,Technical Services,Third Party Payments,430100,Rendered by Private Contractors,10/04/2018,3421174-I-000933,"4,115.00",READMAN FABRICATIONS LTD.
Transformation and Partnerships,Comms & Information Management,Supplies and Services,336005,Advertising,10/04/2018,3421182-3866,525.00,SAVILLS UK LTD.
Regeneration and Local Services,Transport and Contracted Services,Third Party Payments,430106,Rendered by Private Contractors,10/04/2018,3421183-2655,"173,965.04",SCARLET BAND BUS & COACH LTD.
Children and Young Peoples Services,Head of Education,Transport,230007,Contract Hire,10/04/2018,3421187-50063,"1,027.94",STANLEY TRAVEL (NORTH EAST) LTD.
Children and Young Peoples Services,Head of Education,Transport,230007,Contract Hire,10/04/2018,3421187-50064,"3,169.40",STANLEY TRAVEL (NORTH EAST) LTD.
Children and Young Peoples Services,Head of Education,Transport,230003,Contract Hire,10/04/2018,3421187-50057,"1,521.73",STANLEY TRAVEL (NORTH EAST) LTD.
Children and Young Peoples Services,Head of Education,Transport,230003,Contract Hire,10/04/2018,3421187-50058,"1,321.91",STANLEY TRAVEL (NORTH EAST) LTD.
Children and Young Peoples Services,Head of Education,Transport,230003,Contract Hire,10/04/2018,3421187-50059,"1,705.07",STANLEY TRAVEL (NORTH EAST) LTD.
Children and Young Peoples Services,Head of Education,Transport,230003,Contract Hire,10/04/2018,3421187-50060,"1,705.07",STANLEY TRAVEL (NORTH EAST) LTD.
Children and Young Peoples Services,Head of Education,Transport,230003,Contract Hire,10/04/2018,3421187-50061,"1,705.07",STANLEY TRAVEL (NORTH EAST) LTD.
Children and Young Peoples Services,Head of Education,Transport,230003,Contract Hire,10/04/2018,3421187-50062,"1,705.07",STANLEY TRAVEL (NORTH EAST) LTD.
Regeneration and Local Services,Technical Services,Supplies and Services,304221,Equipment and Materials,10/04/2018,3421190-103658,"1,103.24",STONEGRAVE AGGREGATES LTD.
Adult and Health Services,Commissioning inc Supporting People,Third Party Payments,443001,Supporting People,10/04/2018,3421191-1967532,"1,125.60",STONHAM HOUSING ASSOCIATION LTD.
Adult and Health Services,Head of Adults,Supplies and Services,384199,Miscellaneous Expenses,10/04/2018,3421192-SA099-17,"1,440.00",STRAY AID LTD.
Regeneration and Local Services,Corporate Director (Regeneration & Local Services),Supplies and Services,352001,Conference Expenses,10/04/2018,3421197-BD/001/QUOTE,591.65,TJ CRONEY T/A SANGUINES..
Children and Young Peoples Services,Head of Education,Transport,230006,Contract Hire,10/04/2018,3421198-0001955,"1,400.00",TONY RIDLEY T/A COLORS TAXIS LTD.
Children and Young Peoples Services,Head of Education,Transport,230006,Contract Hire,10/04/2018,3421198-0001956,910.00,TONY RIDLEY T/A COLORS TAXIS LTD.
Children and Young Peoples Services,Head of Education,Transport,230008,Contract Hire,10/04/2018,3421198-0001953,"1,850.00",TONY RIDLEY T/A COLORS TAXIS LTD.
Children and Young Peoples Services,Head of Education,Transport,230008,Contract Hire,10/04/2018,3421199-GAPINVOICE102,"1,153.60",TRIDENT TAXIS.
Regeneration and Local Services,Direct Services,Transport,230710,Contract Hire,10/04/2018,3421200-901243,"6,548.08",TRIPLE POINT LEASING LTD.
Regeneration and Local Services,Direct Services,Transport,230710,Contract Hire,10/04/2018,3421200-901244,"4,703.20",TRIPLE POINT LEASING LTD.
Regeneration and Local Services,Technical Services,Supplies and Services,304221,Equipment and Materials,10/04/2018,3421202-183171,843.20,TYNEDALE ROADSTONE LTD.
Regeneration and Local Services,Technical Services,Supplies and Services,304221,Equipment and Materials,10/04/2018,3421202-183286,605.12,TYNEDALE ROADSTONE LTD.
Regeneration and Local Services,Technical Services,Supplies and Services,304221,Equipment and Materials,10/04/2018,3421202-183745,"1,036.88",TYNEDALE ROADSTONE LTD.
Regeneration and Local Services,Technical Services,Supplies and Services,304221,Equipment and Materials,10/04/2018,3421202-183783,875.84,TYNEDALE ROADSTONE LTD.
Regeneration and Local Services,Technical Services,Supplies and Services,304221,Equipment and Materials,10/04/2018,3421202-184281,790.40,TYNEDALE ROADSTONE LTD.
Regeneration and Local Services,Technical Services,Supplies and Services,304221,Equipment and Materials,10/04/2018,3421202-184282,"1,106.75",TYNEDALE ROADSTONE LTD.
Regeneration and Local Services,Technical Services,Supplies and Services,304221,Equipment and Materials,10/04/2018,3421202-184283,824.00,TYNEDALE ROADSTONE LTD.
Regeneration and Local Services,Technical Services,Supplies and Services,304221,Equipment and Materials,10/04/2018,3421202-184284,"1,016.30",TYNEDALE ROADSTONE LTD.
Regeneration and Local Services,Technical Services,Supplies and Services,304221,Equipment and Materials,10/04/2018,3421202-184287,629.44,TYNEDALE ROADSTONE LTD.
Regeneration and Local Services,Technical Services,Supplies and Services,304221,Equipment and Materials,10/04/2018,3421202-184288,"1,132.48",TYNEDALE ROADSTONE LTD.
Regeneration and Local Services,Technical Services,Stock,926900,Stock in hand-Inventory system,10/04/2018,3421204-INV045860,"8,755.00",URBIS SCHREDER LTD.
Resources,Digital and Customer Services,Fees,901002,Professional fees,10/04/2018,3421208-V720,800.00,VOXDEV LTD.
Children and Young Peoples Services,Head of Education,Transport,230008,Contract Hire,10/04/2018,3421211-GAP/27,"1,290.00",WAYSIDE TAXIS.
Regeneration and Local Services,Culture & Sport,Construction Work,908105,Construction work,11/04/2018,3421945-1LIFE19446,"23,664.37",1LIFE MANAGEMENT SOLUTIONS LTD.
Regeneration and Local Services,Culture & Sport,Third Party Payments,430100,Rendered by Private Contractors,11/04/2018,3421945-1LIFE19431,"131,221.00",1LIFE MANAGEMENT SOLUTIONS LTD.
Regeneration and Local Services,Economic Development and Housing,Supplies and Services,338066,Services,11/04/2018,3421949-BUSDURMAR18,"2,500.00",ABACUS 449 LTD.
Regeneration and Local Services,Culture & Sport,Supplies and Services,304259,Equipment and Materials,11/04/2018,3421951-116326639,"1,932.37",AC ENTERTAINMENT TECHNOLOGIES.
Regeneration and Local Services,EnvironmentHealth & Consumer Protection,Supplies and Services,304999,Equipment and Materials,11/04/2018,3421952-200318A,"3,475.00",ACCUDATA LTD.
Children and Young Peoples Services,Head of Education,Supplies and Services,384871,Miscellaneous Expenses,11/04/2018,3421955-0318/08,500.00,ADAM BUSHNELL LTD.
Resources,Legal & Democratic Services,Supplies and Services,332029,Printing Stationery and Gen Off Exps,11/04/2018,3421956-PSI0047597,528.37,ADARE INSPIRED COMMUNICATIONS.
Regeneration and Local Services,Technical Services,Employees,080025,Agency Staff,11/04/2018,3421957-28342292,"3,836.00",AECOM LTD.
Regeneration and Local Services,Technical Services,Supplies and Services,304221,Equipment and Materials,11/04/2018,3421960-26277487,"1,294.80",AGGREGATE INDUSTRIES UK LTD.
Resources,Digital and Customer Services,Supplies and Services,332029,Printing Stationery and Gen Off Exps,11/04/2018,3421961-109824,"4,396.41",AGNE LTD T/A ALPHAGRAPHICS.
Adult and Health Services,Head of Adults,Supplies and Services,308011,Furniture,11/04/2018,3421962-10538,"1,057.00",AH & D CUTHBERTSON LTD.
Regeneration and Local Services,Transport and Contracted Services,Third Party Payments,440999,Other Third Party Payments,11/04/2018,3421963-0900000381-024,"1,153.25",AIRWAVE SOLUTIONS LTD.
Regeneration and Local Services,Technical Services,Third Party Payments,430100,Rendered by Private Contractors,11/04/2018,3421964-J1530/17/B/07MAR18,"1,064.00",AK (LIGHTING & SIGNS) LTD.
Regeneration and Local Services,Technical Services,Third Party Payments,430100,Rendered by Private Contractors,11/04/2018,3421964-J1530/18/B/03,"4,569.00",AK (LIGHTING & SIGNS) LTD.
Regeneration and Local Services,Technical Services,Third Party Payments,430100,Rendered by Private Contractors,11/04/2018,3421964-J1530/18/B/04,"5,489.00",AK (LIGHTING & SIGNS) LTD.
Regeneration and Local Services,Technical Services,Third Party Payments,430100,Rendered by Private Contractors,11/04/2018,3421964-J1530/18/B/05,"2,662.00",AK (LIGHTING & SIGNS) LTD.
Regeneration and Local Services,Technical Services,Third Party Payments,430100,Rendered by Private Contractors,11/04/2018,3421964-J1530/18/B/09,"1,928.00",AK (LIGHTING & SIGNS) LTD.
Regeneration and Local Services,Technical Services,Third Party Payments,430100,Rendered by Private Contractors,11/04/2018,3421964-J1530/18/B/13,"3,194.00",AK (LIGHTING & SIGNS) LTD.
Regeneration and Local Services,Direct Services,Construction Work,908105,Construction work,11/04/2018,3421965-161935,525.50,ALBANY OFFICE EQUIPMENT (WHOLESALE) LTD.
Regeneration and Local Services,Economic Development and Housing,Supplies and Services,384199,Miscellaneous Expenses,11/04/2018,3421965-161924,"1,120.00",ALBANY OFFICE EQUIPMENT (WHOLESALE) LTD.
Resources,Legal & Democratic Services,Supplies and Services,338057,Services,11/04/2018,3421966-0000029873,"2,330.00",ALERE FORENSICS.
Resources,Legal & Democratic Services,Supplies and Services,338057,Services,11/04/2018,3421966-0000029974,"1,130.00",ALERE FORENSICS.
Resources,Digital and Customer Services,Supplies and Services,304245,Equipment and Materials,11/04/2018,3421972-9182,"4,495.00",ALPHATEC 2000 LTD.
Regeneration and Local Services,EnvironmentHealth & Consumer Protection,Supplies and Services,372009,Subscriptions,11/04/2018,3421973-INV2018-084,"2,855.00",ALTIA SOLUTIONS LTD.
Regeneration and Local Services,Direct Services,Third Party Payments,430100,Rendered by Private Contractors,11/04/2018,3421976-16697,"1,150.00",AMBIC LTD.
Regeneration and Local Services,Economic Development and Housing,Supplies and Services,342053,Computers and Communications,11/04/2018,3421978-9940855,827.20,ANCHOR COMPUTER SYSTEMS LTD.
Regeneration and Local Services,Technical Services,Supplies and Services,304221,Equipment and Materials,11/04/2018,3421982-13576,"4,843.80",APOLLO PRODUCTS LTD.
Regeneration and Local Services,Transport and Contracted Services,Third Party Payments,430100,Rendered by Private Contractors,11/04/2018,3421989-CONCFAREPAY17-7FEBV1,"488,120.00",ARRIVA DURHAM COUNTY LTD.
Regeneration and Local Services,Transport and Contracted Services,Third Party Payments,430107,Rendered by Private Contractors,11/04/2018,3421990-CONCFAREPAY17-7FEBV1,"1,158.37",ARRIVA RAIL NORTH LTD T/A NORTHERN.
Children and Young Peoples Services,Head of Education,Supplies and Services,312009,Newspapers Books and Periodicals,11/04/2018,3421991-5691314,648.22,ASKEWS & HOLTS LIBRARY SERVICES LTD.
Children and Young Peoples Services,Head of Education,Supplies and Services,384199,Miscellaneous Expenses,11/04/2018,3421992-102,780.00,ASPIRE TRAINING & DEVELOPMENT SOLUTIONS.
Children and Young Peoples Services,Head of Education,Supplies and Services,384199,Miscellaneous Expenses,11/04/2018,3421992-109,660.00,ASPIRE TRAINING & DEVELOPMENT SOLUTIONS.
Regeneration and Local Services,Technical Services,Supplies and Services,372009,Subscriptions,11/04/2018,3421994-201819146,"2,040.00","ASSOCIATION OF DIRECTORS OF ENVIRONMENT, ECONOMY, PLANNING & TRANSPORT (ADEPT)."
Regeneration and Local Services,Technical Services,Stock,926900,Stock in hand-Inventory system,11/04/2018,3421995-SIN373701,"1,251.80",ATF SUPPLIES LTD.
Regeneration and Local Services,Technical Services,Stock,926900,Stock in hand-Inventory system,11/04/2018,3421995-SIN374674,606.90,ATF SUPPLIES LTD.
Regeneration and Local Services,Technical Services,Construction Work,908105,Construction work,11/04/2018,3421996-MS1800689,621.93,ATG ACCESS LTD.
Regeneration and Local Services,Technical Services,Supplies and Services,338027,Services,11/04/2018,3421997-18011973,"8,469.22",ATKINS GLOBAL.
Regeneration and Local Services,Technical Services,Supplies and Services,338027,Services,11/04/2018,3421997-18012491,"1,808.95",ATKINS GLOBAL.
Regeneration and Local Services,Technical Services,Supplies and Services,338027,Services,11/04/2018,3421997-18012518,"2,000.00",ATKINS GLOBAL.
Regeneration and Local Services,Culture & Sport,Premises,108099,Service Repairs and Maintenance,11/04/2018,3421997-18012506,"1,180.00",ATKINS GLOBAL.
Regeneration and Local Services,Culture & Sport,Premises,108099,Service Repairs and Maintenance,11/04/2018,3421997-18012512,"3,880.00",ATKINS GLOBAL.
Regeneration and Local Services,Direct Services,Premises,108301,Service Repairs and Maintenance,11/04/2018,3421997-18012480,"1,034.60",ATKINS GLOBAL.
Children and Young Peoples Services,Head of Education,Fees,901002,Professional fees,11/04/2018,3421997-18012490,"5,122.52",ATKINS GLOBAL.
Regeneration and Local Services,Direct Services,Construction Work,908105,Construction work,11/04/2018,3421998-2947,"1,440.00",ATLANTIC GEOMATICS (UK) LTD.
Adult and Health Services,Commissioning inc Supporting People,Third Party Payments,478101,Purchase of Care,11/04/2018,3421999-AHS01779,"5,169.19",AUCKLAND HOME SOLUTIONS CIC.
Regeneration and Local Services,Direct Services,Supplies and Services,304083,Equipment and Materials,11/04/2018,3422000-1793,"3,463.00",AUTO ITEMS LTD.
Regeneration and Local Services,Direct Services,Supplies and Services,304221,Equipment and Materials,11/04/2018,3422005-97032373,"2,064.32",BALL COLEGRAVE LTD.
Regeneration and Local Services,Direct Services,Supplies and Services,304221,Equipment and Materials,11/04/2018,3422005-97032375,"1,039.02",BALL COLEGRAVE LTD.
Regeneration and Local Services,Direct Services,Supplies and Services,304221,Equipment and Materials,11/04/2018,3422005-97032376,983.49,BALL COLEGRAVE LTD.
Regeneration and Local Services,Direct Services,Supplies and Services,304221,Equipment and Materials,11/04/2018,3422005-97049973,"2,325.25",BALL COLEGRAVE LTD.
Regeneration and Local Services,Direct Services,Supplies and Services,304221,Equipment and Materials,11/04/2018,3422005-97049975,"2,982.00",BALL COLEGRAVE LTD.
Regeneration and Local Services,Spatial Policy Planning Assets & Environment,Cap Exp on Grants & Other Financial Assistance (REFCUS),918501,Exp assets not owned by authority,11/04/2018,3422006-9522,"51,859.00",BARKER & BLAND LTD.
Regeneration and Local Services,Transport and Contracted Services,Construction Work,908105,Construction work,11/04/2018,3422010-56215,503.00,BAYDALE CONTROL SYSTEMS LTD.
Regeneration and Local Services,Technical Services,Supplies and Services,304221,Equipment and Materials,11/04/2018,3422011-INV-0332,"2,400.00",BEAVER BRIDGE HIRE LTD.
Children and Young Peoples Services,Head of Education,Supplies and Services,338027,Services,11/04/2018,3422015-0002,840.00,BERNARD CLARK (CONSULTANT).
Regeneration and Local Services,Culture & Sport,Supplies and Services,312013,Newspapers Books and Periodicals,11/04/2018,3422019-11541,"4,710.00",BIBLIOGRAPHIC DATA SERVICES LTD.
Adult and Health Services,Commissioning inc Supporting People,Third Party Payments,442002,Supporting People,11/04/2018,3422020-1967525,"16,448.04",BID SERVICES WITH DEAF PEOPLE.
Regeneration and Local Services,Technical Services,Supplies and Services,304337,Equipment and Materials,11/04/2018,3422024-BMPR/143/LW,880.00,BISHOP MIDDLEHAM PLANT & RECYCLING LTD.
Regeneration and Local Services,Technical Services,Supplies and Services,304221,Equipment and Materials,11/04/2018,3422024-BMPR/153/LW,"1,200.00",BISHOP MIDDLEHAM PLANT & RECYCLING LTD.
Regeneration and Local Services,Transport and Contracted Services,Fees,901002,Professional fees,11/04/2018,3422026-9630,"220,093.68",BLOOM PROCUREMENT SERVICES LTD (FORMERLY NEPRO LTD).
Regeneration and Local Services,Direct Services,Third Party Payments,430100,Rendered by Private Contractors,11/04/2018,3422033-4100609787,"1,870.00",BRIAN YOUNGER T/A B & E YOUNGER FLOORING.
Regeneration and Local Services,Technical Services,Third Party Payments,430100,Rendered by Private Contractors,11/04/2018,3422034-43178,"4,356.48",BRIDGEWAY CONSULTING LTD.
Regeneration and Local Services,Economic Development and Housing,Supplies and Services,338066,Services,11/04/2018,3422037-165,"3,537.50",BRYAN LATTY (FREELANCE CONSULTANT).
Regeneration and Local Services,Transport and Contracted Services,Supplies and Services,304245,Equipment and Materials,11/04/2018,3422038-53135,"4,380.00",BUDDI.
Children and Young Peoples Services,Head of Education,Transfer Payments,510027,School Children,11/04/2018,3422039-WWDOB4/10/13-19/3/18,714.00,BUDDIES CHILDCARE CENTRE.
Children and Young Peoples Services,Head of Early Help Assessment and Safeguarding,Third Party Payments,425020,Rendered by Voluntary Organisations,11/04/2018,3422041-341/18,740.00,BUTTERWICK LTD..
Children and Young Peoples Services,Head of Early Help Assessment and Safeguarding,Third Party Payments,425020,Rendered by Voluntary Organisations,11/04/2018,3422041-347/18,"1,850.00",BUTTERWICK LTD..
Adult and Health Services,Head of Adults,Third Party Payments,470101,Purchase of Care,11/04/2018,3422041-336/18,"1,110.00",BUTTERWICK LTD..
Regeneration and Local Services,Transport and Contracted Services,Construction Work,908105,Construction work,11/04/2018,3422043-111119,"4,391.00",CA TRAFFIC LTD.
Regeneration and Local Services,Transport and Contracted Services,Construction Work,908105,Construction work,11/04/2018,3422043-111120,"4,391.00",CA TRAFFIC LTD.
Regeneration and Local Services,Transport and Contracted Services,Construction Work,908105,Construction work,11/04/2018,3422043-111133,"2,980.00",CA TRAFFIC LTD.
Regeneration and Local Services,Direct Services,Premises,108099,Service Repairs and Maintenance,11/04/2018,3422045-18216,603.24,CAM-TEC SYSTEMS LTD.
Regeneration and Local Services,Culture & Sport,Premises,145023,Cleaning and Domestic Supplies,11/04/2018,3422047-CN19672358,515.34,CANNON HYGIENE LTD.
Regeneration and Local Services,Culture & Sport,Premises,145050,Cleaning and Domestic Supplies,11/04/2018,3422047-CN19672372,"3,264.00",CANNON HYGIENE LTD.
Children and Young Peoples Services,Head of Early Help Assessment and Safeguarding,Supplies and Services,304259,Equipment and Materials,11/04/2018,3422047-CN19652760,844.44,CANNON HYGIENE LTD.
Adult and Health Services,Head of Adults,Supplies and Services,338366,Services,11/04/2018,3422049-48599-2018,747.10,CARE ABILITY.
Adult and Health Services,Head of Adults,Supplies and Services,338366,Services,11/04/2018,3422049-48600-2018,"1,784.50",CARE ABILITY.
Adult and Health Services,Head of Adults,Supplies and Services,338366,Services,11/04/2018,3422049-48601-2018,"2,894.00",CARE ABILITY.
Adult and Health Services,Head of Adults,Supplies and Services,338366,Services,11/04/2018,3422049-48602-2018,812.35,CARE ABILITY.
Adult and Health Services,Head of Adults,Supplies and Services,338366,Services,11/04/2018,3422049-48603-2018,"2,864.00",CARE ABILITY.
Adult and Health Services,Head of Adults,Supplies and Services,338366,Services,11/04/2018,3422049-48864,"3,038.00",CARE ABILITY.
Regeneration and Local Services,Economic Development and Housing,Premises,108251,Service Repairs and Maintenance,11/04/2018,3422055-4009,"2,082.66",CATHEDRAL LOCK & SAFE SERVICES LTD.
Regeneration and Local Services,Economic Development and Housing,Premises,108251,Service Repairs and Maintenance,11/04/2018,3422055-4028,"2,356.46",CATHEDRAL LOCK & SAFE SERVICES LTD.
Regeneration and Local Services,Direct Services,Third Party Payments,430100,Rendered by Private Contractors,11/04/2018,3422055-4022,948.85,CATHEDRAL LOCK & SAFE SERVICES LTD.
Regeneration and Local Services,Economic Development and Housing,Supplies and Services,338094,Services,11/04/2018,3422056-22/03/2018,715.00,CDC ENTERPRISE AGENCY.
Regeneration and Local Services,Economic Development and Housing,Supplies and Services,338094,Services,11/04/2018,3422056-22/03/2018MTGROOM,510.00,CDC ENTERPRISE AGENCY.
Children and Young Peoples Services,Head of Looked After Provision Permanence and Care Leavers,Employees,080025,Agency Staff,11/04/2018,3422057-03988559,547.50,CER (A DIVISION OF MONARCH EDUCATION LTD).
Children and Young Peoples Services,Head of Looked After Provision Permanence and Care Leavers,Employees,080025,Agency Staff,11/04/2018,3422057-03988560,547.50,CER (A DIVISION OF MONARCH EDUCATION LTD).
Resources,Finance & Transactional Services,Supplies and Services,340001,Postages,11/04/2018,3422058-CFH014361,"63,767.87",CFH TOTAL DOCUMENT MANAGEMENT LTD.
Resources,Finance & Transactional Services,Supplies and Services,332029,Printing Stationery and Gen Off Exps,11/04/2018,3422058-CFH014319,"22,846.91",CFH TOTAL DOCUMENT MANAGEMENT LTD.
Regeneration and Local Services,Direct Services,Supplies and Services,304221,Equipment and Materials,11/04/2018,3422060-185569,799.00,CHAS LONG & SON (AGGREGATES) LTD.
Regeneration and Local Services,Direct Services,Transport,215012,Running Costs of Vehicles,11/04/2018,3422062-193547,"1,421.00",CHEVIN FLEET SOLUTIONS LTD.
Adult and Health Services,Public Health,Supplies and Services,352001,Conference Expenses,11/04/2018,3422064-1803005,"2,178.05",CHRIS BENTLEY CONSULTING LTD.
Regeneration and Local Services,Economic Development and Housing,Supplies and Services,338035,Services,11/04/2018,3422068-804808345,588.50,CITY & GUILDS OF LONDON INSTITUTE.
Children and Young Peoples Services,Head of Education,Transfer Payments,510027,School Children,11/04/2018,3422074-DCC0022,585.00,CLEVER CLOGS DAY NURSERIES LTD.
Regeneration and Local Services,Technical Services,Stock,926900,Stock in hand-Inventory system,11/04/2018,3422080-208280,"1,652.16",COLAS LTD.
Regeneration and Local Services,Technical Services,Stock,926900,Stock in hand-Inventory system,11/04/2018,3422080-208554,"1,457.28",COLAS LTD.
Children and Young Peoples Services,Head of Education,Transport,230008,Contract Hire,11/04/2018,3422084-1414,"1,895.20",CONNORS MINI BUSES.*
Children and Young Peoples Services,Head of Education,Transport,230008,Contract Hire,11/04/2018,3422084-1415,"1,812.80",CONNORS MINI BUSES.*
Children and Young Peoples Services,Head of Education,Transport,230008,Contract Hire,11/04/2018,3422084-1416,"1,936.40",CONNORS MINI BUSES.*
Children and Young Peoples Services,Head of Education,Transport,230008,Contract Hire,11/04/2018,3422084-1417,"2,472.00",CONNORS MINI BUSES.*
Regeneration and Local Services,Culture & Sport,Supplies and Services,304259,Equipment and Materials,11/04/2018,3422085-SI-182038,"1,041.00",CONTINENTAL SPORTS LTD.
Regeneration and Local Services,EnvironmentHealth & Consumer Protection,Supplies and Services,338042,Services,11/04/2018,3422088-139962,"1,000.00",CORNERSTONE BARRISTERS.
Regeneration and Local Services,EnvironmentHealth & Consumer Protection,Supplies and Services,338042,Services,11/04/2018,3422088-HL/139962,"1,100.00",CORNERSTONE BARRISTERS.
Children and Young Peoples Services,Head of Education,Supplies and Services,384199,Miscellaneous Expenses,11/04/2018,3422089-17/18194,950.00,CORNFORTH PARTNERSHIP.
Children and Young Peoples Services,Head of Education,Supplies and Services,384199,Miscellaneous Expenses,11/04/2018,3422089-17/18201,"8,170.00",CORNFORTH PARTNERSHIP.
Children and Young Peoples Services,Head of Education,Third Party Payments,440999,Other Third Party Payments,11/04/2018,3422089-17/18197,"4,941.72",CORNFORTH PARTNERSHIP.
Regeneration and Local Services,Culture & Sport,Supplies and Services,338099,Services,11/04/2018,3422091-103,975.00,COUNTY DURHAM SPORT.
Adult and Health Services,Public Health,Supplies and Services,342051,Computers and Communications,11/04/2018,3422096-6387,"18,100.00",CYBER MEDIA SOLUTIONS LTD.
Adult and Health Services,Public Health,Supplies and Services,342051,Computers and Communications,11/04/2018,3422096-6388,"2,320.00",CYBER MEDIA SOLUTIONS LTD.
Regeneration and Local Services,Technical Services,Third Party Payments,430127,Rendered by Private Contractors,11/04/2018,3422097-003,"5,133.00",D & L HOPPS.
Regeneration and Local Services,Technical Services,Third Party Payments,430127,Rendered by Private Contractors,11/04/2018,3422097-004,"1,242.50",D & L HOPPS.
Regeneration and Local Services,Technical Services,Third Party Payments,430127,Rendered by Private Contractors,11/04/2018,3422097-005,845.00,D & L HOPPS.
Children and Young Peoples Services,Head of Early Help Assessment and Safeguarding,Supplies and Services,384302,Miscellaneous Expenses,11/04/2018,3422098-10855,"2,231.10",D & WP.
Regeneration and Local Services,Transport and Contracted Services,Supplies and Services,338099,Services,11/04/2018,3422099-GEN/18/7,832.00,D CARMICHAEL AGRICULTURAL VALUERS LTD.
Children and Young Peoples Services,Head of Education,Transport,230008,Contract Hire,11/04/2018,3422104-3276,"2,141.60",DAVES MINIBUSES.
Children and Young Peoples Services,Head of Education,Transfer Payments,510027,School Children,11/04/2018,3422108-EYASF-REFASVAAS,"2,925.00",DAYPARK LTD T/A YELLOW WELLIES.
Children and Young Peoples Services,Head of Education,Transfer Payments,510027,School Children,11/04/2018,3422108-EYASF-REFWSPRING18,"3,703.50",DAYPARK LTD T/A YELLOW WELLIES.
Children and Young Peoples Services,Head of Looked After Provision Permanence and Care Leavers,Employees,080025,Agency Staff,11/04/2018,3422110-1053039,"117,199.44",DE POEL MANAGED SERVICES LTD.
Regeneration and Local Services,Economic Development and Housing,Supplies and Services,384700,Miscellaneous Expenses,11/04/2018,3422113-RED-04-2018-079,"1,000.00",DECOR CLADDING CENTRE LTD.
Resources,Digital and Customer Services,Supplies and Services,342033,Computers and Communications,11/04/2018,3422115-7402431663,"2,278.48",DELL COMPUTER CORPORATION LTD.
Regeneration and Local Services,Direct Services,Supplies and Services,304221,Equipment and Materials,11/04/2018,3422123-3798,680.00,DGW 2005 LTD.
Regeneration and Local Services,Direct Services,Third Party Payments,430101,Rendered by Private Contractors,11/04/2018,3422125-IV964792,"3,124.35",DIRECT TYRE MANAGEMENT (DTM).
Adult and Health Services,Commissioning inc Supporting People,Third Party Payments,442002,Supporting People,11/04/2018,3422126-1967518,"5,668.48",DISC LTD.
Adult and Health Services,Commissioning inc Supporting People,Third Party Payments,442002,Supporting People,11/04/2018,3422126-1967547,"27,885.68",DISC LTD.
Adult and Health Services,Head of Adults,Supplies and Services,338066,Services,11/04/2018,3422129-2402201821032018,572.00,DR ARUNIMA GHOSH.
Adult and Health Services,Head of Adults,Supplies and Services,338066,Services,11/04/2018,3422131-2402201821032018,"2,493.55",DR FARIBA MAHIN-BABAEI.
Regeneration and Local Services,Spatial Policy Planning Assets & Environment,Supplies and Services,384199,Miscellaneous Expenses,11/04/2018,3422132-2018/01,600.00,DR GLENN FOARD.
Resources,Legal & Democratic Services,Supplies and Services,338057,Services,11/04/2018,3422133-PB132,"2,410.90",DR PAUL BARRETT.
Adult and Health Services,Commissioning inc Supporting People,Third Party Payments,441001,Supporting People,11/04/2018,3422136-1967515,"20,819.76",DURHAM ACTION ON SINGLE HOUSING.
Adult and Health Services,Commissioning inc Supporting People,Third Party Payments,443001,Supporting People,11/04/2018,3422136-1967568,"5,666.50",DURHAM ACTION ON SINGLE HOUSING.
Resources,Legal & Democratic Services,Supplies and Services,328041,Clothing Uniforms and Laundry,11/04/2018,3422138-1453,"2,408.12",DURHAM BUSINESSWEAR LTD.
Resources,Legal & Democratic Services,Supplies and Services,328041,Clothing Uniforms and Laundry,11/04/2018,3422138-1454,942.64,DURHAM BUSINESSWEAR LTD.
Regeneration and Local Services,Spatial Policy Planning Assets & Environment,Supplies and Services,338099,Services,11/04/2018,3422142-17199,"1,600.00",DURHAM WILDLIFE TRUST LTD.
Adult and Health Services,Head of Adults,Supplies and Services,338365,Services,11/04/2018,3422145-38212,"1,222.72",EASIBATHE LTD.
Adult and Health Services,Commissioning inc Supporting People,Third Party Payments,441001,Supporting People,11/04/2018,3422148-1967522,"5,483.40",EAST DURHAM COMMUNITY INITIATIVES LTD.
Regeneration and Local Services,Direct Services,Supplies and Services,304221,Equipment and Materials,11/04/2018,3422150-0000008870,884.94,EAST RIDING HORTICULTURE LTD.
Regeneration and Local Services,Direct Services,Supplies and Services,304221,Equipment and Materials,11/04/2018,3422150-0000008940,"3,402.00",EAST RIDING HORTICULTURE LTD.
Regeneration and Local Services,Direct Services,Supplies and Services,304259,Equipment and Materials,11/04/2018,3422150-0000008083,"2,766.44",EAST RIDING HORTICULTURE LTD.
Regeneration and Local Services,Direct Services,Supplies and Services,304259,Equipment and Materials,11/04/2018,3422150-0000008990,787.50,EAST RIDING HORTICULTURE LTD.
Regeneration and Local Services,Economic Development and Housing,Supplies and Services,384199,Miscellaneous Expenses,11/04/2018,3422152-1638,"2,000.00",EDEN ARTS LTD.
Regeneration and Local Services,Direct Services,Supplies and Services,304221,Equipment and Materials,11/04/2018,3422153-059-221486,"2,496.47",EDMUNDSON ELECTRICAL LTD.
Regeneration and Local Services,Direct Services,Supplies and Services,304221,Equipment and Materials,11/04/2018,3422153-059-221536,"2,543.01",EDMUNDSON ELECTRICAL LTD.
Resources,Digital and Customer Services,Supplies and Services,332029,Printing Stationery and Gen Off Exps,11/04/2018,3422155-109710,736.00,ELANDERS UK.
Resources,Digital and Customer Services,Supplies and Services,332029,Printing Stationery and Gen Off Exps,11/04/2018,3422155-109940,569.00,ELANDERS UK.
Children and Young Peoples Services,Head of Education,Transport,230007,Contract Hire,11/04/2018,3422158-SM8,500.00,ELITE TAXIS.
Adult and Health Services,Head of Adults,Transport,230005,Contract Hire,11/04/2018,3422158-T10,600.00,ELITE TAXIS.
Adult and Health Services,Head of Adults,Supplies and Services,308011,Furniture,11/04/2018,3422160-4100610134,897.00,ELMOLINE LTD.
Regeneration and Local Services,Technical Services,Supplies and Services,304221,Equipment and Materials,11/04/2018,3422163-21434,810.23,EMJ PLASTICS LTD.
Children and Young Peoples Services,Head of Education,Transport,230007,Contract Hire,11/04/2018,3422165-0745,812.00,EN ROUTE TRAVEL.
Children and Young Peoples Services,Head of Education,Transport,230008,Contract Hire,11/04/2018,3422165-0746,"1,351.00",EN ROUTE TRAVEL.
Regeneration and Local Services,Direct Services,Third Party Payments,430100,Rendered by Private Contractors,11/04/2018,3422167-SIN/18-080815-BD,"1,550.00",ENGINEERING PRECISION SOLUTIONS LTD T/A CYRUS-BRADFORD.
Regeneration and Local Services,Direct Services,Transport,230005,Contract Hire,11/04/2018,3422169-8143179,539.84,ENTERPRISE FLEX-E-RENT T/A BURNT TREE GROUP LTD.
Regeneration and Local Services,Direct Services,Transport,230005,Contract Hire,11/04/2018,3422171-650022996262,756.00,ENTERPRISE RENT-A-CAR UK LTD T/A ENTERPRISE FLEX-E-RENT.
Regeneration and Local Services,Direct Services,Supplies and Services,304221,Equipment and Materials,11/04/2018,3422174-3140501,"4,056.25",ESE WORLD LTD.
Regeneration and Local Services,Direct Services,Supplies and Services,304221,Equipment and Materials,11/04/2018,3422174-3140502,"5,678.75",ESE WORLD LTD.
Adult and Health Services,Head of Adults,Third Party Payments,478151,Purchase of Care,11/04/2018,3422176-10621,"2,075.76",ESSENTIAL CARE & SUPPORT LTD.
Adult and Health Services,Head of Adults,Third Party Payments,478151,Purchase of Care,11/04/2018,3422176-10623,"3,090.75",ESSENTIAL CARE & SUPPORT LTD.
Children and Young Peoples Services,Head of Early Help Assessment and Safeguarding,Supplies and Services,338044,Services,11/04/2018,3422179-635D,726.75,EYELAW LTD.
Children and Young Peoples Services,Head of Education,Transfer Payments,510026,School Children,11/04/2018,3422180-BBM-DUR-15260,508.50,EYPS LTD.
Regeneration and Local Services,Technical Services,Third Party Payments,430128,Rendered by Private Contractors,11/04/2018,3422181-233,"1,286.00",F WARD FARM.
Regeneration and Local Services,Direct Services,Third Party Payments,430100,Rendered by Private Contractors,11/04/2018,3422182-4286,"1,376.13",F WARREN (ELECTRICAL) LTD.
Regeneration and Local Services,Direct Services,Third Party Payments,430100,Rendered by Private Contractors,11/04/2018,3422182-4292,"4,641.00",F WARREN (ELECTRICAL) LTD.
Regeneration and Local Services,Technical Services,Stock,926900,Stock in hand-Inventory system,11/04/2018,3422183-123894,"2,050.00",FABRIKAT (NOTTINGHAM) LTD.
Children and Young Peoples Services,Head of Education,Construction Work,908105,Construction work,11/04/2018,3422184-125311/01,"2,245.00",FAIRHURST.
Regeneration and Local Services,Technical Services,Supplies and Services,338027,Services,11/04/2018,3422184-125348/01,"1,475.00",FAIRHURST.
Children and Young Peoples Services,Head of Education,Supplies and Services,384199,Miscellaneous Expenses,11/04/2018,3422185-23669,"4,500.00",FAMILY ACTION.
Resources - C A C,Welfare Assistance Fund,Supplies and Services,342053,Computers and Communications,11/04/2018,3422186-SIN006510,"4,750.00",FAMILY FUND TRADING LTD T/A FAMILY FUND BUSINESS SERVICES.
Adult and Health Services,Commissioning inc Supporting People,Supplies and Services,338089,Services,11/04/2018,3422189-1150,600.00,FIRST IN TRAINING LTD.
Adult and Health Services,Commissioning inc Supporting People,Supplies and Services,338089,Services,11/04/2018,3422189-1151,"1,390.00",FIRST IN TRAINING LTD.
Adult and Health Services,Commissioning inc Supporting People,Third Party Payments,442002,Supporting People,11/04/2018,3422195-1967549,"19,776.44",FOUNDATION.
Adult and Health Services,Commissioning inc Supporting People,Third Party Payments,442002,Supporting People,11/04/2018,3422195-1967567,"2,863.28",FOUNDATION.
Adult and Health Services,Commissioning inc Supporting People,Third Party Payments,442002,Supporting People,11/04/2018,3422196-1967566,"32,194.64",FOUR HOUSING GROUP & CARE & REPAIR HANDYPERSON SERVICE.
Regeneration and Local Services,Transport and Contracted Services,Supplies and Services,304245,Equipment and Materials,11/04/2018,3422196-DHP0027,"4,808.33",FOUR HOUSING GROUP & CARE & REPAIR HANDYPERSON SERVICE.
Regeneration and Local Services,Economic Development and Housing,Supplies and Services,344033,Telephones,11/04/2018,3422199-141969,"1,004.98",FREEDOM COMMUNICATIONS (UK) LTD.
Regeneration and Local Services,Direct Services,Third Party Payments,430100,Rendered by Private Contractors,11/04/2018,3422205-10611,"25,380.00",FROSTREE LTD.
Regeneration and Local Services,Direct Services,Third Party Payments,430100,Rendered by Private Contractors,11/04/2018,3422205-10613,"4,170.00",FROSTREE LTD.
Regeneration and Local Services,Technical Services,Supplies and Services,304357,Equipment and Materials,11/04/2018,3422211-DCC110318,"18,961.63",GAP GROUP LTD.
Regeneration and Local Services,Technical Services,Supplies and Services,304357,Equipment and Materials,11/04/2018,3422211-DCC180318,"19,332.06",GAP GROUP LTD.
Regeneration and Local Services,Technical Services,Supplies and Services,304357,Equipment and Materials,11/04/2018,3422211-DCC250318,"18,682.30",GAP GROUP LTD.
Children and Young Peoples Services,Head of Education,Transport,230007,Contract Hire,11/04/2018,3422213-20175,"2,380.00",GARNETTS LTD (COACHES).
Children and Young Peoples Services,Head of Education,Transport,230007,Contract Hire,11/04/2018,3422213-20177,"2,360.00",GARNETTS LTD (COACHES).
Children and Young Peoples Services,Head of Education,Transport,230007,Contract Hire,11/04/2018,3422213-20179-4034,"2,296.00",GARNETTS LTD (COACHES).
Children and Young Peoples Services,Head of Education,Transport,230007,Contract Hire,11/04/2018,3422213-20179-4035,"2,296.00",GARNETTS LTD (COACHES).
Children and Young Peoples Services,Head of Education,Transport,230007,Contract Hire,11/04/2018,3422213-20179-4036,"2,296.00",GARNETTS LTD (COACHES).
Children and Young Peoples Services,Head of Education,Transport,230007,Contract Hire,11/04/2018,3422213-20179-4037,"4,592.00",GARNETTS LTD (COACHES).
Children and Young Peoples Services,Head of Education,Transport,230007,Contract Hire,11/04/2018,3422213-20179-4038,"2,296.00",GARNETTS LTD (COACHES).
Children and Young Peoples Services,Head of Education,Transport,230007,Contract Hire,11/04/2018,3422213-20182,"3,710.00",GARNETTS LTD (COACHES).
Children and Young Peoples Services,Head of Education,Transport,230007,Contract Hire,11/04/2018,3422213-20183,"3,570.00",GARNETTS LTD (COACHES).
Children and Young Peoples Services,Head of Education,Transport,230007,Contract Hire,11/04/2018,3422213-20184,"2,330.00",GARNETTS LTD (COACHES).
Children and Young Peoples Services,Head of Education,Transport,230003,Contract Hire,11/04/2018,3422213-20172-3301,"3,180.00",GARNETTS LTD (COACHES).
Children and Young Peoples Services,Head of Education,Transport,230003,Contract Hire,11/04/2018,3422213-20172-3303,"3,180.00",GARNETTS LTD (COACHES).
Children and Young Peoples Services,Head of Education,Transport,230003,Contract Hire,11/04/2018,3422213-20172-3335,"2,890.00",GARNETTS LTD (COACHES).
Children and Young Peoples Services,Head of Education,Transport,230003,Contract Hire,11/04/2018,3422213-20178-3004,"2,780.00",GARNETTS LTD (COACHES).
Children and Young Peoples Services,Head of Education,Transport,230003,Contract Hire,11/04/2018,3422213-20178-3008,"2,980.00",GARNETTS LTD (COACHES).
Children and Young Peoples Services,Head of Education,Transport,230003,Contract Hire,11/04/2018,3422213-20178-3203,"2,780.00",GARNETTS LTD (COACHES).
Children and Young Peoples Services,Head of Education,Transport,230003,Contract Hire,11/04/2018,3422213-20178-3333,"2,360.00",GARNETTS LTD (COACHES).
Children and Young Peoples Services,Head of Education,Transport,230008,Contract Hire,11/04/2018,3422213-20180,"1,600.00",GARNETTS LTD (COACHES).
Regeneration and Local Services,Technical Services,Supplies and Services,338027,Services,11/04/2018,3422214-107664776,"2,231.00",GATESHEAD COUNCIL.
Adult and Health Services,Head of Adults,Transport,230005,Contract Hire,11/04/2018,3422215-DM187-MARCH,"1,320.00",GAVIN ELLIOTT T/A LOCATION TAXIS.
Regeneration and Local Services,Direct Services,Supplies and Services,338001,Services,11/04/2018,3422220-GIB3242,"1,000.00",GIBSON SURVEYING & MAPPING LTD.
Regeneration and Local Services,Technical Services,Supplies and Services,304221,Equipment and Materials,11/04/2018,3422222-748678,529.36,GLASDON UK LTD.
Regeneration and Local Services,Transport and Contracted Services,Third Party Payments,430100,Rendered by Private Contractors,11/04/2018,3422224-CONCFAREPAY17-7FEBV1,"493,836.00",GO GATESHEAD LTD.
Regeneration and Local Services,Direct Services,Supplies and Services,304259,Equipment and Materials,11/04/2018,3422227-INV058287,"1,360.00",GOTT TECHNICAL SERVICES LTD.
Regeneration and Local Services,Transport and Contracted Services,Third Party Payments,430100,Rendered by Private Contractors,11/04/2018,3422231-CONCFAREPAY17-7FEBV1,"2,099.04",GRAHAMS MOTOR SERVICES LTD.
Resources,Finance & Transactional Services,Supplies and Services,338045,Services,11/04/2018,3422234-511881,"2,229.60",GREENHALGH KERR.
Resources,Finance & Transactional Services,Supplies and Services,338045,Services,11/04/2018,3422234-511887,"1,395.00",GREENHALGH KERR.
Resources,Finance & Transactional Services,Supplies and Services,338045,Services,11/04/2018,3422234-511889,"2,123.25",GREENHALGH KERR.
Regeneration and Local Services,Direct Services,Premises,145023,Cleaning and Domestic Supplies,11/04/2018,3422235-06/729990,"1,636.68",GREENHAM TRADING LTD.
Regeneration and Local Services,Technical Services,Supplies and Services,304221,Equipment and Materials,11/04/2018,3422235-06/732353,679.70,GREENHAM TRADING LTD.
Regeneration and Local Services,Technical Services,Stock,926900,Stock in hand-Inventory system,11/04/2018,3422235-06/728732,783.08,GREENHAM TRADING LTD.
Regeneration and Local Services,Technical Services,Stock,926900,Stock in hand-Inventory system,11/04/2018,3422235-06/732307,805.50,GREENHAM TRADING LTD.
Regeneration and Local Services,Technical Services,Stock,926900,Stock in hand-Inventory system,11/04/2018,3422235-06/732433,"1,068.75",GREENHAM TRADING LTD.
Regeneration and Local Services,Direct Services,Supplies and Services,304221,Equipment and Materials,11/04/2018,3422237-44479,"1,057.00",GROUNDSMAN TOOLS AND SUPPLIES LLP.
Regeneration and Local Services,Economic Development and Housing,Construction Work,908105,Construction work,11/04/2018,3422238-12437,"55,000.00",GROUNDWORK NORTH EAST.
Resources,Digital and Customer Services,Supplies and Services,304303,Equipment and Materials,11/04/2018,3422241-INV0170152,544.77,GV MULTIMEDIA LTD.
Regeneration and Local Services,Technical Services,Third Party Payments,430100,Rendered by Private Contractors,11/04/2018,3422245-41452,"8,974.27",HALL CONSTRUCTION SERVICES LTD.
Regeneration and Local Services,Technical Services,Stock,926900,Stock in hand-Inventory system,11/04/2018,3422246-3034,820.00,HALT HIRE.
Regeneration and Local Services,Direct Services,Supplies and Services,304221,Equipment and Materials,11/04/2018,3422247-SIN569250,591.44,HANDICARE ACCESSIBILITY LTD.
Adult and Health Services,Commissioning inc Supporting People,Third Party Payments,442002,Supporting People,11/04/2018,3422249-1967555,"3,297.48",HANOVER HOUSING ASSOCIATION.
Adult and Health Services,Commissioning inc Supporting People,Third Party Payments,441001,Supporting People,11/04/2018,3422250-1967519,"18,082.80",HARBOUR SUPPORT SERVICES.
Regeneration and Local Services,Direct Services,Supplies and Services,304221,Equipment and Materials,11/04/2018,3422251-SI-4567,969.78,HARELAW SAWMILL LTD.
Regeneration and Local Services,Direct Services,Supplies and Services,304221,Equipment and Materials,11/04/2018,3422251-SI-4594,"2,235.90",HARELAW SAWMILL LTD.
Adult and Health Services,Public Health,Supplies and Services,384199,Miscellaneous Expenses,11/04/2018,3422252-2510017644,"1,791.25",HARROGATE & DISTRICT NHS FOUNDATION TRUST.
Resources,Corporate Finance & Commercial Services,Supplies and Services,338220,Services,11/04/2018,3422253-4011-JAN/FEB18,"2,970.00",HARTLEPOOL & EAST DURHAM MIND.
Resources,Corporate Finance & Commercial Services,Supplies and Services,338220,Services,11/04/2018,3422253-4011-MARCH18,"1,089.00",HARTLEPOOL & EAST DURHAM MIND.
Regeneration and Local Services,Culture & Sport,Supplies and Services,384199,Miscellaneous Expenses,11/04/2018,3422258-2526,"2,343.50",HIGHLIGHTS PRODUCTIONS LTD.
Regeneration and Local Services,Technical Services,Third Party Payments,430100,Rendered by Private Contractors,11/04/2018,3422259-2751,"11,390.94",HIGHWAY CONSTRUCTION SERVICES LTD.
Regeneration and Local Services,Technical Services,Supplies and Services,304221,Equipment and Materials,11/04/2018,3422260-IN055505,"3,284.00",HILL & SMITH LTD.
Dedicated Schools Grant,DSG High Needs Block,Third Party Payments,410037,Rendered by Other Local Authorities,11/04/2018,3422264-299,"6,825.00",HOME ON THE RANGE LTD.
Dedicated Schools Grant,DSG High Needs Block,Third Party Payments,410037,Rendered by Other Local Authorities,11/04/2018,3422264-299A,"12,000.00",HOME ON THE RANGE LTD.
Dedicated Schools Grant,DSG High Needs Block,Third Party Payments,410037,Rendered by Other Local Authorities,11/04/2018,3422264-300,"7,605.00",HOME ON THE RANGE LTD.
Regeneration and Local Services,Spatial Policy Planning Assets & Environment,Construction Work,908105,Construction work,11/04/2018,3422266-5201249807,"159,663.63",HONEYWELL CONTROL SYSTEMS LTD.
Dedicated Schools Grant,DSG High Needs Block,Central Support and Capital,689996,Unclassified,11/04/2018,3422267-HWSI33,"5,855.61",HOPE WOOD ACADEMY.
Dedicated Schools Grant,DSG High Needs Block,Central Support and Capital,689996,Unclassified,11/04/2018,3422267-HWSI34,"4,893.80",HOPE WOOD ACADEMY.
Adult and Health Services,Head of Adults,Third Party Payments,425021,Rendered by Voluntary Organisations,11/04/2018,3422269-4495,"3,520.00",HOWARD HOUSE CARE LTD.
Children and Young Peoples Services,Childrens Services Operational Support,Supplies and Services,338089,Services,11/04/2018,3422272-4584,600.00,HSF TRAINING LTD.
Regeneration and Local Services,Direct Services,Third Party Payments,430113,Rendered by Private Contractors,11/04/2018,3422273-W181590,"299,476.02",HW MARTIN HOLDINGS LTD.
Regeneration and Local Services,Technical Services,Third Party Payments,430128,Rendered by Private Contractors,11/04/2018,3422274-0159,"1,521.00",I MARSHALL & SONS.
Regeneration and Local Services,Economic Development and Housing,Premises,108125,Service Repairs and Maintenance,11/04/2018,3422275-TW-2349,897.50,IAN ADAMSON T/A COMPLETE WEED CONTROL (TYNE & WEAR).
Regeneration and Local Services,Technical Services,Third Party Payments,430127,Rendered by Private Contractors,11/04/2018,3422276-2484,975.50,IAN C LIDDLE.
Regeneration and Local Services,Technical Services,Third Party Payments,430100,Rendered by Private Contractors,11/04/2018,3422277-NO1861296,"7,611.35",IAN FARMER ASSOCIATES (1998) LTD.
Transformation and Partnerships,Strategy,Supplies and Services,342051,Computers and Communications,11/04/2018,3422278-105457875,"2,487.00",IBM UNITED KINGDOM FINANCIAL SERVICES LTD.
Regeneration and Local Services,Direct Services,Supplies and Services,304221,Equipment and Materials,11/04/2018,3422282-2613,"1,136.00",IKONIC LIFTS LTD.
Children and Young Peoples Services,Childrens Services Operational Support,Supplies and Services,338089,Services,11/04/2018,3422283-DCC/JE/01/2018,"1,983.00",IMPACT CHANGE SOLUTIONS LTD.
Children and Young Peoples Services,Head of Early Help Assessment and Safeguarding,Supplies and Services,304259,Equipment and Materials,11/04/2018,3422285-158534,"1,032.00",INCLUSIVE TECHNOLOGY LTD.
Resources,Digital and Customer Services,Supplies and Services,304303,Equipment and Materials,11/04/2018,3422286-SIN425747,553.00,INFORMATION & DATA NETWORK SUPPLIES LTD (IDN).
Resources,Digital and Customer Services,Supplies and Services,304303,Equipment and Materials,11/04/2018,3422286-SIN425836,"2,405.00",INFORMATION & DATA NETWORK SUPPLIES LTD (IDN).
Resources,Digital and Customer Services,Supplies and Services,304303,Equipment and Materials,11/04/2018,3422286-SIN425965,"3,348.15",INFORMATION & DATA NETWORK SUPPLIES LTD (IDN).
Resources,Digital and Customer Services,Supplies and Services,304303,Equipment and Materials,11/04/2018,3422286-SIN425969,686.40,INFORMATION & DATA NETWORK SUPPLIES LTD (IDN).
Resources,Digital and Customer Services,Supplies and Services,342033,Computers and Communications,11/04/2018,3422287-3824452,"1,890.00",INSIGHT DIRECT (UK) LTD.
Resources,Digital and Customer Services,Supplies and Services,304303,Equipment and Materials,11/04/2018,3422287-3815451,720.00,INSIGHT DIRECT (UK) LTD.
Resources,Digital and Customer Services,Stock,926900,Stock in hand-Inventory system,11/04/2018,3422287-3827587,"1,375.00",INSIGHT DIRECT (UK) LTD.
Regeneration and Local Services,Technical Services,Third Party Payments,460109,Contract Payments,11/04/2018,3422288-INS1508,"2,560.00",INSPECTORATE LTD T/A ROCH NDT SERVICES.
Regeneration and Local Services,Transport and Contracted Services,Third Party Payments,460104,Contract Payments,11/04/2018,3422288-INS1555,500.00,INSPECTORATE LTD T/A ROCH NDT SERVICES.
Regeneration and Local Services,Technical Services,Stock,926900,Stock in hand-Inventory system,11/04/2018,3422289-626631,"3,110.80",INSTARMAC GROUP PLC.
Regeneration and Local Services,Technical Services,Stock,926900,Stock in hand-Inventory system,11/04/2018,3422289-626648,"2,424.80",INSTARMAC GROUP PLC.
Regeneration and Local Services,Transport and Contracted Services,Supplies and Services,384540,Miscellaneous Expenses,11/04/2018,3422295-1343,"7,000.00",ITO WORLD LTD.
Children and Young Peoples Services,Head of Education,Supplies and Services,324117,Provisions,11/04/2018,3422298-68500,544.30,J MORAN LTD T/A CAFFE VINCI.
Regeneration and Local Services,Technical Services,Construction Work,908108,Capital - Surface Dressing,11/04/2018,3422299-21529,"1,280.72",JACK COUPE & SONS LTD T/A COUPE LINE.
Regeneration and Local Services,Technical Services,Construction Work,908108,Capital - Surface Dressing,11/04/2018,3422299-21531,"1,336.96",JACK COUPE & SONS LTD T/A COUPE LINE.
Regeneration and Local Services,Technical Services,Construction Work,908108,Capital - Surface Dressing,11/04/2018,3422299-21533,"2,824.80",JACK COUPE & SONS LTD T/A COUPE LINE.
Regeneration and Local Services,Technical Services,Construction Work,908105,Construction work,11/04/2018,3422299-21528,789.48,JACK COUPE & SONS LTD T/A COUPE LINE.
Regeneration and Local Services,Technical Services,Construction Work,908105,Construction work,11/04/2018,3422299-21530,"1,357.37",JACK COUPE & SONS LTD T/A COUPE LINE.
Regeneration and Local Services,Technical Services,Construction Work,908105,Construction work,11/04/2018,3422299-21532,"2,350.48",JACK COUPE & SONS LTD T/A COUPE LINE.
Regeneration and Local Services,Technical Services,Construction Work,908105,Construction work,11/04/2018,3422299-21534,"3,059.79",JACK COUPE & SONS LTD T/A COUPE LINE.
Regeneration and Local Services,Technical Services,Construction Work,908105,Construction work,11/04/2018,3422299-21535,"1,989.17",JACK COUPE & SONS LTD T/A COUPE LINE.
Regeneration and Local Services,Technical Services,Construction Work,908105,Construction work,11/04/2018,3422299-21586,721.20,JACK COUPE & SONS LTD T/A COUPE LINE.
Regeneration and Local Services,EnvironmentHealth & Consumer Protection,Supplies and Services,304999,Equipment and Materials,11/04/2018,3422307-8691,"1,975.00",JG UNIFORMS.
Regeneration and Local Services,Transport and Contracted Services,Third Party Payments,430100,Rendered by Private Contractors,11/04/2018,3422310-CONCFAREPAY17-7FEBV1,"10,485.19",JOHN JAMES BRUNSKILL T/A JSB TRAVEL LTD.
Regeneration and Local Services,Direct Services,Supplies and Services,304357,Equipment and Materials,11/04/2018,3422311-2074024,576.54,JOHN NIXON LTD.
Regeneration and Local Services,Technical Services,Supplies and Services,304221,Equipment and Materials,11/04/2018,3422317-BI1252454,732.60,JT DOVE LTD.
Regeneration and Local Services,Technical Services,Supplies and Services,304221,Equipment and Materials,11/04/2018,3422317-BII251593,574.72,JT DOVE LTD.
Regeneration and Local Services,Technical Services,Supplies and Services,304221,Equipment and Materials,11/04/2018,3422317-BII253117,977.97,JT DOVE LTD.
Regeneration and Local Services,Direct Services,Supplies and Services,304221,Equipment and Materials,11/04/2018,3422317-GOI863/D,"2,934.00",JT DOVE LTD.
Regeneration and Local Services,Direct Services,Supplies and Services,304221,Equipment and Materials,11/04/2018,3422317-GOI864/D,"1,672.26",JT DOVE LTD.
Regeneration and Local Services,Technical Services,Supplies and Services,304221,Equipment and Materials,11/04/2018,3422317-GOI880/D,776.00,JT DOVE LTD.
Regeneration and Local Services,Direct Services,Supplies and Services,304221,Equipment and Materials,11/04/2018,3422317-NOI152421,713.67,JT DOVE LTD.
Regeneration and Local Services,Technical Services,Supplies and Services,304221,Equipment and Materials,11/04/2018,3422317-STI475800,612.48,JT DOVE LTD.
Regeneration and Local Services,Technical Services,Stock,926900,Stock in hand-Inventory system,11/04/2018,3422317-BII251923,592.36,JT DOVE LTD.
Regeneration and Local Services,Technical Services,Stock,926900,Stock in hand-Inventory system,11/04/2018,3422317-STI475990,"1,704.00",JT DOVE LTD.
Regeneration and Local Services,Technical Services,Stock,926900,Stock in hand-Inventory system,11/04/2018,3422317-STI475993,586.08,JT DOVE LTD.
Regeneration and Local Services,Technical Services,Stock,926900,Stock in hand-Inventory system,11/04/2018,3422317-STI476503,828.00,JT DOVE LTD.
Regeneration and Local Services,Spatial Policy Planning Assets & Environment,Supplies and Services,338066,Services,11/04/2018,3422318-915,"2,850.00",JW BAINBRIDGE CONTRACTORS LTD.
Regeneration and Local Services,Technical Services,Third Party Payments,430100,Rendered by Private Contractors,11/04/2018,3422320-29491,"6,875.05",KAEFER LTD.
Regeneration and Local Services,Technical Services,Third Party Payments,430100,Rendered by Private Contractors,11/04/2018,3422320-30486,"1,095.75",KAEFER LTD.
Regeneration and Local Services,Technical Services,Third Party Payments,430100,Rendered by Private Contractors,11/04/2018,3422320-30531,"1,478.00",KAEFER LTD.
Regeneration and Local Services,Culture & Sport,Supplies and Services,384199,Miscellaneous Expenses,11/04/2018,3422322-INV1359,570.00,KAYLEIGH LAVERICK T/A THE GARAGE URBAN STYLES.
Regeneration and Local Services,Direct Services,Supplies and Services,352001,Conference Expenses,11/04/2018,3422324-114600,687.50,KEEP BRITAIN TIDY.
Regeneration and Local Services,Culture & Sport,Supplies and Services,338047,Services,11/04/2018,3422326-1-5/4/18,"1,200.00",KELLY-ABBOTT DANCE THEATRE.
Regeneration and Local Services,Spatial Policy Planning Assets & Environment,Supplies and Services,384199,Miscellaneous Expenses,11/04/2018,3422334-12473,525.00,KINGFISHER MEDIA LTD.
Adult and Health Services,Commissioning inc Supporting People,Supplies and Services,352001,Conference Expenses,11/04/2018,3422335-SIN-007941,692.30,KINGS FUND.
Children and Young Peoples Services,Head of Education,Transport,230008,Contract Hire,11/04/2018,3422336-3C-N071MAR18,"1,751.00",L & R PRIVATE HIRE.
Regeneration and Local Services,Culture & Sport,Supplies and Services,338047,Services,11/04/2018,3422337-3435,"3,070.00",LAKIN MCCARTHY ENTERTAINMENT LTD.
Regeneration and Local Services,Transport and Contracted Services,Third Party Payments,430100,Rendered by Private Contractors,11/04/2018,3422338-CONCFAREPAY17-7FEBV1,874.76,LANCHESTER PARTNERSHIP.
Regeneration and Local Services,Direct Services,Supplies and Services,338001,Services,11/04/2018,3422339-16566,"1,860.00",LANDFORM SURVEYS LTD.
Regeneration and Local Services,Direct Services,Supplies and Services,304221,Equipment and Materials,11/04/2018,3422346-67112,820.00,LEISURETEQ.
Regeneration and Local Services,Direct Services,Supplies and Services,304221,Equipment and Materials,11/04/2018,3422346-67379,820.00,LEISURETEQ.
Regeneration and Local Services,Direct Services,Supplies and Services,304221,Equipment and Materials,11/04/2018,3422347-29044,"9,536.00",LESTER CONTROL SYSTEMS LTD.
Children and Young Peoples Services,Head of Education,Transport,230007,Contract Hire,11/04/2018,309395-PEACO007,"1,140.00",LETS TRAVEL.
Resources,Digital and Customer Services,Supplies and Services,332029,Printing Stationery and Gen Off Exps,11/04/2018,3422349-3227,660.00,LIDDLE FOIL BLOCKING.
Regeneration and Local Services,Direct Services,Third Party Payments,430100,Rendered by Private Contractors,11/04/2018,3422350-NV135257,"17,679.00",LIFTEC LIFTS LTD.
Resources,Digital and Customer Services,Supplies and Services,304252,Equipment and Materials,11/04/2018,3422351-138393,600.00,LIFTING & COOLING LTD.
Children and Young Peoples Services,Head of Education,Transport,230007,Contract Hire,11/04/2018,3422353-3765,"1,514.00",LINCAB TAXIS.
Children and Young Peoples Services,Head of Education,Transport,230012,Contract Hire,11/04/2018,3422353-3767,"1,294.00",LINCAB TAXIS.
Children and Young Peoples Services,Childrens Services Operational Support,Intangible Assets,917001,Software capitalised licence fees,11/04/2018,3422354-0000021294,"10,641.22",LIQUIDLOGIC LTD.
Children and Young Peoples Services,Childrens Services Operational Support,Intangible Assets,917001,Software capitalised licence fees,11/04/2018,3422354-0000021434,"12,600.00",LIQUIDLOGIC LTD.
Children and Young Peoples Services,Head of Education,Construction Work,908105,Construction work,11/04/2018,3422362-66384,"2,030.00",LUCION ENVIRONMENTAL LLP LTD.
Transformation and Partnerships,Partnerships & Community Engagement Div.,Construction Work,908105,Construction work,11/04/2018,3422362-67212,"1,060.00",LUCION ENVIRONMENTAL LLP LTD.
Dedicated Schools Grant,DSG High Needs Block,Supplies and Services,304259,Equipment and Materials,11/04/2018,3422363-INV-2176,"1,054.00",LYNCH HEALTHCARE LTD.
Resources,Digital and Customer Services,Supplies and Services,342051,Computers and Communications,11/04/2018,3422366-13588,"3,670.00",MAGIQUE GALILEO SOFTWARE LTD.
Children and Young Peoples Services,Head of Looked After Provision Permanence and Care Leavers,Supplies and Services,344135,Telephones,11/04/2018,3422368-12134372,899.00,MAINTEL EUROPE LTD.
Regeneration and Local Services,Technical Services,Third Party Payments,430100,Rendered by Private Contractors,11/04/2018,3422369-9186004269,"3,150.00",MAMMOET UK LTD.
Regeneration and Local Services,Culture & Sport,Supplies and Services,324117,Provisions,11/04/2018,3422372-20022,620.53,MARK TONEY & CO LTD.
Regeneration and Local Services,Technical Services,Supplies and Services,304221,Equipment and Materials,11/04/2018,3422373-Z000037123,"2,729.23",MARSHALLS MONO LTD.
Children and Young Peoples Services,Head of Looked After Provision Permanence and Care Leavers,Premises,145051,Cleaning and Domestic Supplies,11/04/2018,3422377-238164,"2,545.79",MAX RECYCLE T/A THE DURHAM COMPANY (TDC).
Regeneration and Local Services,Economic Development and Housing,Supplies and Services,384999,Miscellaneous Expenses,11/04/2018,3422378-FEBRUARY2018,"1,900.00",MAXIMA DEVELOPMENTS LTD T/A HOTEL 52.
Resources - C A C,Centrally Administered costs,Supplies and Services,338013,Services,11/04/2018,3422379-1390175,"25,068.00",MAZARS LLP.
Children and Young Peoples Services,Head of Education,Third Party Payments,440999,Other Third Party Payments,11/04/2018,3422380-1367,"3,395.00",MBC CERAMICS LTD.
Children and Young Peoples Services,Head of Education,Third Party Payments,440999,Other Third Party Payments,11/04/2018,3422380-1369,"17,662.05",MBC CERAMICS LTD.
Adult and Health Services,Commissioning inc Supporting People,Third Party Payments,442002,Supporting People,11/04/2018,3422382-1967520,"5,469.72",MENTAL HEALTH MATTERS.
Regeneration and Local Services,Economic Development and Housing,Construction Work,908105,Construction work,11/04/2018,3422383-MGH18002,"57,142.99",MGH CARD LLP.
Regeneration and Local Services,Culture & Sport,Supplies and Services,384199,Miscellaneous Expenses,11/04/2018,3422385-79,"1,035.58",MICHAEL LONG.
Regeneration and Local Services,Spatial Policy Planning Assets & Environment,Cap Exp on Grants & Other Financial Assistance (REFCUS),918501,Exp assets not owned by authority,11/04/2018,3422389-20/03/2018/5749,"4,700.00",MICROPROPAGATION SERVICES (EM) LTD T/A BEADAMOSS.
Children and Young Peoples Services,Head of Education,Supplies and Services,384199,Miscellaneous Expenses,11/04/2018,3422390-2553,"1,250.00",MID NITE EXPRESS.
Regeneration and Local Services,Direct Services,Supplies and Services,304357,Equipment and Materials,11/04/2018,3422396-22884,"3,600.00",MJ HICKEY PLANT HIRE & CONTRACTS LTD.
Resources,Digital and Customer Services,Supplies and Services,342215,Computers and Communications,11/04/2018,3422398-2018122,800.00,MODERN MINDSET LTD.
Regeneration and Local Services,Culture & Sport,Supplies and Services,324001,Provisions,11/04/2018,3422399-904434431,"1,810.55",MOLSON COORS BREWING COMPANY (UK) LTD.
